Workbook

Sheet Kalkulator Pinjaman
B1: Kalkulator Pinjaman Sederhana
E2: Masukkan nilai
B3: Jumlah pinjaman | E3: Rp5,000.00
B4: Suku bunga tahunan | E4: 5.50%
B5: Periode pinjaman (tahun) | E5: 5
B6: Tanggal mulai pinjaman | E6: =TODAY() -> 2022-01-14
B8: Angsuran bulanan | E8: =IFERROR(IF(Nilai_Dimasukkan,Pembayaran_Bulanan,""), "") -> Rp95.51
B9: Jumlah pembayaran | E9: =IFERROR(IF(Nilai_Dimasukkan,Tahun_Pinjaman*12,""), "") -> 60
B10: Total bunga | E10: =IFERROR(IF(Nilai_Dimasukkan,Total_Biaya-Jumlah_Pinjaman,""), "") -> Rp730.35
B11: Total biaya pinjaman | E11: =IFERROR(IF(_xlfn.SINGLE(Nilai_Dimasukkan),_xlfn.SINGLE(Pembayaran_Bulanan)*_xlfn.SINGLE(Jumlah_Pembayaran),""), "") -> Rp5,730.35
B12: No. | C12: Tanggal Pembayaran | D12: Saldo Saldo | E12: Pembayaran | F12: Pinjaman Pokok | G12: Bunga | H12: Saldo Akhir
B13: =IFERROR(IF(Pinjaman_Belum_Dibayar*Nilai_Dimasukkan,Jumlah_Pembayaran1,""), "") -> 1 | C13: =IFERROR(IF(Pinjaman_Belum_Dibayar*Nilai_Dimasukkan,Tanggal_Pembayaran,""), "") -> 2022-02-14 | D13: =IFERROR(IF(Pinjaman_Belum_Dibayar*Nilai_Dimasukkan,Saldo_Awal,""), "") -> Rp5,000.00 | E13: =IFERROR(IF(Pinjaman_Belum_Dibayar*Nilai_Dimasukkan,Pembayaran_Bulanan,""), "") -> Rp95.51 | F13: =IFERROR(IF(Pinjaman_Belum_Dibayar*Nilai_Dimasukkan,Pinjaman_Pokok,""), "") -> Rp72.59 | G13: =IFERROR(IF(Pinjaman_Belum_Dibayar*Nilai_Dimasukkan,Bunga,""), "") -> Rp22.92 | H13: =IFERROR(IF(Pinjaman_Belum_Dibayar*Nilai_Dimasukkan,Saldo_Akhir,""), "") -> Rp4,927.41
B14: =IFERROR(IF(Pinjaman_Belum_Dibayar*Nilai_Dimasukkan,Jumlah_Pembayaran1,""), "") -> 2 | C14: =IFERROR(IF(Pinjaman_Belum_Dibayar*Nilai_Dimasukkan,Tanggal_Pembayaran,""), "") -> 2022-03-14 | D14: =IFERROR(IF(Pinjaman_Belum_Dibayar*Nilai_Dimasukkan,Saldo_Awal,""), "") -> Rp4,927.41 | E14: =IFERROR(IF(Pinjaman_Belum_Dibayar*Nilai_Dimasukkan,Pembayaran_Bulanan,""), "") -> Rp95.51 | F14: =IFERROR(IF(Pinjaman_Belum_Dibayar*Nilai_Dimasukkan,Pinjaman_Pokok,""), "") -> Rp72.92 | G14: =IFERROR(IF(Pinjaman_Belum_Dibayar*Nilai_Dimasukkan,Bunga,""), "") -> Rp11.48 | H14: =IFERROR(IF(Pinjaman_Belum_Dibayar*Nilai_Dimasukkan,Saldo_Akhir,""), "") -> Rp4,854.49
B15: =IFERROR(IF(Pinjaman_Belum_Dibayar*Nilai_Dimasukkan,Jumlah_Pembayaran1,""), "") -> 3 | C15: =IFERROR(IF(Pinjaman_Belum_Dibayar*Nilai_Dimasukkan,Tanggal_Pembayaran,""), "") -> 2022-04-14 | D15: =IFERROR(IF(Pinjaman_Belum_Dibayar*Nilai_Dimasukkan,Saldo_Awal,""), "") -> Rp4,854.49 | E15: =IFERROR(IF(Pinjaman_Belum_Dibayar*Nilai_Dimasukkan,Pembayaran_Bulanan,""), "") -> Rp95.51 | F15: =IFERROR(IF(Pinjaman_Belum_Dibayar*Nilai_Dimasukkan,Pinjaman_Pokok,""), "") -> Rp73.26 | G15: =IFERROR(IF(Pinjaman_Belum_Dibayar*Nilai_Dimasukkan,Bunga,""), "") -> Rp7.67 | H15: =IFERROR(IF(Pinjaman_Belum_Dibayar*Nilai_Dimasukkan,Saldo_Akhir,""), "") -> Rp4,781.23
B16: =IFERROR(IF(Pinjaman_Belum_Dibayar*Nilai_Dimasukkan,Jumlah_Pembayaran1,""), "") -> 4 | C16: =IFERROR(IF(Pinjaman_Belum_Dibayar*Nilai_Dimasukkan,Tanggal_Pembayaran,""), "") -> 2022-05-14 | D16: =IFERROR(IF(Pinjaman_Belum_Dibayar*Nilai_Dimasukkan,Saldo_Awal,""), "") -> Rp4,781.23 | E16: =IFERROR(IF(Pinjaman_Belum_Dibayar*Nilai_Dimasukkan,Pembayaran_Bulanan,""), "") -> Rp95.51 | F16: =IFERROR(IF(Pinjaman_Belum_Dibayar*Nilai_Dimasukkan,Pinjaman_Pokok,""), "") -> Rp73.59 | G16: =IFERROR(IF(Pinjaman_Belum_Dibayar*Nilai_Dimasukkan,Bunga,""), "") -> Rp5.77 | H16: =IFERROR(IF(Pinjaman_Belum_Dibayar*Nilai_Dimasukkan,Saldo_Akhir,""), "") -> Rp4,707.64
B17: =IFERROR(IF(Pinjaman_Belum_Dibayar*Nilai_Dimasukkan,Jumlah_Pembayaran1,""), "") -> 5 | C17: =IFERROR(IF(Pinjaman_Belum_Dibayar*Nilai_Dimasukkan,Tanggal_Pembayaran,""), "") -> 2022-06-14 | D17: =IFERROR(IF(Pinjaman_Belum_Dibayar*Nilai_Dimasukkan,Saldo_Awal,""), "") -> Rp4,707.64 | E17: =IFERROR(IF(Pinjaman_Belum_Dibayar*Nilai_Dimasukkan,Pembayaran_Bulanan,""), "") -> Rp95.51 | F17: =IFERROR(IF(Pinjaman_Belum_Dibayar*Nilai_Dimasukkan,Pinjaman_Pokok,""), "") -> Rp73.93 | G17: =IFERROR(IF(Pinjaman_Belum_Dibayar*Nilai_Dimasukkan,Bunga,""), "") -> Rp4.63 | H17: =IFERROR(IF(Pinjaman_Belum_Dibayar*Nilai_Dimasukkan,Saldo_Akhir,""), "") -> Rp4,633.71
B18: =IFERROR(IF(Pinjaman_Belum_Dibayar*Nilai_Dimasukkan,Jumlah_Pembayaran1,""), "") -> 6 | C18: =IFERROR(IF(Pinjaman_Belum_Dibayar*Nilai_Dimasukkan,Tanggal_Pembayaran,""), "") -> 2022-07-14 | D18: =IFERROR(IF(Pinjaman_Belum_Dibayar*Nilai_Dimasukkan,Saldo_Awal,""), "") -> Rp4,633.71 | E18: =IFERROR(IF(Pinjaman_Belum_Dibayar*Nilai_Dimasukkan,Pembayaran_Bulanan,""), "") -> Rp95.51 | F18: =IFERROR(IF(Pinjaman_Belum_Dibayar*Nilai_Dimasukkan,Pinjaman_Pokok,""), "") -> Rp74.27 | G18: =IFERROR(IF(Pinjaman_Belum_Dibayar*Nilai_Dimasukkan,Bunga,""), "") -> Rp3.86 | H18: =IFERROR(IF(Pinjaman_Belum_Dibayar*Nilai_Dimasukkan,Saldo_Akhir,""), "") -> Rp4,559.44
B19: =IFERROR(IF(Pinjaman_Belum_Dibayar*Nilai_Dimasukkan,Jumlah_Pembayaran1,""), "") -> 7 | C19: =IFERROR(IF(Pinjaman_Belum_Dibayar*Nilai_Dimasukkan,Tanggal_Pembayaran,""), "") -> 2022-08-14 | D19: =IFERROR(IF(Pinjaman_Belum_Dibayar*Nilai_Dimasukkan,Saldo_Awal,""), "") -> Rp4,559.44 | E19: =IFERROR(IF(Pinjaman_Belum_Dibayar*Nilai_Dimasukkan,Pembayaran_Bulanan,""), "") -> Rp95.51 | F19: =IFERROR(IF(Pinjaman_Belum_Dibayar*Nilai_Dimasukkan,Pinjaman_Pokok,""), "") -> Rp74.61 | G19: =IFERROR(IF(Pinjaman_Belum_Dibayar*Nilai_Dimasukkan,Bunga,""), "") -> Rp3.32 | H19: =IFERROR(IF(Pinjaman_Belum_Dibayar*Nilai_Dimasukkan,Saldo_Akhir,""), "") -> Rp4,484.84
B20: =IFERROR(IF(Pinjaman_Belum_Dibayar*Nilai_Dimasukkan,Jumlah_Pembayaran1,""), "") -> 8 | C20: =IFERROR(IF(Pinjaman_Belum_Dibayar*Nilai_Dimasukkan,Tanggal_Pembayaran,""), "") -> 2022-09-14 | D20: =IFERROR(IF(Pinjaman_Belum_Dibayar*Nilai_Dimasukkan,Saldo_Awal,""), "") -> Rp4,484.84 | E20: =IFERROR(IF(Pinjaman_Belum_Dibayar*Nilai_Dimasukkan,Pembayaran_Bulanan,""), "") -> Rp95.51 | F20: =IFERROR(IF(Pinjaman_Belum_Dibayar*Nilai_Dimasukkan,Pinjaman_Pokok,""), "") -> Rp74.95 | G20: =IFERROR(IF(Pinjaman_Belum_Dibayar*Nilai_Dimasukkan,Bunga,""), "") -> Rp2.91 | H20: =IFERROR(IF(Pinjaman_Belum_Dibayar*Nilai_Dimasukkan,Saldo_Akhir,""), "") -> Rp4,409.89
B21: =IFERROR(IF(Pinjaman_Belum_Dibayar*Nilai_Dimasukkan,Jumlah_Pembayaran1,""), "") -> 9 | C21: =IFERROR(IF(Pinjaman_Belum_Dibayar*Nilai_Dimasukkan,Tanggal_Pembayaran,""), "") -> 2022-10-14 | D21: =IFERROR(IF(Pinjaman_Belum_Dibayar*Nilai_Dimasukkan,Saldo_Awal,""), "") -> Rp4,409.89 | E21: =IFERROR(IF(Pinjaman_Belum_Dibayar*Nilai_Dimasukkan,Pembayaran_Bulanan,""), "") -> Rp95.51 | F21: =IFERROR(IF(Pinjaman_Belum_Dibayar*Nilai_Dimasukkan,Pinjaman_Pokok,""), "") -> Rp75.29 | G21: =IFERROR(IF(Pinjaman_Belum_Dibayar*Nilai_Dimasukkan,Bunga,""), "") -> Rp2.59 | H21: =IFERROR(IF(Pinjaman_Belum_Dibayar*Nilai_Dimasukkan,Saldo_Akhir,""), "") -> Rp4,334.59
B22: =IFERROR(IF(Pinjaman_Belum_Dibayar*Nilai_Dimasukkan,Jumlah_Pembayaran1,""), "") -> 10 | C22: =IFERROR(IF(Pinjaman_Belum_Dibayar*Nilai_Dimasukkan,Tanggal_Pembayaran,""), "") -> 2022-11-14 | D22: =IFERROR(IF(Pinjaman_Belum_Dibayar*Nilai_Dimasukkan,Saldo_Awal,""), "") -> Rp4,334.59 | E22: =IFERROR(IF(Pinjaman_Belum_Dibayar*Nilai_Dimasukkan,Pembayaran_Bulanan,""), "") -> Rp95.51 | F22: =IFERROR(IF(Pinjaman_Belum_Dibayar*Nilai_Dimasukkan,Pinjaman_Pokok,""), "") -> Rp75.64 | G22: =IFERROR(IF(Pinjaman_Belum_Dibayar*Nilai_Dimasukkan,Bunga,""), "") -> Rp2.34 | H22: =IFERROR(IF(Pinjaman_Belum_Dibayar*Nilai_Dimasukkan,Saldo_Akhir,""), "") -> Rp4,258.95
B23: =IFERROR(IF(Pinjaman_Belum_Dibayar*Nilai_Dimasukkan,Jumlah_Pembayaran1,""), "") -> 11 | C23: =IFERROR(IF(Pinjaman_Belum_Dibayar*Nilai_Dimasukkan,Tanggal_Pembayaran,""), "") -> 2022-12-14 | D23: =IFERROR(IF(Pinjaman_Belum_Dibayar*Nilai_Dimasukkan,Saldo_Awal,""), "") -> Rp4,258.95 | E23: =IFERROR(IF(Pinjaman_Belum_Dibayar*Nilai_Dimasukkan,Pembayaran_Bulanan,""), "") -> Rp95.51 | F23: =IFERROR(IF(Pinjaman_Belum_Dibayar*Nilai_Dimasukkan,Pinjaman_Pokok,""), "") -> Rp75.99 | G23: =IFERROR(IF(Pinjaman_Belum_Dibayar*Nilai_Dimasukkan,Bunga,""), "") -> Rp2.13 | H23: =IFERROR(IF(Pinjaman_Belum_Dibayar*Nilai_Dimasukkan,Saldo_Akhir,""), "") -> Rp4,182.97
B24: =IFERROR(IF(Pinjaman_Belum_Dibayar*Nilai_Dimasukkan,Jumlah_Pembayaran1,""), "") -> 12 | C24: =IFERROR(IF(Pinjaman_Belum_Dibayar*Nilai_Dimasukkan,Tanggal_Pembayaran,""), "") -> 2023-01-14 | D24: =IFERROR(IF(Pinjaman_Belum_Dibayar*Nilai_Dimasukkan,Saldo_Awal,""), "") -> Rp4,182.97 | E24: =IFERROR(IF(Pinjaman_Belum_Dibayar*Nilai_Dimasukkan,Pembayaran_Bulanan,""), "") -> Rp95.51 | F24: =IFERROR(IF(Pinjaman_Belum_Dibayar*Nilai_Dimasukkan,Pinjaman_Pokok,""), "") -> Rp76.33 | G24: =IFERROR(IF(Pinjaman_Belum_Dibayar*Nilai_Dimasukkan,Bunga,""), "") -> Rp1.96 | H24: =IFERROR(IF(Pinjaman_Belum_Dibayar*Nilai_Dimasukkan,Saldo_Akhir,""), "") -> Rp4,106.63
B25: =IFERROR(IF(Pinjaman_Belum_Dibayar*Nilai_Dimasukkan,Jumlah_Pembayaran1,""), "") -> 13 | C25: =IFERROR(IF(Pinjaman_Belum_Dibayar*Nilai_Dimasukkan,Tanggal_Pembayaran,""), "") -> 2023-02-14 | D25: =IFERROR(IF(Pinjaman_Belum_Dibayar*Nilai_Dimasukkan,Saldo_Awal,""), "") -> Rp4,106.63 | E25: =IFERROR(IF(Pinjaman_Belum_Dibayar*Nilai_Dimasukkan,Pembayaran_Bulanan,""), "") -> Rp95.51 | F25: =IFERROR(IF(Pinjaman_Belum_Dibayar*Nilai_Dimasukkan,Pinjaman_Pokok,""), "") -> Rp76.68 | G25: =IFERROR(IF(Pinjaman_Belum_Dibayar*Nilai_Dimasukkan,Bunga,""), "") -> Rp1.81 | H25: =IFERROR(IF(Pinjaman_Belum_Dibayar*Nilai_Dimasukkan,Saldo_Akhir,""), "") -> Rp4,029.95
B26: =IFERROR(IF(Pinjaman_Belum_Dibayar*Nilai_Dimasukkan,Jumlah_Pembayaran1,""), "") -> 14 | C26: =IFERROR(IF(Pinjaman_Belum_Dibayar*Nilai_Dimasukkan,Tanggal_Pembayaran,""), "") -> 2023-03-14 | D26: =IFERROR(IF(Pinjaman_Belum_Dibayar*Nilai_Dimasukkan,Saldo_Awal,""), "") -> Rp4,029.95 | E26: =IFERROR(IF(Pinjaman_Belum_Dibayar*Nilai_Dimasukkan,Pembayaran_Bulanan,""), "") -> Rp95.51 | F26: =IFERROR(IF(Pinjaman_Belum_Dibayar*Nilai_Dimasukkan,Pinjaman_Pokok,""), "") -> Rp77.04 | G26: =IFERROR(IF(Pinjaman_Belum_Dibayar*Nilai_Dimasukkan,Bunga,""), "") -> Rp1.69 | H26: =IFERROR(IF(Pinjaman_Belum_Dibayar*Nilai_Dimasukkan,Saldo_Akhir,""), "") -> Rp3,952.91
B27: =IFERROR(IF(Pinjaman_Belum_Dibayar*Nilai_Dimasukkan,Jumlah_Pembayaran1,""), "") -> 15 | C27: =IFERROR(IF(Pinjaman_Belum_Dibayar*Nilai_Dimasukkan,Tanggal_Pembayaran,""), "") -> 2023-04-14 | D27: =IFERROR(IF(Pinjaman_Belum_Dibayar*Nilai_Dimasukkan,Saldo_Awal,""), "") -> Rp3,952.91 | E27: =IFERROR(IF(Pinjaman_Belum_Dibayar*Nilai_Dimasukkan,Pembayaran_Bulanan,""), "") -> Rp95.51 | F27: =IFERROR(IF(Pinjaman_Belum_Dibayar*Nilai_Dimasukkan,Pinjaman_Pokok,""), "") -> Rp77.39 | G27: =IFERROR(IF(Pinjaman_Belum_Dibayar*Nilai_Dimasukkan,Bunga,""), "") -> Rp1.58 | H27: =IFERROR(IF(Pinjaman_Belum_Dibayar*Nilai_Dimasukkan,Saldo_Akhir,""), "") -> Rp3,875.53
B28: =IFERROR(IF(Pinjaman_Belum_Dibayar*Nilai_Dimasukkan,Jumlah_Pembayaran1,""), "") -> 16 | C28: =IFERROR(IF(Pinjaman_Belum_Dibayar*Nilai_Dimasukkan,Tanggal_Pembayaran,""), "") -> 2023-05-14 | D28: =IFERROR(IF(Pinjaman_Belum_Dibayar*Nilai_Dimasukkan,Saldo_Awal,""), "") -> Rp3,875.53 | E28: =IFERROR(IF(Pinjaman_Belum_Dibayar*Nilai_Dimasukkan,Pembayaran_Bulanan,""), "") -> Rp95.51 | F28: =IFERROR(IF(Pinjaman_Belum_Dibayar*Nilai_Dimasukkan,Pinjaman_Pokok,""), "") -> Rp77.74 | G28: =IFERROR(IF(Pinjaman_Belum_Dibayar*Nilai_Dimasukkan,Bunga,""), "") -> Rp1.48 | H28: =IFERROR(IF(Pinjaman_Belum_Dibayar*Nilai_Dimasukkan,Saldo_Akhir,""), "") -> Rp3,797.78
B29: =IFERROR(IF(Pinjaman_Belum_Dibayar*Nilai_Dimasukkan,Jumlah_Pembayaran1,""), "") -> 17 | C29: =IFERROR(IF(Pinjaman_Belum_Dibayar*Nilai_Dimasukkan,Tanggal_Pembayaran,""), "") -> 2023-06-14 | D29: =IFERROR(IF(Pinjaman_Belum_Dibayar*Nilai_Dimasukkan,Saldo_Awal,""), "") -> Rp3,797.78 | E29: =IFERROR(IF(Pinjaman_Belum_Dibayar*Nilai_Dimasukkan,Pembayaran_Bulanan,""), "") -> Rp95.51 | F29: =IFERROR(IF(Pinjaman_Belum_Dibayar*Nilai_Dimasukkan,Pinjaman_Pokok,""), "") -> Rp78.10 | G29: =IFERROR(IF(Pinjaman_Belum_Dibayar*Nilai_Dimasukkan,Bunga,""), "") -> Rp1.40 | H29: =IFERROR(IF(Pinjaman_Belum_Dibayar*Nilai_Dimasukkan,Saldo_Akhir,""), "") -> Rp3,719.68
B30: =IFERROR(IF(Pinjaman_Belum_Dibayar*Nilai_Dimasukkan,Jumlah_Pembayaran1,""), "") -> 18 | C30: =IFERROR(IF(Pinjaman_Belum_Dibayar*Nilai_Dimasukkan,Tanggal_Pembayaran,""), "") -> 2023-07-14 | D30: =IFERROR(IF(Pinjaman_Belum_Dibayar*Nilai_Dimasukkan,Saldo_Awal,""), "") -> Rp3,719.68 | E30: =IFERROR(IF(Pinjaman_Belum_Dibayar*Nilai_Dimasukkan,Pembayaran_Bulanan,""), "") -> Rp95.51 | F30: =IFERROR(IF(Pinjaman_Belum_Dibayar*Nilai_Dimasukkan,Pinjaman_Pokok,""), "") -> Rp78.46 | G30: =IFERROR(IF(Pinjaman_Belum_Dibayar*Nilai_Dimasukkan,Bunga,""), "") -> Rp1.32 | H30: =IFERROR(IF(Pinjaman_Belum_Dibayar*Nilai_Dimasukkan,Saldo_Akhir,""), "") -> Rp3,641.23
B31: =IFERROR(IF(Pinjaman_Belum_Dibayar*Nilai_Dimasukkan,Jumlah_Pembayaran1,""), "") -> 19 | C31: =IFERROR(IF(Pinjaman_Belum_Dibayar*Nilai_Dimasukkan,Tanggal_Pembayaran,""), "") -> 2023-08-14 | D31: =IFERROR(IF(Pinjaman_Belum_Dibayar*Nilai_Dimasukkan,Saldo_Awal,""), "") -> Rp3,641.23 | E31: =IFERROR(IF(Pinjaman_Belum_Dibayar*Nilai_Dimasukkan,Pembayaran_Bulanan,""), "") -> Rp95.51 | F31: =IFERROR(IF(Pinjaman_Belum_Dibayar*Nilai_Dimasukkan,Pinjaman_Pokok,""), "") -> Rp78.82 | G31: =IFERROR(IF(Pinjaman_Belum_Dibayar*Nilai_Dimasukkan,Bunga,""), "") -> Rp1.26 | H31: =IFERROR(IF(Pinjaman_Belum_Dibayar*Nilai_Dimasukkan,Saldo_Akhir,""), "") -> Rp3,562.41
B32: =IFERROR(IF(Pinjaman_Belum_Dibayar*Nilai_Dimasukkan,Jumlah_Pembayaran1,""), "") -> 20 | C32: =IFERROR(IF(Pinjaman_Belum_Dibayar*Nilai_Dimasukkan,Tanggal_Pembayaran,""), "") -> 2023-09-14 | D32: =IFERROR(IF(Pinjaman_Belum_Dibayar*Nilai_Dimasukkan,Saldo_Awal,""), "") -> Rp3,562.41 | E32: =IFERROR(IF(Pinjaman_Belum_Dibayar*Nilai_Dimasukkan,Pembayaran_Bulanan,""), "") -> Rp95.51 | F32: =IFERROR(IF(Pinjaman_Belum_Dibayar*Nilai_Dimasukkan,Pinjaman_Pokok,""), "") -> Rp79.18 | G32: =IFERROR(IF(Pinjaman_Belum_Dibayar*Nilai_Dimasukkan,Bunga,""), "") -> Rp1.20 | H32: =IFERROR(IF(Pinjaman_Belum_Dibayar*Nilai_Dimasukkan,Saldo_Akhir,""), "") -> Rp3,483.23
B33: =IFERROR(IF(Pinjaman_Belum_Dibayar*Nilai_Dimasukkan,Jumlah_Pembayaran1,""), "") -> 21 | C33: =IFERROR(IF(Pinjaman_Belum_Dibayar*Nilai_Dimasukkan,Tanggal_Pembayaran,""), "") -> 2023-10-14 | D33: =IFERROR(IF(Pinjaman_Belum_Dibayar*Nilai_Dimasukkan,Saldo_Awal,""), "") -> Rp3,483.23 | E33: =IFERROR(IF(Pinjaman_Belum_Dibayar*Nilai_Dimasukkan,Pembayaran_Bulanan,""), "") -> Rp95.51 | F33: =IFERROR(IF(Pinjaman_Belum_Dibayar*Nilai_Dimasukkan,Pinjaman_Pokok,""), "") -> Rp79.54 | G33: =IFERROR(IF(Pinjaman_Belum_Dibayar*Nilai_Dimasukkan,Bunga,""), "") -> Rp1.14 | H33: =IFERROR(IF(Pinjaman_Belum_Dibayar*Nilai_Dimasukkan,Saldo_Akhir,""), "") -> Rp3,403.69
B34: =IFERROR(IF(Pinjaman_Belum_Dibayar*Nilai_Dimasukkan,Jumlah_Pembayaran1,""), "") -> 22 | C34: =IFERROR(IF(Pinjaman_Belum_Dibayar*Nilai_Dimasukkan,Tanggal_Pembayaran,""), "") -> 2023-11-14 | D34: =IFERROR(IF(Pinjaman_Belum_Dibayar*Nilai_Dimasukkan,Saldo_Awal,""), "") -> Rp3,403.69 | E34: =IFERROR(IF(Pinjaman_Belum_Dibayar*Nilai_Dimasukkan,Pembayaran_Bulanan,""), "") -> Rp95.51 | F34: =IFERROR(IF(Pinjaman_Belum_Dibayar*Nilai_Dimasukkan,Pinjaman_Pokok,""), "") -> Rp79.91 | G34: =IFERROR(IF(Pinjaman_Belum_Dibayar*Nilai_Dimasukkan,Bunga,""), "") -> Rp1.09 | H34: =IFERROR(IF(Pinjaman_Belum_Dibayar*Nilai_Dimasukkan,Saldo_Akhir,""), "") -> Rp3,323.78
B35: =IFERROR(IF(Pinjaman_Belum_Dibayar*Nilai_Dimasukkan,Jumlah_Pembayaran1,""), "") -> 23 | C35: =IFERROR(IF(Pinjaman_Belum_Dibayar*Nilai_Dimasukkan,Tanggal_Pembayaran,""), "") -> 2023-12-14 | D35: =IFERROR(IF(Pinjaman_Belum_Dibayar*Nilai_Dimasukkan,Saldo_Awal,""), "") -> Rp3,323.78 | E35: =IFERROR(IF(Pinjaman_Belum_Dibayar*Nilai_Dimasukkan,Pembayaran_Bulanan,""), "") -> Rp95.51 | F35: =IFERROR(IF(Pinjaman_Belum_Dibayar*Nilai_Dimasukkan,Pinjaman_Pokok,""), "") -> Rp80.27 | G35: =IFERROR(IF(Pinjaman_Belum_Dibayar*Nilai_Dimasukkan,Bunga,""), "") -> Rp1.05 | H35: =IFERROR(IF(Pinjaman_Belum_Dibayar*Nilai_Dimasukkan,Saldo_Akhir,""), "") -> Rp3,243.51
B36: =IFERROR(IF(Pinjaman_Belum_Dibayar*Nilai_Dimasukkan,Jumlah_Pembayaran1,""), "") -> 24 | C36: =IFERROR(IF(Pinjaman_Belum_Dibayar*Nilai_Dimasukkan,Tanggal_Pembayaran,""), "") -> 2024-01-14 | D36: =IFERROR(IF(Pinjaman_Belum_Dibayar*Nilai_Dimasukkan,Saldo_Awal,""), "") -> Rp3,243.51 | E36: =IFERROR(IF(Pinjaman_Belum_Dibayar*Nilai_Dimasukkan,Pembayaran_Bulanan,""), "") -> Rp95.51 | F36: =IFERROR(IF(Pinjaman_Belum_Dibayar*Nilai_Dimasukkan,Pinjaman_Pokok,""), "") -> Rp80.64 | G36: =IFERROR(IF(Pinjaman_Belum_Dibayar*Nilai_Dimasukkan,Bunga,""), "") -> Rp1.01 | H36: =IFERROR(IF(Pinjaman_Belum_Dibayar*Nilai_Dimasukkan,Saldo_Akhir,""), "") -> Rp3,162.87
B37: =IFERROR(IF(Pinjaman_Belum_Dibayar*Nilai_Dimasukkan,Jumlah_Pembayaran1,""), "") -> 25 | C37: =IFERROR(IF(Pinjaman_Belum_Dibayar*Nilai_Dimasukkan,Tanggal_Pembayaran,""), "") -> 2024-02-14 | D37: =IFERROR(IF(Pinjaman_Belum_Dibayar*Nilai_Dimasukkan,Saldo_Awal,""), "") -> Rp3,162.87 | E37: =IFERROR(IF(Pinjaman_Belum_Dibayar*Nilai_Dimasukkan,Pembayaran_Bulanan,""), "") -> Rp95.51 | F37: =IFERROR(IF(Pinjaman_Belum_Dibayar*Nilai_Dimasukkan,Pinjaman_Pokok,""), "") -> Rp81.01 | G37: =IFERROR(IF(Pinjaman_Belum_Dibayar*Nilai_Dimasukkan,Bunga,""), "") -> Rp0.97 | H37: =IFERROR(IF(Pinjaman_Belum_Dibayar*Nilai_Dimasukkan,Saldo_Akhir,""), "") -> Rp3,081.86
B38: =IFERROR(IF(Pinjaman_Belum_Dibayar*Nilai_Dimasukkan,Jumlah_Pembayaran1,""), "") -> 26 | C38: =IFERROR(IF(Pinjaman_Belum_Dibayar*Nilai_Dimasukkan,Tanggal_Pembayaran,""), "") -> 2024-03-14 | D38: =IFERROR(IF(Pinjaman_Belum_Dibayar*Nilai_Dimasukkan,Saldo_Awal,""), "") -> Rp3,081.86 | E38: =IFERROR(IF(Pinjaman_Belum_Dibayar*Nilai_Dimasukkan,Pembayaran_Bulanan,""), "") -> Rp95.51 | F38: =IFERROR(IF(Pinjaman_Belum_Dibayar*Nilai_Dimasukkan,Pinjaman_Pokok,""), "") -> Rp81.38 | G38: =IFERROR(IF(Pinjaman_Belum_Dibayar*Nilai_Dimasukkan,Bunga,""), "") -> Rp0.93 | H38: =IFERROR(IF(Pinjaman_Belum_Dibayar*Nilai_Dimasukkan,Saldo_Akhir,""), "") -> Rp3,000.48
B39: =IFERROR(IF(Pinjaman_Belum_Dibayar*Nilai_Dimasukkan,Jumlah_Pembayaran1,""), "") -> 27 | C39: =IFERROR(IF(Pinjaman_Belum_Dibayar*Nilai_Dimasukkan,Tanggal_Pembayaran,""), "") -> 2024-04-14 | D39: =IFERROR(IF(Pinjaman_Belum_Dibayar*Nilai_Dimasukkan,Saldo_Awal,""), "") -> Rp3,000.48 | E39: =IFERROR(IF(Pinjaman_Belum_Dibayar*Nilai_Dimasukkan,Pembayaran_Bulanan,""), "") -> Rp95.51 | F39: =IFERROR(IF(Pinjaman_Belum_Dibayar*Nilai_Dimasukkan,Pinjaman_Pokok,""), "") -> Rp81.75 | G39: =IFERROR(IF(Pinjaman_Belum_Dibayar*Nilai_Dimasukkan,Bunga,""), "") -> Rp0.90 | H39: =IFERROR(IF(Pinjaman_Belum_Dibayar*Nilai_Dimasukkan,Saldo_Akhir,""), "") -> Rp2,918.73
B40: =IFERROR(IF(Pinjaman_Belum_Dibayar*Nilai_Dimasukkan,Jumlah_Pembayaran1,""), "") -> 28 | C40: =IFERROR(IF(Pinjaman_Belum_Dibayar*Nilai_Dimasukkan,Tanggal_Pembayaran,""), "") -> 2024-05-14 | D40: =IFERROR(IF(Pinjaman_Belum_Dibayar*Nilai_Dimasukkan,Saldo_Awal,""), "") -> Rp2,918.73 | E40: =IFERROR(IF(Pinjaman_Belum_Dibayar*Nilai_Dimasukkan,Pembayaran_Bulanan,""), "") -> Rp95.51 | F40: =IFERROR(IF(Pinjaman_Belum_Dibayar*Nilai_Dimasukkan,Pinjaman_Pokok,""), "") -> Rp82.13 | G40: =IFERROR(IF(Pinjaman_Belum_Dibayar*Nilai_Dimasukkan,Bunga,""), "") -> Rp0.87 | H40: =IFERROR(IF(Pinjaman_Belum_Dibayar*Nilai_Dimasukkan,Saldo_Akhir,""), "") -> Rp2,836.60
B41: =IFERROR(IF(Pinjaman_Belum_Dibayar*Nilai_Dimasukkan,Jumlah_Pembayaran1,""), "") -> 29 | C41: =IFERROR(IF(Pinjaman_Belum_Dibayar*Nilai_Dimasukkan,Tanggal_Pembayaran,""), "") -> 2024-06-14 | D41: =IFERROR(IF(Pinjaman_Belum_Dibayar*Nilai_Dimasukkan,Saldo_Awal,""), "") -> Rp2,836.60 | E41: =IFERROR(IF(Pinjaman_Belum_Dibayar*Nilai_Dimasukkan,Pembayaran_Bulanan,""), "") -> Rp95.51 | F41: =IFERROR(IF(Pinjaman_Belum_Dibayar*Nilai_Dimasukkan,Pinjaman_Pokok,""), "") -> Rp82.50 | G41: =IFERROR(IF(Pinjaman_Belum_Dibayar*Nilai_Dimasukkan,Bunga,""), "") -> Rp0.84 | H41: =IFERROR(IF(Pinjaman_Belum_Dibayar*Nilai_Dimasukkan,Saldo_Akhir,""), "") -> Rp2,754.10
B42: =IFERROR(IF(Pinjaman_Belum_Dibayar*Nilai_Dimasukkan,Jumlah_Pembayaran1,""), "") -> 30 | C42: =IFERROR(IF(Pinjaman_Belum_Dibayar*Nilai_Dimasukkan,Tanggal_Pembayaran,""), "") -> 2024-07-14 | D42: =IFERROR(IF(Pinjaman_Belum_Dibayar*Nilai_Dimasukkan,Saldo_Awal,""), "") -> Rp2,754.10 | E42: =IFERROR(IF(Pinjaman_Belum_Dibayar*Nilai_Dimasukkan,Pembayaran_Bulanan,""), "") -> Rp95.51 | F42: =IFERROR(IF(Pinjaman_Belum_Dibayar*Nilai_Dimasukkan,Pinjaman_Pokok,""), "") -> Rp82.88 | G42: =IFERROR(IF(Pinjaman_Belum_Dibayar*Nilai_Dimasukkan,Bunga,""), "") -> Rp0.82 | H42: =IFERROR(IF(Pinjaman_Belum_Dibayar*Nilai_Dimasukkan,Saldo_Akhir,""), "") -> Rp2,671.21
B43: =IFERROR(IF(Pinjaman_Belum_Dibayar*Nilai_Dimasukkan,Jumlah_Pembayaran1,""), "") -> 31 | C43: =IFERROR(IF(Pinjaman_Belum_Dibayar*Nilai_Dimasukkan,Tanggal_Pembayaran,""), "") -> 2024-08-14 | D43: =IFERROR(IF(Pinjaman_Belum_Dibayar*Nilai_Dimasukkan,Saldo_Awal,""), "") -> Rp2,671.21 | E43: =IFERROR(IF(Pinjaman_Belum_Dibayar*Nilai_Dimasukkan,Pembayaran_Bulanan,""), "") -> Rp95.51 | F43: =IFERROR(IF(Pinjaman_Belum_Dibayar*Nilai_Dimasukkan,Pinjaman_Pokok,""), "") -> Rp83.26 | G43: =IFERROR(IF(Pinjaman_Belum_Dibayar*Nilai_Dimasukkan,Bunga,""), "") -> Rp0.79 | H43: =IFERROR(IF(Pinjaman_Belum_Dibayar*Nilai_Dimasukkan,Saldo_Akhir,""), "") -> Rp2,587.95
B44: =IFERROR(IF(Pinjaman_Belum_Dibayar*Nilai_Dimasukkan,Jumlah_Pembayaran1,""), "") -> 32 | C44: =IFERROR(IF(Pinjaman_Belum_Dibayar*Nilai_Dimasukkan,Tanggal_Pembayaran,""), "") -> 2024-09-14 | D44: =IFERROR(IF(Pinjaman_Belum_Dibayar*Nilai_Dimasukkan,Saldo_Awal,""), "") -> Rp2,587.95 | E44: =IFERROR(IF(Pinjaman_Belum_Dibayar*Nilai_Dimasukkan,Pembayaran_Bulanan,""), "") -> Rp95.51 | F44: =IFERROR(IF(Pinjaman_Belum_Dibayar*Nilai_Dimasukkan,Pinjaman_Pokok,""), "") -> Rp83.64 | G44: =IFERROR(IF(Pinjaman_Belum_Dibayar*Nilai_Dimasukkan,Bunga,""), "") -> Rp0.77 | H44: =IFERROR(IF(Pinjaman_Belum_Dibayar*Nilai_Dimasukkan,Saldo_Akhir,""), "") -> Rp2,504.31
B45: =IFERROR(IF(Pinjaman_Belum_Dibayar*Nilai_Dimasukkan,Jumlah_Pembayaran1,""), "") -> 33 | C45: =IFERROR(IF(Pinjaman_Belum_Dibayar*Nilai_Dimasukkan,Tanggal_Pembayaran,""), "") -> 2024-10-14 | D45: =IFERROR(IF(Pinjaman_Belum_Dibayar*Nilai_Dimasukkan,Saldo_Awal,""), "") -> Rp2,504.31 | E45: =IFERROR(IF(Pinjaman_Belum_Dibayar*Nilai_Dimasukkan,Pembayaran_Bulanan,""), "") -> Rp95.51 | F45: =IFERROR(IF(Pinjaman_Belum_Dibayar*Nilai_Dimasukkan,Pinjaman_Pokok,""), "") -> Rp84.03 | G45: =IFERROR(IF(Pinjaman_Belum_Dibayar*Nilai_Dimasukkan,Bunga,""), "") -> Rp0.75 | H45: =IFERROR(IF(Pinjaman_Belum_Dibayar*Nilai_Dimasukkan,Saldo_Akhir,""), "") -> Rp2,420.28
B46: =IFERROR(IF(Pinjaman_Belum_Dibayar*Nilai_Dimasukkan,Jumlah_Pembayaran1,""), "") -> 34 | C46: =IFERROR(IF(Pinjaman_Belum_Dibayar*Nilai_Dimasukkan,Tanggal_Pembayaran,""), "") -> 2024-11-14 | D46: =IFERROR(IF(Pinjaman_Belum_Dibayar*Nilai_Dimasukkan,Saldo_Awal,""), "") -> Rp2,420.28 | E46: =IFERROR(IF(Pinjaman_Belum_Dibayar*Nilai_Dimasukkan,Pembayaran_Bulanan,""), "") -> Rp95.51 | F46: =IFERROR(IF(Pinjaman_Belum_Dibayar*Nilai_Dimasukkan,Pinjaman_Pokok,""), "") -> Rp84.41 | G46: =IFERROR(IF(Pinjaman_Belum_Dibayar*Nilai_Dimasukkan,Bunga,""), "") -> Rp0.73 | H46: =IFERROR(IF(Pinjaman_Belum_Dibayar*Nilai_Dimasukkan,Saldo_Akhir,""), "") -> Rp2,335.87
B47: =IFERROR(IF(Pinjaman_Belum_Dibayar*Nilai_Dimasukkan,Jumlah_Pembayaran1,""), "") -> 35 | C47: =IFERROR(IF(Pinjaman_Belum_Dibayar*Nilai_Dimasukkan,Tanggal_Pembayaran,""), "") -> 2024-12-14 | D47: =IFERROR(IF(Pinjaman_Belum_Dibayar*Nilai_Dimasukkan,Saldo_Awal,""), "") -> Rp2,335.87 | E47: =IFERROR(IF(Pinjaman_Belum_Dibayar*Nilai_Dimasukkan,Pembayaran_Bulanan,""), "") -> Rp95.51 | F47: =IFERROR(IF(Pinjaman_Belum_Dibayar*Nilai_Dimasukkan,Pinjaman_Pokok,""), "") -> Rp84.80 | G47: =IFERROR(IF(Pinjaman_Belum_Dibayar*Nilai_Dimasukkan,Bunga,""), "") -> Rp0.71 | H47: =IFERROR(IF(Pinjaman_Belum_Dibayar*Nilai_Dimasukkan,Saldo_Akhir,""), "") -> Rp2,251.07
B48: =IFERROR(IF(Pinjaman_Belum_Dibayar*Nilai_Dimasukkan,Jumlah_Pembayaran1,""), "") -> 36 | C48: =IFERROR(IF(Pinjaman_Belum_Dibayar*Nilai_Dimasukkan,Tanggal_Pembayaran,""), "") -> 2025-01-14 | D48: =IFERROR(IF(Pinjaman_Belum_Dibayar*Nilai_Dimasukkan,Saldo_Awal,""), "") -> Rp2,251.07 | E48: =IFERROR(IF(Pinjaman_Belum_Dibayar*Nilai_Dimasukkan,Pembayaran_Bulanan,""), "") -> Rp95.51 | F48: =IFERROR(IF(Pinjaman_Belum_Dibayar*Nilai_Dimasukkan,Pinjaman_Pokok,""), "") -> Rp85.19 | G48: =IFERROR(IF(Pinjaman_Belum_Dibayar*Nilai_Dimasukkan,Bunga,""), "") -> Rp0.69 | H48: =IFERROR(IF(Pinjaman_Belum_Dibayar*Nilai_Dimasukkan,Saldo_Akhir,""), "") -> Rp2,165.88
B49: =IFERROR(IF(Pinjaman_Belum_Dibayar*Nilai_Dimasukkan,Jumlah_Pembayaran1,""), "") -> 37 | C49: =IFERROR(IF(Pinjaman_Belum_Dibayar*Nilai_Dimasukkan,Tanggal_Pembayaran,""), "") -> 2025-02-14 | D49: =IFERROR(IF(Pinjaman_Belum_Dibayar*Nilai_Dimasukkan,Saldo_Awal,""), "") -> Rp2,165.88 | E49: =IFERROR(IF(Pinjaman_Belum_Dibayar*Nilai_Dimasukkan,Pembayaran_Bulanan,""), "") -> Rp95.51 | F49: =IFERROR(IF(Pinjaman_Belum_Dibayar*Nilai_Dimasukkan,Pinjaman_Pokok,""), "") -> Rp85.58 | G49: =IFERROR(IF(Pinjaman_Belum_Dibayar*Nilai_Dimasukkan,Bunga,""), "") -> Rp0.67 | H49: =IFERROR(IF(Pinjaman_Belum_Dibayar*Nilai_Dimasukkan,Saldo_Akhir,""), "") -> Rp2,080.30
B50: =IFERROR(IF(Pinjaman_Belum_Dibayar*Nilai_Dimasukkan,Jumlah_Pembayaran1,""), "") -> 38 | C50: =IFERROR(IF(Pinjaman_Belum_Dibayar*Nilai_Dimasukkan,Tanggal_Pembayaran,""), "") -> 2025-03-14 | D50: =IFERROR(IF(Pinjaman_Belum_Dibayar*Nilai_Dimasukkan,Saldo_Awal,""), "") -> Rp2,080.30 | E50: =IFERROR(IF(Pinjaman_Belum_Dibayar*Nilai_Dimasukkan,Pembayaran_Bulanan,""), "") -> Rp95.51 | F50: =IFERROR(IF(Pinjaman_Belum_Dibayar*Nilai_Dimasukkan,Pinjaman_Pokok,""), "") -> Rp85.97 | G50: =IFERROR(IF(Pinjaman_Belum_Dibayar*Nilai_Dimasukkan,Bunga,""), "") -> Rp0.66 | H50: =IFERROR(IF(Pinjaman_Belum_Dibayar*Nilai_Dimasukkan,Saldo_Akhir,""), "") -> Rp1,994.33
B51: =IFERROR(IF(Pinjaman_Belum_Dibayar*Nilai_Dimasukkan,Jumlah_Pembayaran1,""), "") -> 39 | C51: =IFERROR(IF(Pinjaman_Belum_Dibayar*Nilai_Dimasukkan,Tanggal_Pembayaran,""), "") -> 2025-04-14 | D51: =IFERROR(IF(Pinjaman_Belum_Dibayar*Nilai_Dimasukkan,Saldo_Awal,""), "") -> Rp1,994.33 | E51: =IFERROR(IF(Pinjaman_Belum_Dibayar*Nilai_Dimasukkan,Pembayaran_Bulanan,""), "") -> Rp95.51 | F51: =IFERROR(IF(Pinjaman_Belum_Dibayar*Nilai_Dimasukkan,Pinjaman_Pokok,""), "") -> Rp86.37 | G51: =IFERROR(IF(Pinjaman_Belum_Dibayar*Nilai_Dimasukkan,Bunga,""), "") -> Rp0.64 | H51: =IFERROR(IF(Pinjaman_Belum_Dibayar*Nilai_Dimasukkan,Saldo_Akhir,""), "") -> Rp1,907.96
B52: =IFERROR(IF(Pinjaman_Belum_Dibayar*Nilai_Dimasukkan,Jumlah_Pembayaran1,""), "") -> 40 | C52: =IFERROR(IF(Pinjaman_Belum_Dibayar*Nilai_Dimasukkan,Tanggal_Pembayaran,""), "") -> 2025-05-14 | D52: =IFERROR(IF(Pinjaman_Belum_Dibayar*Nilai_Dimasukkan,Saldo_Awal,""), "") -> Rp1,907.96 | E52: =IFERROR(IF(Pinjaman_Belum_Dibayar*Nilai_Dimasukkan,Pembayaran_Bulanan,""), "") -> Rp95.51 | F52: =IFERROR(IF(Pinjaman_Belum_Dibayar*Nilai_Dimasukkan,Pinjaman_Pokok,""), "") -> Rp86.76 | G52: =IFERROR(IF(Pinjaman_Belum_Dibayar*Nilai_Dimasukkan,Bunga,""), "") -> Rp0.63 | H52: =IFERROR(IF(Pinjaman_Belum_Dibayar*Nilai_Dimasukkan,Saldo_Akhir,""), "") -> Rp1,821.20
B53: =IFERROR(IF(Pinjaman_Belum_Dibayar*Nilai_Dimasukkan,Jumlah_Pembayaran1,""), "") -> 41 | C53: =IFERROR(IF(Pinjaman_Belum_Dibayar*Nilai_Dimasukkan,Tanggal_Pembayaran,""), "") -> 2025-06-14 | D53: =IFERROR(IF(Pinjaman_Belum_Dibayar*Nilai_Dimasukkan,Saldo_Awal,""), "") -> Rp1,821.20 | E53: =IFERROR(IF(Pinjaman_Belum_Dibayar*Nilai_Dimasukkan,Pembayaran_Bulanan,""), "") -> Rp95.51 | F53: =IFERROR(IF(Pinjaman_Belum_Dibayar*Nilai_Dimasukkan,Pinjaman_Pokok,""), "") -> Rp87.16 | G53: =IFERROR(IF(Pinjaman_Belum_Dibayar*Nilai_Dimasukkan,Bunga,""), "") -> Rp0.61 | H53: =IFERROR(IF(Pinjaman_Belum_Dibayar*Nilai_Dimasukkan,Saldo_Akhir,""), "") -> Rp1,734.04
B54: =IFERROR(IF(Pinjaman_Belum_Dibayar*Nilai_Dimasukkan,Jumlah_Pembayaran1,""), "") -> 42 | C54: =IFERROR(IF(Pinjaman_Belum_Dibayar*Nilai_Dimasukkan,Tanggal_Pembayaran,""), "") -> 2025-07-14 | D54: =IFERROR(IF(Pinjaman_Belum_Dibayar*Nilai_Dimasukkan,Saldo_Awal,""), "") -> Rp1,734.04 | E54: =IFERROR(IF(Pinjaman_Belum_Dibayar*Nilai_Dimasukkan,Pembayaran_Bulanan,""), "") -> Rp95.51 | F54: =IFERROR(IF(Pinjaman_Belum_Dibayar*Nilai_Dimasukkan,Pinjaman_Pokok,""), "") -> Rp87.56 | G54: =IFERROR(IF(Pinjaman_Belum_Dibayar*Nilai_Dimasukkan,Bunga,""), "") -> Rp0.60 | H54: =IFERROR(IF(Pinjaman_Belum_Dibayar*Nilai_Dimasukkan,Saldo_Akhir,""), "") -> Rp1,646.49
B55: =IFERROR(IF(Pinjaman_Belum_Dibayar*Nilai_Dimasukkan,Jumlah_Pembayaran1,""), "") -> 43 | C55: =IFERROR(IF(Pinjaman_Belum_Dibayar*Nilai_Dimasukkan,Tanggal_Pembayaran,""), "") -> 2025-08-14 | D55: =IFERROR(IF(Pinjaman_Belum_Dibayar*Nilai_Dimasukkan,Saldo_Awal,""), "") -> Rp1,646.49 | E55: =IFERROR(IF(Pinjaman_Belum_Dibayar*Nilai_Dimasukkan,Pembayaran_Bulanan,""), "") -> Rp95.51 | F55: =IFERROR(IF(Pinjaman_Belum_Dibayar*Nilai_Dimasukkan,Pinjaman_Pokok,""), "") -> Rp87.96 | G55: =IFERROR(IF(Pinjaman_Belum_Dibayar*Nilai_Dimasukkan,Bunga,""), "") -> Rp0.59 | H55: =IFERROR(IF(Pinjaman_Belum_Dibayar*Nilai_Dimasukkan,Saldo_Akhir,""), "") -> Rp1,558.53
B56: =IFERROR(IF(Pinjaman_Belum_Dibayar*Nilai_Dimasukkan,Jumlah_Pembayaran1,""), "") -> 44 | C56: =IFERROR(IF(Pinjaman_Belum_Dibayar*Nilai_Dimasukkan,Tanggal_Pembayaran,""), "") -> 2025-09-14 | D56: =IFERROR(IF(Pinjaman_Belum_Dibayar*Nilai_Dimasukkan,Saldo_Awal,""), "") -> Rp1,558.53 | E56: =IFERROR(IF(Pinjaman_Belum_Dibayar*Nilai_Dimasukkan,Pembayaran_Bulanan,""), "") -> Rp95.51 | F56: =IFERROR(IF(Pinjaman_Belum_Dibayar*Nilai_Dimasukkan,Pinjaman_Pokok,""), "") -> Rp88.36 | G56: =IFERROR(IF(Pinjaman_Belum_Dibayar*Nilai_Dimasukkan,Bunga,""), "") -> Rp0.57 | H56: =IFERROR(IF(Pinjaman_Belum_Dibayar*Nilai_Dimasukkan,Saldo_Akhir,""), "") -> Rp1,470.16
B57: =IFERROR(IF(Pinjaman_Belum_Dibayar*Nilai_Dimasukkan,Jumlah_Pembayaran1,""), "") -> 45 | C57: =IFERROR(IF(Pinjaman_Belum_Dibayar*Nilai_Dimasukkan,Tanggal_Pembayaran,""), "") -> 2025-10-14 | D57: =IFERROR(IF(Pinjaman_Belum_Dibayar*Nilai_Dimasukkan,Saldo_Awal,""), "") -> Rp1,470.16 | E57: =IFERROR(IF(Pinjaman_Belum_Dibayar*Nilai_Dimasukkan,Pembayaran_Bulanan,""), "") -> Rp95.51 | F57: =IFERROR(IF(Pinjaman_Belum_Dibayar*Nilai_Dimasukkan,Pinjaman_Pokok,""), "") -> Rp88.77 | G57: =IFERROR(IF(Pinjaman_Belum_Dibayar*Nilai_Dimasukkan,Bunga,""), "") -> Rp0.56 | H57: =IFERROR(IF(Pinjaman_Belum_Dibayar*Nilai_Dimasukkan,Saldo_Akhir,""), "") -> Rp1,381.40
B58: =IFERROR(IF(Pinjaman_Belum_Dibayar*Nilai_Dimasukkan,Jumlah_Pembayaran1,""), "") -> 46 | C58: =IFERROR(IF(Pinjaman_Belum_Dibayar*Nilai_Dimasukkan,Tanggal_Pembayaran,""), "") -> 2025-11-14 | D58: =IFERROR(IF(Pinjaman_Belum_Dibayar*Nilai_Dimasukkan,Saldo_Awal,""), "") -> Rp1,381.40 | E58: =IFERROR(IF(Pinjaman_Belum_Dibayar*Nilai_Dimasukkan,Pembayaran_Bulanan,""), "") -> Rp95.51 | F58: =IFERROR(IF(Pinjaman_Belum_Dibayar*Nilai_Dimasukkan,Pinjaman_Pokok,""), "") -> Rp89.17 | G58: =IFERROR(IF(Pinjaman_Belum_Dibayar*Nilai_Dimasukkan,Bunga,""), "") -> Rp0.55 | H58: =IFERROR(IF(Pinjaman_Belum_Dibayar*Nilai_Dimasukkan,Saldo_Akhir,""), "") -> Rp1,292.22
B59: =IFERROR(IF(Pinjaman_Belum_Dibayar*Nilai_Dimasukkan,Jumlah_Pembayaran1,""), "") -> 47 | C59: =IFERROR(IF(Pinjaman_Belum_Dibayar*Nilai_Dimasukkan,Tanggal_Pembayaran,""), "") -> 2025-12-14 | D59: =IFERROR(IF(Pinjaman_Belum_Dibayar*Nilai_Dimasukkan,Saldo_Awal,""), "") -> Rp1,292.22 | E59: =IFERROR(IF(Pinjaman_Belum_Dibayar*Nilai_Dimasukkan,Pembayaran_Bulanan,""), "") -> Rp95.51 | F59: =IFERROR(IF(Pinjaman_Belum_Dibayar*Nilai_Dimasukkan,Pinjaman_Pokok,""), "") -> Rp89.58 | G59: =IFERROR(IF(Pinjaman_Belum_Dibayar*Nilai_Dimasukkan,Bunga,""), "") -> Rp0.54 | H59: =IFERROR(IF(Pinjaman_Belum_Dibayar*Nilai_Dimasukkan,Saldo_Akhir,""), "") -> Rp1,202.64
B60: =IFERROR(IF(Pinjaman_Belum_Dibayar*Nilai_Dimasukkan,Jumlah_Pembayaran1,""), "") -> 48 | C60: =IFERROR(IF(Pinjaman_Belum_Dibayar*Nilai_Dimasukkan,Tanggal_Pembayaran,""), "") -> 2026-01-14 | D60: =IFERROR(IF(Pinjaman_Belum_Dibayar*Nilai_Dimasukkan,Saldo_Awal,""), "") -> Rp1,202.64 | E60: =IFERROR(IF(Pinjaman_Belum_Dibayar*Nilai_Dimasukkan,Pembayaran_Bulanan,""), "") -> Rp95.51 | F60: =IFERROR(IF(Pinjaman_Belum_Dibayar*Nilai_Dimasukkan,Pinjaman_Pokok,""), "") -> Rp89.99 | G60: =IFERROR(IF(Pinjaman_Belum_Dibayar*Nilai_Dimasukkan,Bunga,""), "") -> Rp0.53 | H60: =IFERROR(IF(Pinjaman_Belum_Dibayar*Nilai_Dimasukkan,Saldo_Akhir,""), "") -> Rp1,112.64
B61: =IFERROR(IF(Pinjaman_Belum_Dibayar*Nilai_Dimasukkan,Jumlah_Pembayaran1,""), "") -> 49 | C61: =IFERROR(IF(Pinjaman_Belum_Dibayar*Nilai_Dimasukkan,Tanggal_Pembayaran,""), "") -> 2026-02-14 | D61: =IFERROR(IF(Pinjaman_Belum_Dibayar*Nilai_Dimasukkan,Saldo_Awal,""), "") -> Rp1,112.64 | E61: =IFERROR(IF(Pinjaman_Belum_Dibayar*Nilai_Dimasukkan,Pembayaran_Bulanan,""), "") -> Rp95.51 | F61: =IFERROR(IF(Pinjaman_Belum_Dibayar*Nilai_Dimasukkan,Pinjaman_Pokok,""), "") -> Rp90.41 | G61: =IFERROR(IF(Pinjaman_Belum_Dibayar*Nilai_Dimasukkan,Bunga,""), "") -> Rp0.52 | H61: =IFERROR(IF(Pinjaman_Belum_Dibayar*Nilai_Dimasukkan,Saldo_Akhir,""), "") -> Rp1,022.24
B62: =IFERROR(IF(Pinjaman_Belum_Dibayar*Nilai_Dimasukkan,Jumlah_Pembayaran1,""), "") -> 50 | C62: =IFERROR(IF(Pinjaman_Belum_Dibayar*Nilai_Dimasukkan,Tanggal_Pembayaran,""), "") -> 2026-03-14 | D62: =IFERROR(IF(Pinjaman_Belum_Dibayar*Nilai_Dimasukkan,Saldo_Awal,""), "") -> Rp1,022.24 | E62: =IFERROR(IF(Pinjaman_Belum_Dibayar*Nilai_Dimasukkan,Pembayaran_Bulanan,""), "") -> Rp95.51 | F62: =IFERROR(IF(Pinjaman_Belum_Dibayar*Nilai_Dimasukkan,Pinjaman_Pokok,""), "") -> Rp90.82 | G62: =IFERROR(IF(Pinjaman_Belum_Dibayar*Nilai_Dimasukkan,Bunga,""), "") -> Rp0.51 | H62: =IFERROR(IF(Pinjaman_Belum_Dibayar*Nilai_Dimasukkan,Saldo_Akhir,""), "") -> Rp931.42
B63: =IFERROR(IF(Pinjaman_Belum_Dibayar*Nilai_Dimasukkan,Jumlah_Pembayaran1,""), "") -> 51 | C63: =IFERROR(IF(Pinjaman_Belum_Dibayar*Nilai_Dimasukkan,Tanggal_Pembayaran,""), "") -> 2026-04-14 | D63: =IFERROR(IF(Pinjaman_Belum_Dibayar*Nilai_Dimasukkan,Saldo_Awal,""), "") -> Rp931.42 | E63: =IFERROR(IF(Pinjaman_Belum_Dibayar*Nilai_Dimasukkan,Pembayaran_Bulanan,""), "") -> Rp95.51 | F63: =IFERROR(IF(Pinjaman_Belum_Dibayar*Nilai_Dimasukkan,Pinjaman_Pokok,""), "") -> Rp91.24 | G63: =IFERROR(IF(Pinjaman_Belum_Dibayar*Nilai_Dimasukkan,Bunga,""), "") -> Rp0.50 | H63: =IFERROR(IF(Pinjaman_Belum_Dibayar*Nilai_Dimasukkan,Saldo_Akhir,""), "") -> Rp840.18
B64: =IFERROR(IF(Pinjaman_Belum_Dibayar*Nilai_Dimasukkan,Jumlah_Pembayaran1,""), "") -> 52 | C64: =IFERROR(IF(Pinjaman_Belum_Dibayar*Nilai_Dimasukkan,Tanggal_Pembayaran,""), "") -> 2026-05-14 | D64: =IFERROR(IF(Pinjaman_Belum_Dibayar*Nilai_Dimasukkan,Saldo_Awal,""), "") -> Rp840.18 | E64: =IFERROR(IF(Pinjaman_Belum_Dibayar*Nilai_Dimasukkan,Pembayaran_Bulanan,""), "") -> Rp95.51 | F64: =IFERROR(IF(Pinjaman_Belum_Dibayar*Nilai_Dimasukkan,Pinjaman_Pokok,""), "") -> Rp91.65 | G64: =IFERROR(IF(Pinjaman_Belum_Dibayar*Nilai_Dimasukkan,Bunga,""), "") -> Rp0.49 | H64: =IFERROR(IF(Pinjaman_Belum_Dibayar*Nilai_Dimasukkan,Saldo_Akhir,""), "") -> Rp748.53
B65: =IFERROR(IF(Pinjaman_Belum_Dibayar*Nilai_Dimasukkan,Jumlah_Pembayaran1,""), "") -> 53 | C65: =IFERROR(IF(Pinjaman_Belum_Dibayar*Nilai_Dimasukkan,Tanggal_Pembayaran,""), "") -> 2026-06-14 | D65: =IFERROR(IF(Pinjaman_Belum_Dibayar*Nilai_Dimasukkan,Saldo_Awal,""), "") -> Rp748.53 | E65: =IFERROR(IF(Pinjaman_Belum_Dibayar*Nilai_Dimasukkan,Pembayaran_Bulanan,""), "") -> Rp95.51 | F65: =IFERROR(IF(Pinjaman_Belum_Dibayar*Nilai_Dimasukkan,Pinjaman_Pokok,""), "") -> Rp92.08 | G65: =IFERROR(IF(Pinjaman_Belum_Dibayar*Nilai_Dimasukkan,Bunga,""), "") -> Rp0.49 | H65: =IFERROR(IF(Pinjaman_Belum_Dibayar*Nilai_Dimasukkan,Saldo_Akhir,""), "") -> Rp656.45
B66: =IFERROR(IF(Pinjaman_Belum_Dibayar*Nilai_Dimasukkan,Jumlah_Pembayaran1,""), "") -> 54 | C66: =IFERROR(IF(Pinjaman_Belum_Dibayar*Nilai_Dimasukkan,Tanggal_Pembayaran,""), "") -> 2026-07-14 | D66: =IFERROR(IF(Pinjaman_Belum_Dibayar*Nilai_Dimasukkan,Saldo_Awal,""), "") -> Rp656.45 | E66: =IFERROR(IF(Pinjaman_Belum_Dibayar*Nilai_Dimasukkan,Pembayaran_Bulanan,""), "") -> Rp95.51 | F66: =IFERROR(IF(Pinjaman_Belum_Dibayar*Nilai_Dimasukkan,Pinjaman_Pokok,""), "") -> Rp92.50 | G66: =IFERROR(IF(Pinjaman_Belum_Dibayar*Nilai_Dimasukkan,Bunga,""), "") -> Rp0.48 | H66: =IFERROR(IF(Pinjaman_Belum_Dibayar*Nilai_Dimasukkan,Saldo_Akhir,""), "") -> Rp563.95
B67: =IFERROR(IF(Pinjaman_Belum_Dibayar*Nilai_Dimasukkan,Jumlah_Pembayaran1,""), "") -> 55 | C67: =IFERROR(IF(Pinjaman_Belum_Dibayar*Nilai_Dimasukkan,Tanggal_Pembayaran,""), "") -> 2026-08-14 | D67: =IFERROR(IF(Pinjaman_Belum_Dibayar*Nilai_Dimasukkan,Saldo_Awal,""), "") -> Rp563.95 | E67: =IFERROR(IF(Pinjaman_Belum_Dibayar*Nilai_Dimasukkan,Pembayaran_Bulanan,""), "") -> Rp95.51 | F67: =IFERROR(IF(Pinjaman_Belum_Dibayar*Nilai_Dimasukkan,Pinjaman_Pokok,""), "") -> Rp92.92 | G67: =IFERROR(IF(Pinjaman_Belum_Dibayar*Nilai_Dimasukkan,Bunga,""), "") -> Rp0.47 | H67: =IFERROR(IF(Pinjaman_Belum_Dibayar*Nilai_Dimasukkan,Saldo_Akhir,""), "") -> Rp471.03
B68: =IFERROR(IF(Pinjaman_Belum_Dibayar*Nilai_Dimasukkan,Jumlah_Pembayaran1,""), "") -> 56 | C68: =IFERROR(IF(Pinjaman_Belum_Dibayar*Nilai_Dimasukkan,Tanggal_Pembayaran,""), "") -> 2026-09-14 | D68: =IFERROR(IF(Pinjaman_Belum_Dibayar*Nilai_Dimasukkan,Saldo_Awal,""), "") -> Rp471.03 | E68: =IFERROR(IF(Pinjaman_Belum_Dibayar*Nilai_Dimasukkan,Pembayaran_Bulanan,""), "") -> Rp95.51 | F68: =IFERROR(IF(Pinjaman_Belum_Dibayar*Nilai_Dimasukkan,Pinjaman_Pokok,""), "") -> Rp93.35 | G68: =IFERROR(IF(Pinjaman_Belum_Dibayar*Nilai_Dimasukkan,Bunga,""), "") -> Rp0.46 | H68: =IFERROR(IF(Pinjaman_Belum_Dibayar*Nilai_Dimasukkan,Saldo_Akhir,""), "") -> Rp377.69
B69: =IFERROR(IF(Pinjaman_Belum_Dibayar*Nilai_Dimasukkan,Jumlah_Pembayaran1,""), "") -> 57 | C69: =IFERROR(IF(Pinjaman_Belum_Dibayar*Nilai_Dimasukkan,Tanggal_Pembayaran,""), "") -> 2026-10-14 | D69: =IFERROR(IF(Pinjaman_Belum_Dibayar*Nilai_Dimasukkan,Saldo_Awal,""), "") -> Rp377.69 | E69: =IFERROR(IF(Pinjaman_Belum_Dibayar*Nilai_Dimasukkan,Pembayaran_Bulanan,""), "") -> Rp95.51 | F69: =IFERROR(IF(Pinjaman_Belum_Dibayar*Nilai_Dimasukkan,Pinjaman_Pokok,""), "") -> Rp93.77 | G69: =IFERROR(IF(Pinjaman_Belum_Dibayar*Nilai_Dimasukkan,Bunga,""), "") -> Rp0.46 | H69: =IFERROR(IF(Pinjaman_Belum_Dibayar*Nilai_Dimasukkan,Saldo_Akhir,""), "") -> Rp283.91
B70: =IFERROR(IF(Pinjaman_Belum_Dibayar*Nilai_Dimasukkan,Jumlah_Pembayaran1,""), "") -> 58 | C70: =IFERROR(IF(Pinjaman_Belum_Dibayar*Nilai_Dimasukkan,Tanggal_Pembayaran,""), "") -> 2026-11-14 | D70: =IFERROR(IF(Pinjaman_Belum_Dibayar*Nilai_Dimasukkan,Saldo_Awal,""), "") -> Rp283.91 | E70: =IFERROR(IF(Pinjaman_Belum_Dibayar*Nilai_Dimasukkan,Pembayaran_Bulanan,""), "") -> Rp95.51 | F70: =IFERROR(IF(Pinjaman_Belum_Dibayar*Nilai_Dimasukkan,Pinjaman_Pokok,""), "") -> Rp94.20 | G70: =IFERROR(IF(Pinjaman_Belum_Dibayar*Nilai_Dimasukkan,Bunga,""), "") -> Rp0.45 | H70: =IFERROR(IF(Pinjaman_Belum_Dibayar*Nilai_Dimasukkan,Saldo_Akhir,""), "") -> Rp189.71
B71: =IFERROR(IF(Pinjaman_Belum_Dibayar*Nilai_Dimasukkan,Jumlah_Pembayaran1,""), "") -> 59 | C71: =IFERROR(IF(Pinjaman_Belum_Dibayar*Nilai_Dimasukkan,Tanggal_Pembayaran,""), "") -> 2026-12-14 | D71: =IFERROR(IF(Pinjaman_Belum_Dibayar*Nilai_Dimasukkan,Saldo_Awal,""), "") -> Rp189.71 | E71: =IFERROR(IF(Pinjaman_Belum_Dibayar*Nilai_Dimasukkan,Pembayaran_Bulanan,""), "") -> Rp95.51 | F71: =IFERROR(IF(Pinjaman_Belum_Dibayar*Nilai_Dimasukkan,Pinjaman_Pokok,""), "") -> Rp94.64 | G71: =IFERROR(IF(Pinjaman_Belum_Dibayar*Nilai_Dimasukkan,Bunga,""), "") -> Rp0.44 | H71: =IFERROR(IF(Pinjaman_Belum_Dibayar*Nilai_Dimasukkan,Saldo_Akhir,""), "") -> Rp95.07
B72: =IFERROR(IF(Pinjaman_Belum_Dibayar*Nilai_Dimasukkan,Jumlah_Pembayaran1,""), "") -> 60 | C72: =IFERROR(IF(Pinjaman_Belum_Dibayar*Nilai_Dimasukkan,Tanggal_Pembayaran,""), "") -> 2027-01-14 | D72: =IFERROR(IF(Pinjaman_Belum_Dibayar*Nilai_Dimasukkan,Saldo_Awal,""), "") -> Rp95.07 | E72: =IFERROR(IF(Pinjaman_Belum_Dibayar*Nilai_Dimasukkan,Pembayaran_Bulanan,""), "") -> Rp95.51 | F72: =IFERROR(IF(Pinjaman_Belum_Dibayar*Nilai_Dimasukkan,Pinjaman_Pokok,""), "") -> Rp95.07 | G72: =IFERROR(IF(Pinjaman_Belum_Dibayar*Nilai_Dimasukkan,Bunga,""), "") -> Rp0.44 | H72: =IFERROR(IF(Pinjaman_Belum_Dibayar*Nilai_Dimasukkan,Saldo_Akhir,""), "") -> -Rp0.00
B73: =IFERROR(IF(Pinjaman_Belum_Dibayar*Nilai_Dimasukkan,Jumlah_Pembayaran1,""), "") ->  | C73: =IFERROR(IF(Pinjaman_Belum_Dibayar*Nilai_Dimasukkan,Tanggal_Pembayaran,""), "") ->  | D73: =IFERROR(IF(Pinjaman_Belum_Dibayar*Nilai_Dimasukkan,Saldo_Awal,""), "") ->  | E73: =IFERROR(IF(Pinjaman_Belum_Dibayar*Nilai_Dimasukkan,Pembayaran_Bulanan,""), "") ->  | F73: =IFERROR(IF(Pinjaman_Belum_Dibayar*Nilai_Dimasukkan,Pinjaman_Pokok,""), "") ->  | G73: =IFERROR(IF(Pinjaman_Belum_Dibayar*Nilai_Dimasukkan,Bunga,""), "") ->  | H73: =IFERROR(IF(Pinjaman_Belum_Dibayar*Nilai_Dimasukkan,Saldo_Akhir,""), "") -> 
B74: =IFERROR(IF(Pinjaman_Belum_Dibayar*Nilai_Dimasukkan,Jumlah_Pembayaran1,""), "") ->  | C74: =IFERROR(IF(Pinjaman_Belum_Dibayar*Nilai_Dimasukkan,Tanggal_Pembayaran,""), "") ->  | D74: =IFERROR(IF(Pinjaman_Belum_Dibayar*Nilai_Dimasukkan,Saldo_Awal,""), "") ->  | E74: =IFERROR(IF(Pinjaman_Belum_Dibayar*Nilai_Dimasukkan,Pembayaran_Bulanan,""), "") ->  | F74: =IFERROR(IF(Pinjaman_Belum_Dibayar*Nilai_Dimasukkan,Pinjaman_Pokok,""), "") ->  | G74: =IFERROR(IF(Pinjaman_Belum_Dibayar*Nilai_Dimasukkan,Bunga,""), "") ->  | H74: =IFERROR(IF(Pinjaman_Belum_Dibayar*Nilai_Dimasukkan,Saldo_Akhir,""), "") -> 
B75: =IFERROR(IF(Pinjaman_Belum_Dibayar*Nilai_Dimasukkan,Jumlah_Pembayaran1,""), "") ->  | C75: =IFERROR(IF(Pinjaman_Belum_Dibayar*Nilai_Dimasukkan,Tanggal_Pembayaran,""), "") ->  | D75: =IFERROR(IF(Pinjaman_Belum_Dibayar*Nilai_Dimasukkan,Saldo_Awal,""), "") ->  | E75: =IFERROR(IF(Pinjaman_Belum_Dibayar*Nilai_Dimasukkan,Pembayaran_Bulanan,""), "") ->  | F75: =IFERROR(IF(Pinjaman_Belum_Dibayar*Nilai_Dimasukkan,Pinjaman_Pokok,""), "") ->  | G75: =IFERROR(IF(Pinjaman_Belum_Dibayar*Nilai_Dimasukkan,Bunga,""), "") ->  | H75: =IFERROR(IF(Pinjaman_Belum_Dibayar*Nilai_Dimasukkan,Saldo_Akhir,""), "") -> 
B76: =IFERROR(IF(Pinjaman_Belum_Dibayar*Nilai_Dimasukkan,Jumlah_Pembayaran1,""), "") ->  | C76: =IFERROR(IF(Pinjaman_Belum_Dibayar*Nilai_Dimasukkan,Tanggal_Pembayaran,""), "") ->  | D76: =IFERROR(IF(Pinjaman_Belum_Dibayar*Nilai_Dimasukkan,Saldo_Awal,""), "") ->  | E76: =IFERROR(IF(Pinjaman_Belum_Dibayar*Nilai_Dimasukkan,Pembayaran_Bulanan,""), "") ->  | F76: =IFERROR(IF(Pinjaman_Belum_Dibayar*Nilai_Dimasukkan,Pinjaman_Pokok,""), "") ->  | G76: =IFERROR(IF(Pinjaman_Belum_Dibayar*Nilai_Dimasukkan,Bunga,""), "") ->  | H76: =IFERROR(IF(Pinjaman_Belum_Dibayar*Nilai_Dimasukkan,Saldo_Akhir,""), "") -> 
B77: =IFERROR(IF(Pinjaman_Belum_Dibayar*Nilai_Dimasukkan,Jumlah_Pembayaran1,""), "") ->  | C77: =IFERROR(IF(Pinjaman_Belum_Dibayar*Nilai_Dimasukkan,Tanggal_Pembayaran,""), "") ->  | D77: =IFERROR(IF(Pinjaman_Belum_Dibayar*Nilai_Dimasukkan,Saldo_Awal,""), "") ->  | E77: =IFERROR(IF(Pinjaman_Belum_Dibayar*Nilai_Dimasukkan,Pembayaran_Bulanan,""), "") ->  | F77: =IFERROR(IF(Pinjaman_Belum_Dibayar*Nilai_Dimasukkan,Pinjaman_Pokok,""), "") ->  | G77: =IFERROR(IF(Pinjaman_Belum_Dibayar*Nilai_Dimasukkan,Bunga,""), "") ->  | H77: =IFERROR(IF(Pinjaman_Belum_Dibayar*Nilai_Dimasukkan,Saldo_Akhir,""), "") -> 
B78: =IFERROR(IF(Pinjaman_Belum_Dibayar*Nilai_Dimasukkan,Jumlah_Pembayaran1,""), "") ->  | C78: =IFERROR(IF(Pinjaman_Belum_Dibayar*Nilai_Dimasukkan,Tanggal_Pembayaran,""), "") ->  | D78: =IFERROR(IF(Pinjaman_Belum_Dibayar*Nilai_Dimasukkan,Saldo_Awal,""), "") ->  | E78: =IFERROR(IF(Pinjaman_Belum_Dibayar*Nilai_Dimasukkan,Pembayaran_Bulanan,""), "") ->  | F78: =IFERROR(IF(Pinjaman_Belum_Dibayar*Nilai_Dimasukkan,Pinjaman_Pokok,""), "") ->  | G78: =IFERROR(IF(Pinjaman_Belum_Dibayar*Nilai_Dimasukkan,Bunga,""), "") ->  | H78: =IFERROR(IF(Pinjaman_Belum_Dibayar*Nilai_Dimasukkan,Saldo_Akhir,""), "") -> 
B79: =IFERROR(IF(Pinjaman_Belum_Dibayar*Nilai_Dimasukkan,Jumlah_Pembayaran1,""), "") ->  | C79: =IFERROR(IF(Pinjaman_Belum_Dibayar*Nilai_Dimasukkan,Tanggal_Pembayaran,""), "") ->  | D79: =IFERROR(IF(Pinjaman_Belum_Dibayar*Nilai_Dimasukkan,Saldo_Awal,""), "") ->  | E79: =IFERROR(IF(Pinjaman_Belum_Dibayar*Nilai_Dimasukkan,Pembayaran_Bulanan,""), "") ->  | F79: =IFERROR(IF(Pinjaman_Belum_Dibayar*Nilai_Dimasukkan,Pinjaman_Pokok,""), "") ->  | G79: =IFERROR(IF(Pinjaman_Belum_Dibayar*Nilai_Dimasukkan,Bunga,""), "") ->  | H79: =IFERROR(IF(Pinjaman_Belum_Dibayar*Nilai_Dimasukkan,Saldo_Akhir,""), "") -> 
B80: =IFERROR(IF(Pinjaman_Belum_Dibayar*Nilai_Dimasukkan,Jumlah_Pembayaran1,""), "") ->  | C80: =IFERROR(IF(Pinjaman_Belum_Dibayar*Nilai_Dimasukkan,Tanggal_Pembayaran,""), "") ->  | D80: =IFERROR(IF(Pinjaman_Belum_Dibayar*Nilai_Dimasukkan,Saldo_Awal,""), "") ->  | E80: =IFERROR(IF(Pinjaman_Belum_Dibayar*Nilai_Dimasukkan,Pembayaran_Bulanan,""), "") ->  | F80: =IFERROR(IF(Pinjaman_Belum_Dibayar*Nilai_Dimasukkan,Pinjaman_Pokok,""), "") ->  | G80: =IFERROR(IF(Pinjaman_Belum_Dibayar*Nilai_Dimasukkan,Bunga,""), "") ->  | H80: =IFERROR(IF(Pinjaman_Belum_Dibayar*Nilai_Dimasukkan,Saldo_Akhir,""), "") -> 
B81: =IFERROR(IF(Pinjaman_Belum_Dibayar*Nilai_Dimasukkan,Jumlah_Pembayaran1,""), "") ->  | C81: =IFERROR(IF(Pinjaman_Belum_Dibayar*Nilai_Dimasukkan,Tanggal_Pembayaran,""), "") ->  | D81: =IFERROR(IF(Pinjaman_Belum_Dibayar*Nilai_Dimasukkan,Saldo_Awal,""), "") ->  | E81: =IFERROR(IF(Pinjaman_Belum_Dibayar*Nilai_Dimasukkan,Pembayaran_Bulanan,""), "") ->  | F81: =IFERROR(IF(Pinjaman_Belum_Dibayar*Nilai_Dimasukkan,Pinjaman_Pokok,""), "") ->  | G81: =IFERROR(IF(Pinjaman_Belum_Dibayar*Nilai_Dimasukkan,Bunga,""), "") ->  | H81: =IFERROR(IF(Pinjaman_Belum_Dibayar*Nilai_Dimasukkan,Saldo_Akhir,""), "") -> 
B82: =IFERROR(IF(Pinjaman_Belum_Dibayar*Nilai_Dimasukkan,Jumlah_Pembayaran1,""), "") ->  | C82: =IFERROR(IF(Pinjaman_Belum_Dibayar*Nilai_Dimasukkan,Tanggal_Pembayaran,""), "") ->  | D82: =IFERROR(IF(Pinjaman_Belum_Dibayar*Nilai_Dimasukkan,Saldo_Awal,""), "") ->  | E82: =IFERROR(IF(Pinjaman_Belum_Dibayar*Nilai_Dimasukkan,Pembayaran_Bulanan,""), "") ->  | F82: =IFERROR(IF(Pinjaman_Belum_Dibayar*Nilai_Dimasukkan,Pinjaman_Pokok,""), "") ->  | G82: =IFERROR(IF(Pinjaman_Belum_Dibayar*Nilai_Dimasukkan,Bunga,""), "") ->  | H82: =IFERROR(IF(Pinjaman_Belum_Dibayar*Nilai_Dimasukkan,Saldo_Akhir,""), "") -> 
B83: =IFERROR(IF(Pinjaman_Belum_Dibayar*Nilai_Dimasukkan,Jumlah_Pembayaran1,""), "") ->  | C83: =IFERROR(IF(Pinjaman_Belum_Dibayar*Nilai_Dimasukkan,Tanggal_Pembayaran,""), "") ->  | D83: =IFERROR(IF(Pinjaman_Belum_Dibayar*Nilai_Dimasukkan,Saldo_Awal,""), "") ->  | E83: =IFERROR(IF(Pinjaman_Belum_Dibayar*Nilai_Dimasukkan,Pembayaran_Bulanan,""), "") ->  | F83: =IFERROR(IF(Pinjaman_Belum_Dibayar*Nilai_Dimasukkan,Pinjaman_Pokok,""), "") ->  | G83: =IFERROR(IF(Pinjaman_Belum_Dibayar*Nilai_Dimasukkan,Bunga,""), "") ->  | H83: =IFERROR(IF(Pinjaman_Belum_Dibayar*Nilai_Dimasukkan,Saldo_Akhir,""), "") -> 
B84: =IFERROR(IF(Pinjaman_Belum_Dibayar*Nilai_Dimasukkan,Jumlah_Pembayaran1,""), "") ->  | C84: =IFERROR(IF(Pinjaman_Belum_Dibayar*Nilai_Dimasukkan,Tanggal_Pembayaran,""), "") ->  | D84: =IFERROR(IF(Pinjaman_Belum_Dibayar*Nilai_Dimasukkan,Saldo_Awal,""), "") ->  | E84: =IFERROR(IF(Pinjaman_Belum_Dibayar*Nilai_Dimasukkan,Pembayaran_Bulanan,""), "") ->  | F84: =IFERROR(IF(Pinjaman_Belum_Dibayar*Nilai_Dimasukkan,Pinjaman_Pokok,""), "") ->  | G84: =IFERROR(IF(Pinjaman_Belum_Dibayar*Nilai_Dimasukkan,Bunga,""), "") ->  | H84: =IFERROR(IF(Pinjaman_Belum_Dibayar*Nilai_Dimasukkan,Saldo_Akhir,""), "") -> 
B85: =IFERROR(IF(Pinjaman_Belum_Dibayar*Nilai_Dimasukkan,Jumlah_Pembayaran1,""), "") ->  | C85: =IFERROR(IF(Pinjaman_Belum_Dibayar*Nilai_Dimasukkan,Tanggal_Pembayaran,""), "") ->  | D85: =IFERROR(IF(Pinjaman_Belum_Dibayar*Nilai_Dimasukkan,Saldo_Awal,""), "") ->  | E85: =IFERROR(IF(Pinjaman_Belum_Dibayar*Nilai_Dimasukkan,Pembayaran_Bulanan,""), "") ->  | F85: =IFERROR(IF(Pinjaman_Belum_Dibayar*Nilai_Dimasukkan,Pinjaman_Pokok,""), "") ->  | G85: =IFERROR(IF(Pinjaman_Belum_Dibayar*Nilai_Dimasukkan,Bunga,""), "") ->  | H85: =IFERROR(IF(Pinjaman_Belum_Dibayar*Nilai_Dimasukkan,Saldo_Akhir,""), "") -> 
B86: =IFERROR(IF(Pinjaman_Belum_Dibayar*Nilai_Dimasukkan,Jumlah_Pembayaran1,""), "") ->  | C86: =IFERROR(IF(Pinjaman_Belum_Dibayar*Nilai_Dimasukkan,Tanggal_Pembayaran,""), "") ->  | D86: =IFERROR(IF(Pinjaman_Belum_Dibayar*Nilai_Dimasukkan,Saldo_Awal,""), "") ->  | E86: =IFERROR(IF(Pinjaman_Belum_Dibayar*Nilai_Dimasukkan,Pembayaran_Bulanan,""), "") ->  | F86: =IFERROR(IF(Pinjaman_Belum_Dibayar*Nilai_Dimasukkan,Pinjaman_Pokok,""), "") ->  | G86: =IFERROR(IF(Pinjaman_Belum_Dibayar*Nilai_Dimasukkan,Bunga,""), "") ->  | H86: =IFERROR(IF(Pinjaman_Belum_Dibayar*Nilai_Dimasukkan,Saldo_Akhir,""), "") -> 
B87: =IFERROR(IF(Pinjaman_Belum_Dibayar*Nilai_Dimasukkan,Jumlah_Pembayaran1,""), "") ->  | C87: =IFERROR(IF(Pinjaman_Belum_Dibayar*Nilai_Dimasukkan,Tanggal_Pembayaran,""), "") ->  | D87: =IFERROR(IF(Pinjaman_Belum_Dibayar*Nilai_Dimasukkan,Saldo_Awal,""), "") ->  | E87: =IFERROR(IF(Pinjaman_Belum_Dibayar*Nilai_Dimasukkan,Pembayaran_Bulanan,""), "") ->  | F87: =IFERROR(IF(Pinjaman_Belum_Dibayar*Nilai_Dimasukkan,Pinjaman_Pokok,""), "") ->  | G87: =IFERROR(IF(Pinjaman_Belum_Dibayar*Nilai_Dimasukkan,Bunga,""), "") ->  | H87: =IFERROR(IF(Pinjaman_Belum_Dibayar*Nilai_Dimasukkan,Saldo_Akhir,""), "") -> 
B88: =IFERROR(IF(Pinjaman_Belum_Dibayar*Nilai_Dimasukkan,Jumlah_Pembayaran1,""), "") ->  | C88: =IFERROR(IF(Pinjaman_Belum_Dibayar*Nilai_Dimasukkan,Tanggal_Pembayaran,""), "") ->  | D88: =IFERROR(IF(Pinjaman_Belum_Dibayar*Nilai_Dimasukkan,Saldo_Awal,""), "") ->  | E88: =IFERROR(IF(Pinjaman_Belum_Dibayar*Nilai_Dimasukkan,Pembayaran_Bulanan,""), "") ->  | F88: =IFERROR(IF(Pinjaman_Belum_Dibayar*Nilai_Dimasukkan,Pinjaman_Pokok,""), "") ->  | G88: =IFERROR(IF(Pinjaman_Belum_Dibayar*Nilai_Dimasukkan,Bunga,""), "") ->  | H88: =IFERROR(IF(Pinjaman_Belum_Dibayar*Nilai_Dimasukkan,Saldo_Akhir,""), "") -> 
B89: =IFERROR(IF(Pinjaman_Belum_Dibayar*Nilai_Dimasukkan,Jumlah_Pembayaran1,""), "") ->  | C89: =IFERROR(IF(Pinjaman_Belum_Dibayar*Nilai_Dimasukkan,Tanggal_Pembayaran,""), "") ->  | D89: =IFERROR(IF(Pinjaman_Belum_Dibayar*Nilai_Dimasukkan,Saldo_Awal,""), "") ->  | E89: =IFERROR(IF(Pinjaman_Belum_Dibayar*Nilai_Dimasukkan,Pembayaran_Bulanan,""), "") ->  | F89: =IFERROR(IF(Pinjaman_Belum_Dibayar*Nilai_Dimasukkan,Pinjaman_Pokok,""), "") ->  | G89: =IFERROR(IF(Pinjaman_Belum_Dibayar*Nilai_Dimasukkan,Bunga,""), "") ->  | H89: =IFERROR(IF(Pinjaman_Belum_Dibayar*Nilai_Dimasukkan,Saldo_Akhir,""), "") -> 
B90: =IFERROR(IF(Pinjaman_Belum_Dibayar*Nilai_Dimasukkan,Jumlah_Pembayaran1,""), "") ->  | C90: =IFERROR(IF(Pinjaman_Belum_Dibayar*Nilai_Dimasukkan,Tanggal_Pembayaran,""), "") ->  | D90: =IFERROR(IF(Pinjaman_Belum_Dibayar*Nilai_Dimasukkan,Saldo_Awal,""), "") ->  | E90: =IFERROR(IF(Pinjaman_Belum_Dibayar*Nilai_Dimasukkan,Pembayaran_Bulanan,""), "") ->  | F90: =IFERROR(IF(Pinjaman_Belum_Dibayar*Nilai_Dimasukkan,Pinjaman_Pokok,""), "") ->  | G90: =IFERROR(IF(Pinjaman_Belum_Dibayar*Nilai_Dimasukkan,Bunga,""), "") ->  | H90: =IFERROR(IF(Pinjaman_Belum_Dibayar*Nilai_Dimasukkan,Saldo_Akhir,""), "") -> 
B91: =IFERROR(IF(Pinjaman_Belum_Dibayar*Nilai_Dimasukkan,Jumlah_Pembayaran1,""), "") ->  | C91: =IFERROR(IF(Pinjaman_Belum_Dibayar*Nilai_Dimasukkan,Tanggal_Pembayaran,""), "") ->  | D91: =IFERROR(IF(Pinjaman_Belum_Dibayar*Nilai_Dimasukkan,Saldo_Awal,""), "") ->  | E91: =IFERROR(IF(Pinjaman_Belum_Dibayar*Nilai_Dimasukkan,Pembayaran_Bulanan,""), "") ->  | F91: =IFERROR(IF(Pinjaman_Belum_Dibayar*Nilai_Dimasukkan,Pinjaman_Pokok,""), "") ->  | G91: =IFERROR(IF(Pinjaman_Belum_Dibayar*Nilai_Dimasukkan,Bunga,""), "") ->  | H91: =IFERROR(IF(Pinjaman_Belum_Dibayar*Nilai_Dimasukkan,Saldo_Akhir,""), "") -> 
B92: =IFERROR(IF(Pinjaman_Belum_Dibayar*Nilai_Dimasukkan,Jumlah_Pembayaran1,""), "") ->  | C92: =IFERROR(IF(Pinjaman_Belum_Dibayar*Nilai_Dimasukkan,Tanggal_Pembayaran,""), "") ->  | D92: =IFERROR(IF(Pinjaman_Belum_Dibayar*Nilai_Dimasukkan,Saldo_Awal,""), "") ->  | E92: =IFERROR(IF(Pinjaman_Belum_Dibayar*Nilai_Dimasukkan,Pembayaran_Bulanan,""), "") ->  | F92: =IFERROR(IF(Pinjaman_Belum_Dibayar*Nilai_Dimasukkan,Pinjaman_Pokok,""), "") ->  | G92: =IFERROR(IF(Pinjaman_Belum_Dibayar*Nilai_Dimasukkan,Bunga,""), "") ->  | H92: =IFERROR(IF(Pinjaman_Belum_Dibayar*Nilai_Dimasukkan,Saldo_Akhir,""), "") -> 
B93: =IFERROR(IF(Pinjaman_Belum_Dibayar*Nilai_Dimasukkan,Jumlah_Pembayaran1,""), "") ->  | C93: =IFERROR(IF(Pinjaman_Belum_Dibayar*Nilai_Dimasukkan,Tanggal_Pembayaran,""), "") ->  | D93: =IFERROR(IF(Pinjaman_Belum_Dibayar*Nilai_Dimasukkan,Saldo_Awal,""), "") ->  | E93: =IFERROR(IF(Pinjaman_Belum_Dibayar*Nilai_Dimasukkan,Pembayaran_Bulanan,""), "") ->  | F93: =IFERROR(IF(Pinjaman_Belum_Dibayar*Nilai_Dimasukkan,Pinjaman_Pokok,""), "") ->  | G93: =IFERROR(IF(Pinjaman_Belum_Dibayar*Nilai_Dimasukkan,Bunga,""), "") ->  | H93: =IFERROR(IF(Pinjaman_Belum_Dibayar*Nilai_Dimasukkan,Saldo_Akhir,""), "") -> 
B94: =IFERROR(IF(Pinjaman_Belum_Dibayar*Nilai_Dimasukkan,Jumlah_Pembayaran1,""), "") ->  | C94: =IFERROR(IF(Pinjaman_Belum_Dibayar*Nilai_Dimasukkan,Tanggal_Pembayaran,""), "") ->  | D94: =IFERROR(IF(Pinjaman_Belum_Dibayar*Nilai_Dimasukkan,Saldo_Awal,""), "") ->  | E94: =IFERROR(IF(Pinjaman_Belum_Dibayar*Nilai_Dimasukkan,Pembayaran_Bulanan,""), "") ->  | F94: =IFERROR(IF(Pinjaman_Belum_Dibayar*Nilai_Dimasukkan,Pinjaman_Pokok,""), "") ->  | G94: =IFERROR(IF(Pinjaman_Belum_Dibayar*Nilai_Dimasukkan,Bunga,""), "") ->  | H94: =IFERROR(IF(Pinjaman_Belum_Dibayar*Nilai_Dimasukkan,Saldo_Akhir,""), "") -> 
B95: =IFERROR(IF(Pinjaman_Belum_Dibayar*Nilai_Dimasukkan,Jumlah_Pembayaran1,""), "") ->  | C95: =IFERROR(IF(Pinjaman_Belum_Dibayar*Nilai_Dimasukkan,Tanggal_Pembayaran,""), "") ->  | D95: =IFERROR(IF(Pinjaman_Belum_Dibayar*Nilai_Dimasukkan,Saldo_Awal,""), "") ->  | E95: =IFERROR(IF(Pinjaman_Belum_Dibayar*Nilai_Dimasukkan,Pembayaran_Bulanan,""), "") ->  | F95: =IFERROR(IF(Pinjaman_Belum_Dibayar*Nilai_Dimasukkan,Pinjaman_Pokok,""), "") ->  | G95: =IFERROR(IF(Pinjaman_Belum_Dibayar*Nilai_Dimasukkan,Bunga,""), "") ->  | H95: =IFERROR(IF(Pinjaman_Belum_Dibayar*Nilai_Dimasukkan,Saldo_Akhir,""), "") -> 
B96: =IFERROR(IF(Pinjaman_Belum_Dibayar*Nilai_Dimasukkan,Jumlah_Pembayaran1,""), "") ->  | C96: =IFERROR(IF(Pinjaman_Belum_Dibayar*Nilai_Dimasukkan,Tanggal_Pembayaran,""), "") ->  | D96: =IFERROR(IF(Pinjaman_Belum_Dibayar*Nilai_Dimasukkan,Saldo_Awal,""), "") ->  | E96: =IFERROR(IF(Pinjaman_Belum_Dibayar*Nilai_Dimasukkan,Pembayaran_Bulanan,""), "") ->  | F96: =IFERROR(IF(Pinjaman_Belum_Dibayar*Nilai_Dimasukkan,Pinjaman_Pokok,""), "") ->  | G96: =IFERROR(IF(Pinjaman_Belum_Dibayar*Nilai_Dimasukkan,Bunga,""), "") ->  | H96: =IFERROR(IF(Pinjaman_Belum_Dibayar*Nilai_Dimasukkan,Saldo_Akhir,""), "") -> 
B97: =IFERROR(IF(Pinjaman_Belum_Dibayar*Nilai_Dimasukkan,Jumlah_Pembayaran1,""), "") ->  | C97: =IFERROR(IF(Pinjaman_Belum_Dibayar*Nilai_Dimasukkan,Tanggal_Pembayaran,""), "") ->  | D97: =IFERROR(IF(Pinjaman_Belum_Dibayar*Nilai_Dimasukkan,Saldo_Awal,""), "") ->  | E97: =IFERROR(IF(Pinjaman_Belum_Dibayar*Nilai_Dimasukkan,Pembayaran_Bulanan,""), "") ->  | F97: =IFERROR(IF(Pinjaman_Belum_Dibayar*Nilai_Dimasukkan,Pinjaman_Pokok,""), "") ->  | G97: =IFERROR(IF(Pinjaman_Belum_Dibayar*Nilai_Dimasukkan,Bunga,""), "") ->  | H97: =IFERROR(IF(Pinjaman_Belum_Dibayar*Nilai_Dimasukkan,Saldo_Akhir,""), "") -> 
B98: =IFERROR(IF(Pinjaman_Belum_Dibayar*Nilai_Dimasukkan,Jumlah_Pembayaran1,""), "") ->  | C98: =IFERROR(IF(Pinjaman_Belum_Dibayar*Nilai_Dimasukkan,Tanggal_Pembayaran,""), "") ->  | D98: =IFERROR(IF(Pinjaman_Belum_Dibayar*Nilai_Dimasukkan,Saldo_Awal,""), "") ->  | E98: =IFERROR(IF(Pinjaman_Belum_Dibayar*Nilai_Dimasukkan,Pembayaran_Bulanan,""), "") ->  | F98: =IFERROR(IF(Pinjaman_Belum_Dibayar*Nilai_Dimasukkan,Pinjaman_Pokok,""), "") ->  | G98: =IFERROR(IF(Pinjaman_Belum_Dibayar*Nilai_Dimasukkan,Bunga,""), "") ->  | H98: =IFERROR(IF(Pinjaman_Belum_Dibayar*Nilai_Dimasukkan,Saldo_Akhir,""), "") -> 
B99: =IFERROR(IF(Pinjaman_Belum_Dibayar*Nilai_Dimasukkan,Jumlah_Pembayaran1,""), "") ->  | C99: =IFERROR(IF(Pinjaman_Belum_Dibayar*Nilai_Dimasukkan,Tanggal_Pembayaran,""), "") ->  | D99: =IFERROR(IF(Pinjaman_Belum_Dibayar*Nilai_Dimasukkan,Saldo_Awal,""), "") ->  | E99: =IFERROR(IF(Pinjaman_Belum_Dibayar*Nilai_Dimasukkan,Pembayaran_Bulanan,""), "") ->  | F99: =IFERROR(IF(Pinjaman_Belum_Dibayar*Nilai_Dimasukkan,Pinjaman_Pokok,""), "") ->  | G99: =IFERROR(IF(Pinjaman_Belum_Dibayar*Nilai_Dimasukkan,Bunga,""), "") ->  | H99: =IFERROR(IF(Pinjaman_Belum_Dibayar*Nilai_Dimasukkan,Saldo_Akhir,""), "") -> 
B100: =IFERROR(IF(Pinjaman_Belum_Dibayar*Nilai_Dimasukkan,Jumlah_Pembayaran1,""), "") ->  | C100: =IFERROR(IF(Pinjaman_Belum_Dibayar*Nilai_Dimasukkan,Tanggal_Pembayaran,""), "") ->  | D100: =IFERROR(IF(Pinjaman_Belum_Dibayar*Nilai_Dimasukkan,Saldo_Awal,""), "") ->  | E100: =IFERROR(IF(Pinjaman_Belum_Dibayar*Nilai_Dimasukkan,Pembayaran_Bulanan,""), "") ->  | F100: =IFERROR(IF(Pinjaman_Belum_Dibayar*Nilai_Dimasukkan,Pinjaman_Pokok,""), "") ->  | G100: =IFERROR(IF(Pinjaman_Belum_Dibayar*Nilai_Dimasukkan,Bunga,""), "") ->  | H100: =IFERROR(IF(Pinjaman_Belum_Dibayar*Nilai_Dimasukkan,Saldo_Akhir,""), "") -> 
B101: =IFERROR(IF(Pinjaman_Belum_Dibayar*Nilai_Dimasukkan,Jumlah_Pembayaran1,""), "") ->  | C101: =IFERROR(IF(Pinjaman_Belum_Dibayar*Nilai_Dimasukkan,Tanggal_Pembayaran,""), "") ->  | D101: =IFERROR(IF(Pinjaman_Belum_Dibayar*Nilai_Dimasukkan,Saldo_Awal,""), "") ->  | E101: =IFERROR(IF(Pinjaman_Belum_Dibayar*Nilai_Dimasukkan,Pembayaran_Bulanan,""), "") ->  | F101: =IFERROR(IF(Pinjaman_Belum_Dibayar*Nilai_Dimasukkan,Pinjaman_Pokok,""), "") ->  | G101: =IFERROR(IF(Pinjaman_Belum_Dibayar*Nilai_Dimasukkan,Bunga,""), "") ->  | H101: =IFERROR(IF(Pinjaman_Belum_Dibayar*Nilai_Dimasukkan,Saldo_Akhir,""), "") -> 
B102: =IFERROR(IF(Pinjaman_Belum_Dibayar*Nilai_Dimasukkan,Jumlah_Pembayaran1,""), "") ->  | C102: =IFERROR(IF(Pinjaman_Belum_Dibayar*Nilai_Dimasukkan,Tanggal_Pembayaran,""), "") ->  | D102: =IFERROR(IF(Pinjaman_Belum_Dibayar*Nilai_Dimasukkan,Saldo_Awal,""), "") ->  | E102: =IFERROR(IF(Pinjaman_Belum_Dibayar*Nilai_Dimasukkan,Pembayaran_Bulanan,""), "") ->  | F102: =IFERROR(IF(Pinjaman_Belum_Dibayar*Nilai_Dimasukkan,Pinjaman_Pokok,""), "") ->  | G102: =IFERROR(IF(Pinjaman_Belum_Dibayar*Nilai_Dimasukkan,Bunga,""), "") ->  | H102: =IFERROR(IF(Pinjaman_Belum_Dibayar*Nilai_Dimasukkan,Saldo_Akhir,""), "") -> 
B103: =IFERROR(IF(Pinjaman_Belum_Dibayar*Nilai_Dimasukkan,Jumlah_Pembayaran1,""), "") ->  | C103: =IFERROR(IF(Pinjaman_Belum_Dibayar*Nilai_Dimasukkan,Tanggal_Pembayaran,""), "") ->  | D103: =IFERROR(IF(Pinjaman_Belum_Dibayar*Nilai_Dimasukkan,Saldo_Awal,""), "") ->  | E103: =IFERROR(IF(Pinjaman_Belum_Dibayar*Nilai_Dimasukkan,Pembayaran_Bulanan,""), "") ->  | F103: =IFERROR(IF(Pinjaman_Belum_Dibayar*Nilai_Dimasukkan,Pinjaman_Pokok,""), "") ->  | G103: =IFERROR(IF(Pinjaman_Belum_Dibayar*Nilai_Dimasukkan,Bunga,""), "") ->  | H103: =IFERROR(IF(Pinjaman_Belum_Dibayar*Nilai_Dimasukkan,Saldo_Akhir,""), "") -> 
B104: =IFERROR(IF(Pinjaman_Belum_Dibayar*Nilai_Dimasukkan,Jumlah_Pembayaran1,""), "") ->  | C104: =IFERROR(IF(Pinjaman_Belum_Dibayar*Nilai_Dimasukkan,Tanggal_Pembayaran,""), "") ->  | D104: =IFERROR(IF(Pinjaman_Belum_Dibayar*Nilai_Dimasukkan,Saldo_Awal,""), "") ->  | E104: =IFERROR(IF(Pinjaman_Belum_Dibayar*Nilai_Dimasukkan,Pembayaran_Bulanan,""), "") ->  | F104: =IFERROR(IF(Pinjaman_Belum_Dibayar*Nilai_Dimasukkan,Pinjaman_Pokok,""), "") ->  | G104: =IFERROR(IF(Pinjaman_Belum_Dibayar*Nilai_Dimasukkan,Bunga,""), "") ->  | H104: =IFERROR(IF(Pinjaman_Belum_Dibayar*Nilai_Dimasukkan,Saldo_Akhir,""), "") -> 
B105: =IFERROR(IF(Pinjaman_Belum_Dibayar*Nilai_Dimasukkan,Jumlah_Pembayaran1,""), "") ->  | C105: =IFERROR(IF(Pinjaman_Belum_Dibayar*Nilai_Dimasukkan,Tanggal_Pembayaran,""), "") ->  | D105: =IFERROR(IF(Pinjaman_Belum_Dibayar*Nilai_Dimasukkan,Saldo_Awal,""), "") ->  | E105: =IFERROR(IF(Pinjaman_Belum_Dibayar*Nilai_Dimasukkan,Pembayaran_Bulanan,""), "") ->  | F105: =IFERROR(IF(Pinjaman_Belum_Dibayar*Nilai_Dimasukkan,Pinjaman_Pokok,""), "") ->  | G105: =IFERROR(IF(Pinjaman_Belum_Dibayar*Nilai_Dimasukkan,Bunga,""), "") ->  | H105: =IFERROR(IF(Pinjaman_Belum_Dibayar*Nilai_Dimasukkan,Saldo_Akhir,""), "") -> 
B106: =IFERROR(IF(Pinjaman_Belum_Dibayar*Nilai_Dimasukkan,Jumlah_Pembayaran1,""), "") ->  | C106: =IFERROR(IF(Pinjaman_Belum_Dibayar*Nilai_Dimasukkan,Tanggal_Pembayaran,""), "") ->  | D106: =IFERROR(IF(Pinjaman_Belum_Dibayar*Nilai_Dimasukkan,Saldo_Awal,""), "") ->  | E106: =IFERROR(IF(Pinjaman_Belum_Dibayar*Nilai_Dimasukkan,Pembayaran_Bulanan,""), "") ->  | F106: =IFERROR(IF(Pinjaman_Belum_Dibayar*Nilai_Dimasukkan,Pinjaman_Pokok,""), "") ->  | G106: =IFERROR(IF(Pinjaman_Belum_Dibayar*Nilai_Dimasukkan,Bunga,""), "") ->  | H106: =IFERROR(IF(Pinjaman_Belum_Dibayar*Nilai_Dimasukkan,Saldo_Akhir,""), "") -> 
B107: =IFERROR(IF(Pinjaman_Belum_Dibayar*Nilai_Dimasukkan,Jumlah_Pembayaran1,""), "") ->  | C107: =IFERROR(IF(Pinjaman_Belum_Dibayar*Nilai_Dimasukkan,Tanggal_Pembayaran,""), "") ->  | D107: =IFERROR(IF(Pinjaman_Belum_Dibayar*Nilai_Dimasukkan,Saldo_Awal,""), "") ->  | E107: =IFERROR(IF(Pinjaman_Belum_Dibayar*Nilai_Dimasukkan,Pembayaran_Bulanan,""), "") ->  | F107: =IFERROR(IF(Pinjaman_Belum_Dibayar*Nilai_Dimasukkan,Pinjaman_Pokok,""), "") ->  | G107: =IFERROR(IF(Pinjaman_Belum_Dibayar*Nilai_Dimasukkan,Bunga,""), "") ->  | H107: =IFERROR(IF(Pinjaman_Belum_Dibayar*Nilai_Dimasukkan,Saldo_Akhir,""), "") -> 
B108: =IFERROR(IF(Pinjaman_Belum_Dibayar*Nilai_Dimasukkan,Jumlah_Pembayaran1,""), "") ->  | C108: =IFERROR(IF(Pinjaman_Belum_Dibayar*Nilai_Dimasukkan,Tanggal_Pembayaran,""), "") ->  | D108: =IFERROR(IF(Pinjaman_Belum_Dibayar*Nilai_Dimasukkan,Saldo_Awal,""), "") ->  | E108: =IFERROR(IF(Pinjaman_Belum_Dibayar*Nilai_Dimasukkan,Pembayaran_Bulanan,""), "") ->  | F108: =IFERROR(IF(Pinjaman_Belum_Dibayar*Nilai_Dimasukkan,Pinjaman_Pokok,""), "") ->  | G108: =IFERROR(IF(Pinjaman_Belum_Dibayar*Nilai_Dimasukkan,Bunga,""), "") ->  | H108: =IFERROR(IF(Pinjaman_Belum_Dibayar*Nilai_Dimasukkan,Saldo_Akhir,""), "") -> 
B109: =IFERROR(IF(Pinjaman_Belum_Dibayar*Nilai_Dimasukkan,Jumlah_Pembayaran1,""), "") ->  | C109: =IFERROR(IF(Pinjaman_Belum_Dibayar*Nilai_Dimasukkan,Tanggal_Pembayaran,""), "") ->  | D109: =IFERROR(IF(Pinjaman_Belum_Dibayar*Nilai_Dimasukkan,Saldo_Awal,""), "") ->  | E109: =IFERROR(IF(Pinjaman_Belum_Dibayar*Nilai_Dimasukkan,Pembayaran_Bulanan,""), "") ->  | F109: =IFERROR(IF(Pinjaman_Belum_Dibayar*Nilai_Dimasukkan,Pinjaman_Pokok,""), "") ->  | G109: =IFERROR(IF(Pinjaman_Belum_Dibayar*Nilai_Dimasukkan,Bunga,""), "") ->  | H109: =IFERROR(IF(Pinjaman_Belum_Dibayar*Nilai_Dimasukkan,Saldo_Akhir,""), "") -> 
B110: =IFERROR(IF(Pinjaman_Belum_Dibayar*Nilai_Dimasukkan,Jumlah_Pembayaran1,""), "") ->  | C110: =IFERROR(IF(Pinjaman_Belum_Dibayar*Nilai_Dimasukkan,Tanggal_Pembayaran,""), "") ->  | D110: =IFERROR(IF(Pinjaman_Belum_Dibayar*Nilai_Dimasukkan,Saldo_Awal,""), "") ->  | E110: =IFERROR(IF(Pinjaman_Belum_Dibayar*Nilai_Dimasukkan,Pembayaran_Bulanan,""), "") ->  | F110: =IFERROR(IF(Pinjaman_Belum_Dibayar*Nilai_Dimasukkan,Pinjaman_Pokok,""), "") ->  | G110: =IFERROR(IF(Pinjaman_Belum_Dibayar*Nilai_Dimasukkan,Bunga,""), "") ->  | H110: =IFERROR(IF(Pinjaman_Belum_Dibayar*Nilai_Dimasukkan,Saldo_Akhir,""), "") -> 
B111: =IFERROR(IF(Pinjaman_Belum_Dibayar*Nilai_Dimasukkan,Jumlah_Pembayaran1,""), "") ->  | C111: =IFERROR(IF(Pinjaman_Belum_Dibayar*Nilai_Dimasukkan,Tanggal_Pembayaran,""), "") ->  | D111: =IFERROR(IF(Pinjaman_Belum_Dibayar*Nilai_Dimasukkan,Saldo_Awal,""), "") ->  | E111: =IFERROR(IF(Pinjaman_Belum_Dibayar*Nilai_Dimasukkan,Pembayaran_Bulanan,""), "") ->  | F111: =IFERROR(IF(Pinjaman_Belum_Dibayar*Nilai_Dimasukkan,Pinjaman_Pokok,""), "") ->  | G111: =IFERROR(IF(Pinjaman_Belum_Dibayar*Nilai_Dimasukkan,Bunga,""), "") ->  | H111: =IFERROR(IF(Pinjaman_Belum_Dibayar*Nilai_Dimasukkan,Saldo_Akhir,""), "") -> 
B112: =IFERROR(IF(Pinjaman_Belum_Dibayar*Nilai_Dimasukkan,Jumlah_Pembayaran1,""), "") ->  | C112: =IFERROR(IF(Pinjaman_Belum_Dibayar*Nilai_Dimasukkan,Tanggal_Pembayaran,""), "") ->  | D112: =IFERROR(IF(Pinjaman_Belum_Dibayar*Nilai_Dimasukkan,Saldo_Awal,""), "") ->  | E112: =IFERROR(IF(Pinjaman_Belum_Dibayar*Nilai_Dimasukkan,Pembayaran_Bulanan,""), "") ->  | F112: =IFERROR(IF(Pinjaman_Belum_Dibayar*Nilai_Dimasukkan,Pinjaman_Pokok,""), "") ->  | G112: =IFERROR(IF(Pinjaman_Belum_Dibayar*Nilai_Dimasukkan,Bunga,""), "") ->  | H112: =IFERROR(IF(Pinjaman_Belum_Dibayar*Nilai_Dimasukkan,Saldo_Akhir,""), "") -> 
B113: =IFERROR(IF(Pinjaman_Belum_Dibayar*Nilai_Dimasukkan,Jumlah_Pembayaran1,""), "") ->  | C113: =IFERROR(IF(Pinjaman_Belum_Dibayar*Nilai_Dimasukkan,Tanggal_Pembayaran,""), "") ->  | D113: =IFERROR(IF(Pinjaman_Belum_Dibayar*Nilai_Dimasukkan,Saldo_Awal,""), "") ->  | E113: =IFERROR(IF(Pinjaman_Belum_Dibayar*Nilai_Dimasukkan,Pembayaran_Bulanan,""), "") ->  | F113: =IFERROR(IF(Pinjaman_Belum_Dibayar*Nilai_Dimasukkan,Pinjaman_Pokok,""), "") ->  | G113: =IFERROR(IF(Pinjaman_Belum_Dibayar*Nilai_Dimasukkan,Bunga,""), "") ->  | H113: =IFERROR(IF(Pinjaman_Belum_Dibayar*Nilai_Dimasukkan,Saldo_Akhir,""), "") -> 
B114: =IFERROR(IF(Pinjaman_Belum_Dibayar*Nilai_Dimasukkan,Jumlah_Pembayaran1,""), "") ->  | C114: =IFERROR(IF(Pinjaman_Belum_Dibayar*Nilai_Dimasukkan,Tanggal_Pembayaran,""), "") ->  | D114: =IFERROR(IF(Pinjaman_Belum_Dibayar*Nilai_Dimasukkan,Saldo_Awal,""), "") ->  | E114: =IFERROR(IF(Pinjaman_Belum_Dibayar*Nilai_Dimasukkan,Pembayaran_Bulanan,""), "") ->  | F114: =IFERROR(IF(Pinjaman_Belum_Dibayar*Nilai_Dimasukkan,Pinjaman_Pokok,""), "") ->  | G114: =IFERROR(IF(Pinjaman_Belum_Dibayar*Nilai_Dimasukkan,Bunga,""), "") ->  | H114: =IFERROR(IF(Pinjaman_Belum_Dibayar*Nilai_Dimasukkan,Saldo_Akhir,""), "") -> 
B115: =IFERROR(IF(Pinjaman_Belum_Dibayar*Nilai_Dimasukkan,Jumlah_Pembayaran1,""), "") ->  | C115: =IFERROR(IF(Pinjaman_Belum_Dibayar*Nilai_Dimasukkan,Tanggal_Pembayaran,""), "") ->  | D115: =IFERROR(IF(Pinjaman_Belum_Dibayar*Nilai_Dimasukkan,Saldo_Awal,""), "") ->  | E115: =IFERROR(IF(Pinjaman_Belum_Dibayar*Nilai_Dimasukkan,Pembayaran_Bulanan,""), "") ->  | F115: =IFERROR(IF(Pinjaman_Belum_Dibayar*Nilai_Dimasukkan,Pinjaman_Pokok,""), "") ->  | G115: =IFERROR(IF(Pinjaman_Belum_Dibayar*Nilai_Dimasukkan,Bunga,""), "") ->  | H115: =IFERROR(IF(Pinjaman_Belum_Dibayar*Nilai_Dimasukkan,Saldo_Akhir,""), "") -> 
B116: =IFERROR(IF(Pinjaman_Belum_Dibayar*Nilai_Dimasukkan,Jumlah_Pembayaran1,""), "") ->  | C116: =IFERROR(IF(Pinjaman_Belum_Dibayar*Nilai_Dimasukkan,Tanggal_Pembayaran,""), "") ->  | D116: =IFERROR(IF(Pinjaman_Belum_Dibayar*Nilai_Dimasukkan,Saldo_Awal,""), "") ->  | E116: =IFERROR(IF(Pinjaman_Belum_Dibayar*Nilai_Dimasukkan,Pembayaran_Bulanan,""), "") ->  | F116: =IFERROR(IF(Pinjaman_Belum_Dibayar*Nilai_Dimasukkan,Pinjaman_Pokok,""), "") ->  | G116: =IFERROR(IF(Pinjaman_Belum_Dibayar*Nilai_Dimasukkan,Bunga,""), "") ->  | H116: =IFERROR(IF(Pinjaman_Belum_Dibayar*Nilai_Dimasukkan,Saldo_Akhir,""), "") -> 
B117: =IFERROR(IF(Pinjaman_Belum_Dibayar*Nilai_Dimasukkan,Jumlah_Pembayaran1,""), "") ->  | C117: =IFERROR(IF(Pinjaman_Belum_Dibayar*Nilai_Dimasukkan,Tanggal_Pembayaran,""), "") ->  | D117: =IFERROR(IF(Pinjaman_Belum_Dibayar*Nilai_Dimasukkan,Saldo_Awal,""), "") ->  | E117: =IFERROR(IF(Pinjaman_Belum_Dibayar*Nilai_Dimasukkan,Pembayaran_Bulanan,""), "") ->  | F117: =IFERROR(IF(Pinjaman_Belum_Dibayar*Nilai_Dimasukkan,Pinjaman_Pokok,""), "") ->  | G117: =IFERROR(IF(Pinjaman_Belum_Dibayar*Nilai_Dimasukkan,Bunga,""), "") ->  | H117: =IFERROR(IF(Pinjaman_Belum_Dibayar*Nilai_Dimasukkan,Saldo_Akhir,""), "") -> 
B118: =IFERROR(IF(Pinjaman_Belum_Dibayar*Nilai_Dimasukkan,Jumlah_Pembayaran1,""), "") ->  | C118: =IFERROR(IF(Pinjaman_Belum_Dibayar*Nilai_Dimasukkan,Tanggal_Pembayaran,""), "") ->  | D118: =IFERROR(IF(Pinjaman_Belum_Dibayar*Nilai_Dimasukkan,Saldo_Awal,""), "") ->  | E118: =IFERROR(IF(Pinjaman_Belum_Dibayar*Nilai_Dimasukkan,Pembayaran_Bulanan,""), "") ->  | F118: =IFERROR(IF(Pinjaman_Belum_Dibayar*Nilai_Dimasukkan,Pinjaman_Pokok,""), "") ->  | G118: =IFERROR(IF(Pinjaman_Belum_Dibayar*Nilai_Dimasukkan,Bunga,""), "") ->  | H118: =IFERROR(IF(Pinjaman_Belum_Dibayar*Nilai_Dimasukkan,Saldo_Akhir,""), "") -> 
B119: =IFERROR(IF(Pinjaman_Belum_Dibayar*Nilai_Dimasukkan,Jumlah_Pembayaran1,""), "") ->  | C119: =IFERROR(IF(Pinjaman_Belum_Dibayar*Nilai_Dimasukkan,Tanggal_Pembayaran,""), "") ->  | D119: =IFERROR(IF(Pinjaman_Belum_Dibayar*Nilai_Dimasukkan,Saldo_Awal,""), "") ->  | E119: =IFERROR(IF(Pinjaman_Belum_Dibayar*Nilai_Dimasukkan,Pembayaran_Bulanan,""), "") ->  | F119: =IFERROR(IF(Pinjaman_Belum_Dibayar*Nilai_Dimasukkan,Pinjaman_Pokok,""), "") ->  | G119: =IFERROR(IF(Pinjaman_Belum_Dibayar*Nilai_Dimasukkan,Bunga,""), "") ->  | H119: =IFERROR(IF(Pinjaman_Belum_Dibayar*Nilai_Dimasukkan,Saldo_Akhir,""), "") -> 
B120: =IFERROR(IF(Pinjaman_Belum_Dibayar*Nilai_Dimasukkan,Jumlah_Pembayaran1,""), "") ->  | C120: =IFERROR(IF(Pinjaman_Belum_Dibayar*Nilai_Dimasukkan,Tanggal_Pembayaran,""), "") ->  | D120: =IFERROR(IF(Pinjaman_Belum_Dibayar*Nilai_Dimasukkan,Saldo_Awal,""), "") ->  | E120: =IFERROR(IF(Pinjaman_Belum_Dibayar*Nilai_Dimasukkan,Pembayaran_Bulanan,""), "") ->  | F120: =IFERROR(IF(Pinjaman_Belum_Dibayar*Nilai_Dimasukkan,Pinjaman_Pokok,""), "") ->  | G120: =IFERROR(IF(Pinjaman_Belum_Dibayar*Nilai_Dimasukkan,Bunga,""), "") ->  | H120: =IFERROR(IF(Pinjaman_Belum_Dibayar*Nilai_Dimasukkan,Saldo_Akhir,""), "") -> 
B121: =IFERROR(IF(Pinjaman_Belum_Dibayar*Nilai_Dimasukkan,Jumlah_Pembayaran1,""), "") ->  | C121: =IFERROR(IF(Pinjaman_Belum_Dibayar*Nilai_Dimasukkan,Tanggal_Pembayaran,""), "") ->  | D121: =IFERROR(IF(Pinjaman_Belum_Dibayar*Nilai_Dimasukkan,Saldo_Awal,""), "") ->  | E121: =IFERROR(IF(Pinjaman_Belum_Dibayar*Nilai_Dimasukkan,Pembayaran_Bulanan,""), "") ->  | F121: =IFERROR(IF(Pinjaman_Belum_Dibayar*Nilai_Dimasukkan,Pinjaman_Pokok,""), "") ->  | G121: =IFERROR(IF(Pinjaman_Belum_Dibayar*Nilai_Dimasukkan,Bunga,""), "") ->  | H121: =IFERROR(IF(Pinjaman_Belum_Dibayar*Nilai_Dimasukkan,Saldo_Akhir,""), "") -> 
B122: =IFERROR(IF(Pinjaman_Belum_Dibayar*Nilai_Dimasukkan,Jumlah_Pembayaran1,""), "") ->  | C122: =IFERROR(IF(Pinjaman_Belum_Dibayar*Nilai_Dimasukkan,Tanggal_Pembayaran,""), "") ->  | D122: =IFERROR(IF(Pinjaman_Belum_Dibayar*Nilai_Dimasukkan,Saldo_Awal,""), "") ->  | E122: =IFERROR(IF(Pinjaman_Belum_Dibayar*Nilai_Dimasukkan,Pembayaran_Bulanan,""), "") ->  | F122: =IFERROR(IF(Pinjaman_Belum_Dibayar*Nilai_Dimasukkan,Pinjaman_Pokok,""), "") ->  | G122: =IFERROR(IF(Pinjaman_Belum_Dibayar*Nilai_Dimasukkan,Bunga,""), "") ->  | H122: =IFERROR(IF(Pinjaman_Belum_Dibayar*Nilai_Dimasukkan,Saldo_Akhir,""), "") -> 
B123: =IFERROR(IF(Pinjaman_Belum_Dibayar*Nilai_Dimasukkan,Jumlah_Pembayaran1,""), "") ->  | C123: =IFERROR(IF(Pinjaman_Belum_Dibayar*Nilai_Dimasukkan,Tanggal_Pembayaran,""), "") ->  | D123: =IFERROR(IF(Pinjaman_Belum_Dibayar*Nilai_Dimasukkan,Saldo_Awal,""), "") ->  | E123: =IFERROR(IF(Pinjaman_Belum_Dibayar*Nilai_Dimasukkan,Pembayaran_Bulanan,""), "") ->  | F123: =IFERROR(IF(Pinjaman_Belum_Dibayar*Nilai_Dimasukkan,Pinjaman_Pokok,""), "") ->  | G123: =IFERROR(IF(Pinjaman_Belum_Dibayar*Nilai_Dimasukkan,Bunga,""), "") ->  | H123: =IFERROR(IF(Pinjaman_Belum_Dibayar*Nilai_Dimasukkan,Saldo_Akhir,""), "") -> 
B124: =IFERROR(IF(Pinjaman_Belum_Dibayar*Nilai_Dimasukkan,Jumlah_Pembayaran1,""), "") ->  | C124: =IFERROR(IF(Pinjaman_Belum_Dibayar*Nilai_Dimasukkan,Tanggal_Pembayaran,""), "") ->  | D124: =IFERROR(IF(Pinjaman_Belum_Dibayar*Nilai_Dimasukkan,Saldo_Awal,""), "") ->  | E124: =IFERROR(IF(Pinjaman_Belum_Dibayar*Nilai_Dimasukkan,Pembayaran_Bulanan,""), "") ->  | F124: =IFERROR(IF(Pinjaman_Belum_Dibayar*Nilai_Dimasukkan,Pinjaman_Pokok,""), "") ->  | G124: =IFERROR(IF(Pinjaman_Belum_Dibayar*Nilai_Dimasukkan,Bunga,""), "") ->  | H124: =IFERROR(IF(Pinjaman_Belum_Dibayar*Nilai_Dimasukkan,Saldo_Akhir,""), "") -> 
B125: =IFERROR(IF(Pinjaman_Belum_Dibayar*Nilai_Dimasukkan,Jumlah_Pembayaran1,""), "") ->  | C125: =IFERROR(IF(Pinjaman_Belum_Dibayar*Nilai_Dimasukkan,Tanggal_Pembayaran,""), "") ->  | D125: =IFERROR(IF(Pinjaman_Belum_Dibayar*Nilai_Dimasukkan,Saldo_Awal,""), "") ->  | E125: =IFERROR(IF(Pinjaman_Belum_Dibayar*Nilai_Dimasukkan,Pembayaran_Bulanan,""), "") ->  | F125: =IFERROR(IF(Pinjaman_Belum_Dibayar*Nilai_Dimasukkan,Pinjaman_Pokok,""), "") ->  | G125: =IFERROR(IF(Pinjaman_Belum_Dibayar*Nilai_Dimasukkan,Bunga,""), "") ->  | H125: =IFERROR(IF(Pinjaman_Belum_Dibayar*Nilai_Dimasukkan,Saldo_Akhir,""), "") -> 
B126: =IFERROR(IF(Pinjaman_Belum_Dibayar*Nilai_Dimasukkan,Jumlah_Pembayaran1,""), "") ->  | C126: =IFERROR(IF(Pinjaman_Belum_Dibayar*Nilai_Dimasukkan,Tanggal_Pembayaran,""), "") ->  | D126: =IFERROR(IF(Pinjaman_Belum_Dibayar*Nilai_Dimasukkan,Saldo_Awal,""), "") ->  | E126: =IFERROR(IF(Pinjaman_Belum_Dibayar*Nilai_Dimasukkan,Pembayaran_Bulanan,""), "") ->  | F126: =IFERROR(IF(Pinjaman_Belum_Dibayar*Nilai_Dimasukkan,Pinjaman_Pokok,""), "") ->  | G126: =IFERROR(IF(Pinjaman_Belum_Dibayar*Nilai_Dimasukkan,Bunga,""), "") ->  | H126: =IFERROR(IF(Pinjaman_Belum_Dibayar*Nilai_Dimasukkan,Saldo_Akhir,""), "") -> 
B127: =IFERROR(IF(Pinjaman_Belum_Dibayar*Nilai_Dimasukkan,Jumlah_Pembayaran1,""), "") ->  | C127: =IFERROR(IF(Pinjaman_Belum_Dibayar*Nilai_Dimasukkan,Tanggal_Pembayaran,""), "") ->  | D127: =IFERROR(IF(Pinjaman_Belum_Dibayar*Nilai_Dimasukkan,Saldo_Awal,""), "") ->  | E127: =IFERROR(IF(Pinjaman_Belum_Dibayar*Nilai_Dimasukkan,Pembayaran_Bulanan,""), "") ->  | F127: =IFERROR(IF(Pinjaman_Belum_Dibayar*Nilai_Dimasukkan,Pinjaman_Pokok,""), "") ->  | G127: =IFERROR(IF(Pinjaman_Belum_Dibayar*Nilai_Dimasukkan,Bunga,""), "") ->  | H127: =IFERROR(IF(Pinjaman_Belum_Dibayar*Nilai_Dimasukkan,Saldo_Akhir,""), "") -> 
B128: =IFERROR(IF(Pinjaman_Belum_Dibayar*Nilai_Dimasukkan,Jumlah_Pembayaran1,""), "") ->  | C128: =IFERROR(IF(Pinjaman_Belum_Dibayar*Nilai_Dimasukkan,Tanggal_Pembayaran,""), "") ->  | D128: =IFERROR(IF(Pinjaman_Belum_Dibayar*Nilai_Dimasukkan,Saldo_Awal,""), "") ->  | E128: =IFERROR(IF(Pinjaman_Belum_Dibayar*Nilai_Dimasukkan,Pembayaran_Bulanan,""), "") ->  | F128: =IFERROR(IF(Pinjaman_Belum_Dibayar*Nilai_Dimasukkan,Pinjaman_Pokok,""), "") ->  | G128: =IFERROR(IF(Pinjaman_Belum_Dibayar*Nilai_Dimasukkan,Bunga,""), "") ->  | H128: =IFERROR(IF(Pinjaman_Belum_Dibayar*Nilai_Dimasukkan,Saldo_Akhir,""), "") -> 
B129: =IFERROR(IF(Pinjaman_Belum_Dibayar*Nilai_Dimasukkan,Jumlah_Pembayaran1,""), "") ->  | C129: =IFERROR(IF(Pinjaman_Belum_Dibayar*Nilai_Dimasukkan,Tanggal_Pembayaran,""), "") ->  | D129: =IFERROR(IF(Pinjaman_Belum_Dibayar*Nilai_Dimasukkan,Saldo_Awal,""), "") ->  | E129: =IFERROR(IF(Pinjaman_Belum_Dibayar*Nilai_Dimasukkan,Pembayaran_Bulanan,""), "") ->  | F129: =IFERROR(IF(Pinjaman_Belum_Dibayar*Nilai_Dimasukkan,Pinjaman_Pokok,""), "") ->  | G129: =IFERROR(IF(Pinjaman_Belum_Dibayar*Nilai_Dimasukkan,Bunga,""), "") ->  | H129: =IFERROR(IF(Pinjaman_Belum_Dibayar*Nilai_Dimasukkan,Saldo_Akhir,""), "") -> 
B130: =IFERROR(IF(Pinjaman_Belum_Dibayar*Nilai_Dimasukkan,Jumlah_Pembayaran1,""), "") ->  | C130: =IFERROR(IF(Pinjaman_Belum_Dibayar*Nilai_Dimasukkan,Tanggal_Pembayaran,""), "") ->  | D130: =IFERROR(IF(Pinjaman_Belum_Dibayar*Nilai_Dimasukkan,Saldo_Awal,""), "") ->  | E130: =IFERROR(IF(Pinjaman_Belum_Dibayar*Nilai_Dimasukkan,Pembayaran_Bulanan,""), "") ->  | F130: =IFERROR(IF(Pinjaman_Belum_Dibayar*Nilai_Dimasukkan,Pinjaman_Pokok,""), "") ->  | G130: =IFERROR(IF(Pinjaman_Belum_Dibayar*Nilai_Dimasukkan,Bunga,""), "") ->  | H130: =IFERROR(IF(Pinjaman_Belum_Dibayar*Nilai_Dimasukkan,Saldo_Akhir,""), "") -> 
B131: =IFERROR(IF(Pinjaman_Belum_Dibayar*Nilai_Dimasukkan,Jumlah_Pembayaran1,""), "") ->  | C131: =IFERROR(IF(Pinjaman_Belum_Dibayar*Nilai_Dimasukkan,Tanggal_Pembayaran,""), "") ->  | D131: =IFERROR(IF(Pinjaman_Belum_Dibayar*Nilai_Dimasukkan,Saldo_Awal,""), "") ->  | E131: =IFERROR(IF(Pinjaman_Belum_Dibayar*Nilai_Dimasukkan,Pembayaran_Bulanan,""), "") ->  | F131: =IFERROR(IF(Pinjaman_Belum_Dibayar*Nilai_Dimasukkan,Pinjaman_Pokok,""), "") ->  | G131: =IFERROR(IF(Pinjaman_Belum_Dibayar*Nilai_Dimasukkan,Bunga,""), "") ->  | H131: =IFERROR(IF(Pinjaman_Belum_Dibayar*Nilai_Dimasukkan,Saldo_Akhir,""), "") -> 
B132: =IFERROR(IF(Pinjaman_Belum_Dibayar*Nilai_Dimasukkan,Jumlah_Pembayaran1,""), "") ->  | C132: =IFERROR(IF(Pinjaman_Belum_Dibayar*Nilai_Dimasukkan,Tanggal_Pembayaran,""), "") ->  | D132: =IFERROR(IF(Pinjaman_Belum_Dibayar*Nilai_Dimasukkan,Saldo_Awal,""), "") ->  | E132: =IFERROR(IF(Pinjaman_Belum_Dibayar*Nilai_Dimasukkan,Pembayaran_Bulanan,""), "") ->  | F132: =IFERROR(IF(Pinjaman_Belum_Dibayar*Nilai_Dimasukkan,Pinjaman_Pokok,""), "") ->  | G132: =IFERROR(IF(Pinjaman_Belum_Dibayar*Nilai_Dimasukkan,Bunga,""), "") ->  | H132: =IFERROR(IF(Pinjaman_Belum_Dibayar*Nilai_Dimasukkan,Saldo_Akhir,""), "") -> 
B133: =IFERROR(IF(Pinjaman_Belum_Dibayar*Nilai_Dimasukkan,Jumlah_Pembayaran1,""), "") ->  | C133: =IFERROR(IF(Pinjaman_Belum_Dibayar*Nilai_Dimasukkan,Tanggal_Pembayaran,""), "") ->  | D133: =IFERROR(IF(Pinjaman_Belum_Dibayar*Nilai_Dimasukkan,Saldo_Awal,""), "") ->  | E133: =IFERROR(IF(Pinjaman_Belum_Dibayar*Nilai_Dimasukkan,Pembayaran_Bulanan,""), "") ->  | F133: =IFERROR(IF(Pinjaman_Belum_Dibayar*Nilai_Dimasukkan,Pinjaman_Pokok,""), "") ->  | G133: =IFERROR(IF(Pinjaman_Belum_Dibayar*Nilai_Dimasukkan,Bunga,""), "") ->  | H133: =IFERROR(IF(Pinjaman_Belum_Dibayar*Nilai_Dimasukkan,Saldo_Akhir,""), "") -> 
B134: =IFERROR(IF(Pinjaman_Belum_Dibayar*Nilai_Dimasukkan,Jumlah_Pembayaran1,""), "") ->  | C134: =IFERROR(IF(Pinjaman_Belum_Dibayar*Nilai_Dimasukkan,Tanggal_Pembayaran,""), "") ->  | D134: =IFERROR(IF(Pinjaman_Belum_Dibayar*Nilai_Dimasukkan,Saldo_Awal,""), "") ->  | E134: =IFERROR(IF(Pinjaman_Belum_Dibayar*Nilai_Dimasukkan,Pembayaran_Bulanan,""), "") ->  | F134: =IFERROR(IF(Pinjaman_Belum_Dibayar*Nilai_Dimasukkan,Pinjaman_Pokok,""), "") ->  | G134: =IFERROR(IF(Pinjaman_Belum_Dibayar*Nilai_Dimasukkan,Bunga,""), "") ->  | H134: =IFERROR(IF(Pinjaman_Belum_Dibayar*Nilai_Dimasukkan,Saldo_Akhir,""), "") -> 
B135: =IFERROR(IF(Pinjaman_Belum_Dibayar*Nilai_Dimasukkan,Jumlah_Pembayaran1,""), "") ->  | C135: =IFERROR(IF(Pinjaman_Belum_Dibayar*Nilai_Dimasukkan,Tanggal_Pembayaran,""), "") ->  | D135: =IFERROR(IF(Pinjaman_Belum_Dibayar*Nilai_Dimasukkan,Saldo_Awal,""), "") ->  | E135: =IFERROR(IF(Pinjaman_Belum_Dibayar*Nilai_Dimasukkan,Pembayaran_Bulanan,""), "") ->  | F135: =IFERROR(IF(Pinjaman_Belum_Dibayar*Nilai_Dimasukkan,Pinjaman_Pokok,""), "") ->  | G135: =IFERROR(IF(Pinjaman_Belum_Dibayar*Nilai_Dimasukkan,Bunga,""), "") ->  | H135: =IFERROR(IF(Pinjaman_Belum_Dibayar*Nilai_Dimasukkan,Saldo_Akhir,""), "") -> 
B136: =IFERROR(IF(Pinjaman_Belum_Dibayar*Nilai_Dimasukkan,Jumlah_Pembayaran1,""), "") ->  | C136: =IFERROR(IF(Pinjaman_Belum_Dibayar*Nilai_Dimasukkan,Tanggal_Pembayaran,""), "") ->  | D136: =IFERROR(IF(Pinjaman_Belum_Dibayar*Nilai_Dimasukkan,Saldo_Awal,""), "") ->  | E136: =IFERROR(IF(Pinjaman_Belum_Dibayar*Nilai_Dimasukkan,Pembayaran_Bulanan,""), "") ->  | F136: =IFERROR(IF(Pinjaman_Belum_Dibayar*Nilai_Dimasukkan,Pinjaman_Pokok,""), "") ->  | G136: =IFERROR(IF(Pinjaman_Belum_Dibayar*Nilai_Dimasukkan,Bunga,""), "") ->  | H136: =IFERROR(IF(Pinjaman_Belum_Dibayar*Nilai_Dimasukkan,Saldo_Akhir,""), "") -> 
B137: =IFERROR(IF(Pinjaman_Belum_Dibayar*Nilai_Dimasukkan,Jumlah_Pembayaran1,""), "") ->  | C137: =IFERROR(IF(Pinjaman_Belum_Dibayar*Nilai_Dimasukkan,Tanggal_Pembayaran,""), "") ->  | D137: =IFERROR(IF(Pinjaman_Belum_Dibayar*Nilai_Dimasukkan,Saldo_Awal,""), "") ->  | E137: =IFERROR(IF(Pinjaman_Belum_Dibayar*Nilai_Dimasukkan,Pembayaran_Bulanan,""), "") ->  | F137: =IFERROR(IF(Pinjaman_Belum_Dibayar*Nilai_Dimasukkan,Pinjaman_Pokok,""), "") ->  | G137: =IFERROR(IF(Pinjaman_Belum_Dibayar*Nilai_Dimasukkan,Bunga,""), "") ->  | H137: =IFERROR(IF(Pinjaman_Belum_Dibayar*Nilai_Dimasukkan,Saldo_Akhir,""), "") -> 
B138: =IFERROR(IF(Pinjaman_Belum_Dibayar*Nilai_Dimasukkan,Jumlah_Pembayaran1,""), "") ->  | C138: =IFERROR(IF(Pinjaman_Belum_Dibayar*Nilai_Dimasukkan,Tanggal_Pembayaran,""), "") ->  | D138: =IFERROR(IF(Pinjaman_Belum_Dibayar*Nilai_Dimasukkan,Saldo_Awal,""), "") ->  | E138: =IFERROR(IF(Pinjaman_Belum_Dibayar*Nilai_Dimasukkan,Pembayaran_Bulanan,""), "") ->  | F138: =IFERROR(IF(Pinjaman_Belum_Dibayar*Nilai_Dimasukkan,Pinjaman_Pokok,""), "") ->  | G138: =IFERROR(IF(Pinjaman_Belum_Dibayar*Nilai_Dimasukkan,Bunga,""), "") ->  | H138: =IFERROR(IF(Pinjaman_Belum_Dibayar*Nilai_Dimasukkan,Saldo_Akhir,""), "") -> 
B139: =IFERROR(IF(Pinjaman_Belum_Dibayar*Nilai_Dimasukkan,Jumlah_Pembayaran1,""), "") ->  | C139: =IFERROR(IF(Pinjaman_Belum_Dibayar*Nilai_Dimasukkan,Tanggal_Pembayaran,""), "") ->  | D139: =IFERROR(IF(Pinjaman_Belum_Dibayar*Nilai_Dimasukkan,Saldo_Awal,""), "") ->  | E139: =IFERROR(IF(Pinjaman_Belum_Dibayar*Nilai_Dimasukkan,Pembayaran_Bulanan,""), "") ->  | F139: =IFERROR(IF(Pinjaman_Belum_Dibayar*Nilai_Dimasukkan,Pinjaman_Pokok,""), "") ->  | G139: =IFERROR(IF(Pinjaman_Belum_Dibayar*Nilai_Dimasukkan,Bunga,""), "") ->  | H139: =IFERROR(IF(Pinjaman_Belum_Dibayar*Nilai_Dimasukkan,Saldo_Akhir,""), "") -> 
B140: =IFERROR(IF(Pinjaman_Belum_Dibayar*Nilai_Dimasukkan,Jumlah_Pembayaran1,""), "") ->  | C140: =IFERROR(IF(Pinjaman_Belum_Dibayar*Nilai_Dimasukkan,Tanggal_Pembayaran,""), "") ->  | D140: =IFERROR(IF(Pinjaman_Belum_Dibayar*Nilai_Dimasukkan,Saldo_Awal,""), "") ->  | E140: =IFERROR(IF(Pinjaman_Belum_Dibayar*Nilai_Dimasukkan,Pembayaran_Bulanan,""), "") ->  | F140: =IFERROR(IF(Pinjaman_Belum_Dibayar*Nilai_Dimasukkan,Pinjaman_Pokok,""), "") ->  | G140: =IFERROR(IF(Pinjaman_Belum_Dibayar*Nilai_Dimasukkan,Bunga,""), "") ->  | H140: =IFERROR(IF(Pinjaman_Belum_Dibayar*Nilai_Dimasukkan,Saldo_Akhir,""), "") -> 
B141: =IFERROR(IF(Pinjaman_Belum_Dibayar*Nilai_Dimasukkan,Jumlah_Pembayaran1,""), "") ->  | C141: =IFERROR(IF(Pinjaman_Belum_Dibayar*Nilai_Dimasukkan,Tanggal_Pembayaran,""), "") ->  | D141: =IFERROR(IF(Pinjaman_Belum_Dibayar*Nilai_Dimasukkan,Saldo_Awal,""), "") ->  | E141: =IFERROR(IF(Pinjaman_Belum_Dibayar*Nilai_Dimasukkan,Pembayaran_Bulanan,""), "") ->  | F141: =IFERROR(IF(Pinjaman_Belum_Dibayar*Nilai_Dimasukkan,Pinjaman_Pokok,""), "") ->  | G141: =IFERROR(IF(Pinjaman_Belum_Dibayar*Nilai_Dimasukkan,Bunga,""), "") ->  | H141: =IFERROR(IF(Pinjaman_Belum_Dibayar*Nilai_Dimasukkan,Saldo_Akhir,""), "") -> 
B142: =IFERROR(IF(Pinjaman_Belum_Dibayar*Nilai_Dimasukkan,Jumlah_Pembayaran1,""), "") ->  | C142: =IFERROR(IF(Pinjaman_Belum_Dibayar*Nilai_Dimasukkan,Tanggal_Pembayaran,""), "") ->  | D142: =IFERROR(IF(Pinjaman_Belum_Dibayar*Nilai_Dimasukkan,Saldo_Awal,""), "") ->  | E142: =IFERROR(IF(Pinjaman_Belum_Dibayar*Nilai_Dimasukkan,Pembayaran_Bulanan,""), "") ->  | F142: =IFERROR(IF(Pinjaman_Belum_Dibayar*Nilai_Dimasukkan,Pinjaman_Pokok,""), "") ->  | G142: =IFERROR(IF(Pinjaman_Belum_Dibayar*Nilai_Dimasukkan,Bunga,""), "") ->  | H142: =IFERROR(IF(Pinjaman_Belum_Dibayar*Nilai_Dimasukkan,Saldo_Akhir,""), "") -> 
B143: =IFERROR(IF(Pinjaman_Belum_Dibayar*Nilai_Dimasukkan,Jumlah_Pembayaran1,""), "") ->  | C143: =IFERROR(IF(Pinjaman_Belum_Dibayar*Nilai_Dimasukkan,Tanggal_Pembayaran,""), "") ->  | D143: =IFERROR(IF(Pinjaman_Belum_Dibayar*Nilai_Dimasukkan,Saldo_Awal,""), "") ->  | E143: =IFERROR(IF(Pinjaman_Belum_Dibayar*Nilai_Dimasukkan,Pembayaran_Bulanan,""), "") ->  | F143: =IFERROR(IF(Pinjaman_Belum_Dibayar*Nilai_Dimasukkan,Pinjaman_Pokok,""), "") ->  | G143: =IFERROR(IF(Pinjaman_Belum_Dibayar*Nilai_Dimasukkan,Bunga,""), "") ->  | H143: =IFERROR(IF(Pinjaman_Belum_Dibayar*Nilai_Dimasukkan,Saldo_Akhir,""), "") -> 
B144: =IFERROR(IF(Pinjaman_Belum_Dibayar*Nilai_Dimasukkan,Jumlah_Pembayaran1,""), "") ->  | C144: =IFERROR(IF(Pinjaman_Belum_Dibayar*Nilai_Dimasukkan,Tanggal_Pembayaran,""), "") ->  | D144: =IFERROR(IF(Pinjaman_Belum_Dibayar*Nilai_Dimasukkan,Saldo_Awal,""), "") ->  | E144: =IFERROR(IF(Pinjaman_Belum_Dibayar*Nilai_Dimasukkan,Pembayaran_Bulanan,""), "") ->  | F144: =IFERROR(IF(Pinjaman_Belum_Dibayar*Nilai_Dimasukkan,Pinjaman_Pokok,""), "") ->  | G144: =IFERROR(IF(Pinjaman_Belum_Dibayar*Nilai_Dimasukkan,Bunga,""), "") ->  | H144: =IFERROR(IF(Pinjaman_Belum_Dibayar*Nilai_Dimasukkan,Saldo_Akhir,""), "") -> 
B145: =IFERROR(IF(Pinjaman_Belum_Dibayar*Nilai_Dimasukkan,Jumlah_Pembayaran1,""), "") ->  | C145: =IFERROR(IF(Pinjaman_Belum_Dibayar*Nilai_Dimasukkan,Tanggal_Pembayaran,""), "") ->  | D145: =IFERROR(IF(Pinjaman_Belum_Dibayar*Nilai_Dimasukkan,Saldo_Awal,""), "") ->  | E145: =IFERROR(IF(Pinjaman_Belum_Dibayar*Nilai_Dimasukkan,Pembayaran_Bulanan,""), "") ->  | F145: =IFERROR(IF(Pinjaman_Belum_Dibayar*Nilai_Dimasukkan,Pinjaman_Pokok,""), "") ->  | G145: =IFERROR(IF(Pinjaman_Belum_Dibayar*Nilai_Dimasukkan,Bunga,""), "") ->  | H145: =IFERROR(IF(Pinjaman_Belum_Dibayar*Nilai_Dimasukkan,Saldo_Akhir,""), "") -> 
B146: =IFERROR(IF(Pinjaman_Belum_Dibayar*Nilai_Dimasukkan,Jumlah_Pembayaran1,""), "") ->  | C146: =IFERROR(IF(Pinjaman_Belum_Dibayar*Nilai_Dimasukkan,Tanggal_Pembayaran,""), "") ->  | D146: =IFERROR(IF(Pinjaman_Belum_Dibayar*Nilai_Dimasukkan,Saldo_Awal,""), "") ->  | E146: =IFERROR(IF(Pinjaman_Belum_Dibayar*Nilai_Dimasukkan,Pembayaran_Bulanan,""), "") ->  | F146: =IFERROR(IF(Pinjaman_Belum_Dibayar*Nilai_Dimasukkan,Pinjaman_Pokok,""), "") ->  | G146: =IFERROR(IF(Pinjaman_Belum_Dibayar*Nilai_Dimasukkan,Bunga,""), "") ->  | H146: =IFERROR(IF(Pinjaman_Belum_Dibayar*Nilai_Dimasukkan,Saldo_Akhir,""), "") -> 
B147: =IFERROR(IF(Pinjaman_Belum_Dibayar*Nilai_Dimasukkan,Jumlah_Pembayaran1,""), "") ->  | C147: =IFERROR(IF(Pinjaman_Belum_Dibayar*Nilai_Dimasukkan,Tanggal_Pembayaran,""), "") ->  | D147: =IFERROR(IF(Pinjaman_Belum_Dibayar*Nilai_Dimasukkan,Saldo_Awal,""), "") ->  | E147: =IFERROR(IF(Pinjaman_Belum_Dibayar*Nilai_Dimasukkan,Pembayaran_Bulanan,""), "") ->  | F147: =IFERROR(IF(Pinjaman_Belum_Dibayar*Nilai_Dimasukkan,Pinjaman_Pokok,""), "") ->  | G147: =IFERROR(IF(Pinjaman_Belum_Dibayar*Nilai_Dimasukkan,Bunga,""), "") ->  | H147: =IFERROR(IF(Pinjaman_Belum_Dibayar*Nilai_Dimasukkan,Saldo_Akhir,""), "") -> 
B148: =IFERROR(IF(Pinjaman_Belum_Dibayar*Nilai_Dimasukkan,Jumlah_Pembayaran1,""), "") ->  | C148: =IFERROR(IF(Pinjaman_Belum_Dibayar*Nilai_Dimasukkan,Tanggal_Pembayaran,""), "") ->  | D148: =IFERROR(IF(Pinjaman_Belum_Dibayar*Nilai_Dimasukkan,Saldo_Awal,""), "") ->  | E148: =IFERROR(IF(Pinjaman_Belum_Dibayar*Nilai_Dimasukkan,Pembayaran_Bulanan,""), "") ->  | F148: =IFERROR(IF(Pinjaman_Belum_Dibayar*Nilai_Dimasukkan,Pinjaman_Pokok,""), "") ->  | G148: =IFERROR(IF(Pinjaman_Belum_Dibayar*Nilai_Dimasukkan,Bunga,""), "") ->  | H148: =IFERROR(IF(Pinjaman_Belum_Dibayar*Nilai_Dimasukkan,Saldo_Akhir,""), "") -> 
B149: =IFERROR(IF(Pinjaman_Belum_Dibayar*Nilai_Dimasukkan,Jumlah_Pembayaran1,""), "") ->  | C149: =IFERROR(IF(Pinjaman_Belum_Dibayar*Nilai_Dimasukkan,Tanggal_Pembayaran,""), "") ->  | D149: =IFERROR(IF(Pinjaman_Belum_Dibayar*Nilai_Dimasukkan,Saldo_Awal,""), "") ->  | E149: =IFERROR(IF(Pinjaman_Belum_Dibayar*Nilai_Dimasukkan,Pembayaran_Bulanan,""), "") ->  | F149: =IFERROR(IF(Pinjaman_Belum_Dibayar*Nilai_Dimasukkan,Pinjaman_Pokok,""), "") ->  | G149: =IFERROR(IF(Pinjaman_Belum_Dibayar*Nilai_Dimasukkan,Bunga,""), "") ->  | H149: =IFERROR(IF(Pinjaman_Belum_Dibayar*Nilai_Dimasukkan,Saldo_Akhir,""), "") -> 
B150: =IFERROR(IF(Pinjaman_Belum_Dibayar*Nilai_Dimasukkan,Jumlah_Pembayaran1,""), "") ->  | C150: =IFERROR(IF(Pinjaman_Belum_Dibayar*Nilai_Dimasukkan,Tanggal_Pembayaran,""), "") ->  | D150: =IFERROR(IF(Pinjaman_Belum_Dibayar*Nilai_Dimasukkan,Saldo_Awal,""), "") ->  | E150: =IFERROR(IF(Pinjaman_Belum_Dibayar*Nilai_Dimasukkan,Pembayaran_Bulanan,""), "") ->  | F150: =IFERROR(IF(Pinjaman_Belum_Dibayar*Nilai_Dimasukkan,Pinjaman_Pokok,""), "") ->  | G150: =IFERROR(IF(Pinjaman_Belum_Dibayar*Nilai_Dimasukkan,Bunga,""), "") ->  | H150: =IFERROR(IF(Pinjaman_Belum_Dibayar*Nilai_Dimasukkan,Saldo_Akhir,""), "") -> 
B151: =IFERROR(IF(Pinjaman_Belum_Dibayar*Nilai_Dimasukkan,Jumlah_Pembayaran1,""), "") ->  | C151: =IFERROR(IF(Pinjaman_Belum_Dibayar*Nilai_Dimasukkan,Tanggal_Pembayaran,""), "") ->  | D151: =IFERROR(IF(Pinjaman_Belum_Dibayar*Nilai_Dimasukkan,Saldo_Awal,""), "") ->  | E151: =IFERROR(IF(Pinjaman_Belum_Dibayar*Nilai_Dimasukkan,Pembayaran_Bulanan,""), "") ->  | F151: =IFERROR(IF(Pinjaman_Belum_Dibayar*Nilai_Dimasukkan,Pinjaman_Pokok,""), "") ->  | G151: =IFERROR(IF(Pinjaman_Belum_Dibayar*Nilai_Dimasukkan,Bunga,""), "") ->  | H151: =IFERROR(IF(Pinjaman_Belum_Dibayar*Nilai_Dimasukkan,Saldo_Akhir,""), "") -> 
B152: =IFERROR(IF(Pinjaman_Belum_Dibayar*Nilai_Dimasukkan,Jumlah_Pembayaran1,""), "") ->  | C152: =IFERROR(IF(Pinjaman_Belum_Dibayar*Nilai_Dimasukkan,Tanggal_Pembayaran,""), "") ->  | D152: =IFERROR(IF(Pinjaman_Belum_Dibayar*Nilai_Dimasukkan,Saldo_Awal,""), "") ->  | E152: =IFERROR(IF(Pinjaman_Belum_Dibayar*Nilai_Dimasukkan,Pembayaran_Bulanan,""), "") ->  | F152: =IFERROR(IF(Pinjaman_Belum_Dibayar*Nilai_Dimasukkan,Pinjaman_Pokok,""), "") ->  | G152: =IFERROR(IF(Pinjaman_Belum_Dibayar*Nilai_Dimasukkan,Bunga,""), "") ->  | H152: =IFERROR(IF(Pinjaman_Belum_Dibayar*Nilai_Dimasukkan,Saldo_Akhir,""), "") -> 
B153: =IFERROR(IF(Pinjaman_Belum_Dibayar*Nilai_Dimasukkan,Jumlah_Pembayaran1,""), "") ->  | C153: =IFERROR(IF(Pinjaman_Belum_Dibayar*Nilai_Dimasukkan,Tanggal_Pembayaran,""), "") ->  | D153: =IFERROR(IF(Pinjaman_Belum_Dibayar*Nilai_Dimasukkan,Saldo_Awal,""), "") ->  | E153: =IFERROR(IF(Pinjaman_Belum_Dibayar*Nilai_Dimasukkan,Pembayaran_Bulanan,""), "") ->  | F153: =IFERROR(IF(Pinjaman_Belum_Dibayar*Nilai_Dimasukkan,Pinjaman_Pokok,""), "") ->  | G153: =IFERROR(IF(Pinjaman_Belum_Dibayar*Nilai_Dimasukkan,Bunga,""), "") ->  | H153: =IFERROR(IF(Pinjaman_Belum_Dibayar*Nilai_Dimasukkan,Saldo_Akhir,""), "") -> 
B154: =IFERROR(IF(Pinjaman_Belum_Dibayar*Nilai_Dimasukkan,Jumlah_Pembayaran1,""), "") ->  | C154: =IFERROR(IF(Pinjaman_Belum_Dibayar*Nilai_Dimasukkan,Tanggal_Pembayaran,""), "") ->  | D154: =IFERROR(IF(Pinjaman_Belum_Dibayar*Nilai_Dimasukkan,Saldo_Awal,""), "") ->  | E154: =IFERROR(IF(Pinjaman_Belum_Dibayar*Nilai_Dimasukkan,Pembayaran_Bulanan,""), "") ->  | F154: =IFERROR(IF(Pinjaman_Belum_Dibayar*Nilai_Dimasukkan,Pinjaman_Pokok,""), "") ->  | G154: =IFERROR(IF(Pinjaman_Belum_Dibayar*Nilai_Dimasukkan,Bunga,""), "") ->  | H154: =IFERROR(IF(Pinjaman_Belum_Dibayar*Nilai_Dimasukkan,Saldo_Akhir,""), "") -> 
B155: =IFERROR(IF(Pinjaman_Belum_Dibayar*Nilai_Dimasukkan,Jumlah_Pembayaran1,""), "") ->  | C155: =IFERROR(IF(Pinjaman_Belum_Dibayar*Nilai_Dimasukkan,Tanggal_Pembayaran,""), "") ->  | D155: =IFERROR(IF(Pinjaman_Belum_Dibayar*Nilai_Dimasukkan,Saldo_Awal,""), "") ->  | E155: =IFERROR(IF(Pinjaman_Belum_Dibayar*Nilai_Dimasukkan,Pembayaran_Bulanan,""), "") ->  | F155: =IFERROR(IF(Pinjaman_Belum_Dibayar*Nilai_Dimasukkan,Pinjaman_Pokok,""), "") ->  | G155: =IFERROR(IF(Pinjaman_Belum_Dibayar*Nilai_Dimasukkan,Bunga,""), "") ->  | H155: =IFERROR(IF(Pinjaman_Belum_Dibayar*Nilai_Dimasukkan,Saldo_Akhir,""), "") -> 
B156: =IFERROR(IF(Pinjaman_Belum_Dibayar*Nilai_Dimasukkan,Jumlah_Pembayaran1,""), "") ->  | C156: =IFERROR(IF(Pinjaman_Belum_Dibayar*Nilai_Dimasukkan,Tanggal_Pembayaran,""), "") ->  | D156: =IFERROR(IF(Pinjaman_Belum_Dibayar*Nilai_Dimasukkan,Saldo_Awal,""), "") ->  | E156: =IFERROR(IF(Pinjaman_Belum_Dibayar*Nilai_Dimasukkan,Pembayaran_Bulanan,""), "") ->  | F156: =IFERROR(IF(Pinjaman_Belum_Dibayar*Nilai_Dimasukkan,Pinjaman_Pokok,""), "") ->  | G156: =IFERROR(IF(Pinjaman_Belum_Dibayar*Nilai_Dimasukkan,Bunga,""), "") ->  | H156: =IFERROR(IF(Pinjaman_Belum_Dibayar*Nilai_Dimasukkan,Saldo_Akhir,""), "") -> 
B157: =IFERROR(IF(Pinjaman_Belum_Dibayar*Nilai_Dimasukkan,Jumlah_Pembayaran1,""), "") ->  | C157: =IFERROR(IF(Pinjaman_Belum_Dibayar*Nilai_Dimasukkan,Tanggal_Pembayaran,""), "") ->  | D157: =IFERROR(IF(Pinjaman_Belum_Dibayar*Nilai_Dimasukkan,Saldo_Awal,""), "") ->  | E157: =IFERROR(IF(Pinjaman_Belum_Dibayar*Nilai_Dimasukkan,Pembayaran_Bulanan,""), "") ->  | F157: =IFERROR(IF(Pinjaman_Belum_Dibayar*Nilai_Dimasukkan,Pinjaman_Pokok,""), "") ->  | G157: =IFERROR(IF(Pinjaman_Belum_Dibayar*Nilai_Dimasukkan,Bunga,""), "") ->  | H157: =IFERROR(IF(Pinjaman_Belum_Dibayar*Nilai_Dimasukkan,Saldo_Akhir,""), "") -> 
B158: =IFERROR(IF(Pinjaman_Belum_Dibayar*Nilai_Dimasukkan,Jumlah_Pembayaran1,""), "") ->  | C158: =IFERROR(IF(Pinjaman_Belum_Dibayar*Nilai_Dimasukkan,Tanggal_Pembayaran,""), "") ->  | D158: =IFERROR(IF(Pinjaman_Belum_Dibayar*Nilai_Dimasukkan,Saldo_Awal,""), "") ->  | E158: =IFERROR(IF(Pinjaman_Belum_Dibayar*Nilai_Dimasukkan,Pembayaran_Bulanan,""), "") ->  | F158: =IFERROR(IF(Pinjaman_Belum_Dibayar*Nilai_Dimasukkan,Pinjaman_Pokok,""), "") ->  | G158: =IFERROR(IF(Pinjaman_Belum_Dibayar*Nilai_Dimasukkan,Bunga,""), "") ->  | H158: =IFERROR(IF(Pinjaman_Belum_Dibayar*Nilai_Dimasukkan,Saldo_Akhir,""), "") -> 
B159: =IFERROR(IF(Pinjaman_Belum_Dibayar*Nilai_Dimasukkan,Jumlah_Pembayaran1,""), "") ->  | C159: =IFERROR(IF(Pinjaman_Belum_Dibayar*Nilai_Dimasukkan,Tanggal_Pembayaran,""), "") ->  | D159: =IFERROR(IF(Pinjaman_Belum_Dibayar*Nilai_Dimasukkan,Saldo_Awal,""), "") ->  | E159: =IFERROR(IF(Pinjaman_Belum_Dibayar*Nilai_Dimasukkan,Pembayaran_Bulanan,""), "") ->  | F159: =IFERROR(IF(Pinjaman_Belum_Dibayar*Nilai_Dimasukkan,Pinjaman_Pokok,""), "") ->  | G159: =IFERROR(IF(Pinjaman_Belum_Dibayar*Nilai_Dimasukkan,Bunga,""), "") ->  | H159: =IFERROR(IF(Pinjaman_Belum_Dibayar*Nilai_Dimasukkan,Saldo_Akhir,""), "") -> 
B160: =IFERROR(IF(Pinjaman_Belum_Dibayar*Nilai_Dimasukkan,Jumlah_Pembayaran1,""), "") ->  | C160: =IFERROR(IF(Pinjaman_Belum_Dibayar*Nilai_Dimasukkan,Tanggal_Pembayaran,""), "") ->  | D160: =IFERROR(IF(Pinjaman_Belum_Dibayar*Nilai_Dimasukkan,Saldo_Awal,""), "") ->  | E160: =IFERROR(IF(Pinjaman_Belum_Dibayar*Nilai_Dimasukkan,Pembayaran_Bulanan,""), "") ->  | F160: =IFERROR(IF(Pinjaman_Belum_Dibayar*Nilai_Dimasukkan,Pinjaman_Pokok,""), "") ->  | G160: =IFERROR(IF(Pinjaman_Belum_Dibayar*Nilai_Dimasukkan,Bunga,""), "") ->  | H160: =IFERROR(IF(Pinjaman_Belum_Dibayar*Nilai_Dimasukkan,Saldo_Akhir,""), "") -> 
B161: =IFERROR(IF(Pinjaman_Belum_Dibayar*Nilai_Dimasukkan,Jumlah_Pembayaran1,""), "") ->  | C161: =IFERROR(IF(Pinjaman_Belum_Dibayar*Nilai_Dimasukkan,Tanggal_Pembayaran,""), "") ->  | D161: =IFERROR(IF(Pinjaman_Belum_Dibayar*Nilai_Dimasukkan,Saldo_Awal,""), "") ->  | E161: =IFERROR(IF(Pinjaman_Belum_Dibayar*Nilai_Dimasukkan,Pembayaran_Bulanan,""), "") ->  | F161: =IFERROR(IF(Pinjaman_Belum_Dibayar*Nilai_Dimasukkan,Pinjaman_Pokok,""), "") ->  | G161: =IFERROR(IF(Pinjaman_Belum_Dibayar*Nilai_Dimasukkan,Bunga,""), "") ->  | H161: =IFERROR(IF(Pinjaman_Belum_Dibayar*Nilai_Dimasukkan,Saldo_Akhir,""), "") -> 
B162: =IFERROR(IF(Pinjaman_Belum_Dibayar*Nilai_Dimasukkan,Jumlah_Pembayaran1,""), "") ->  | C162: =IFERROR(IF(Pinjaman_Belum_Dibayar*Nilai_Dimasukkan,Tanggal_Pembayaran,""), "") ->  | D162: =IFERROR(IF(Pinjaman_Belum_Dibayar*Nilai_Dimasukkan,Saldo_Awal,""), "") ->  | E162: =IFERROR(IF(Pinjaman_Belum_Dibayar*Nilai_Dimasukkan,Pembayaran_Bulanan,""), "") ->  | F162: =IFERROR(IF(Pinjaman_Belum_Dibayar*Nilai_Dimasukkan,Pinjaman_Pokok,""), "") ->  | G162: =IFERROR(IF(Pinjaman_Belum_Dibayar*Nilai_Dimasukkan,Bunga,""), "") ->  | H162: =IFERROR(IF(Pinjaman_Belum_Dibayar*Nilai_Dimasukkan,Saldo_Akhir,""), "") -> 
B163: =IFERROR(IF(Pinjaman_Belum_Dibayar*Nilai_Dimasukkan,Jumlah_Pembayaran1,""), "") ->  | C163: =IFERROR(IF(Pinjaman_Belum_Dibayar*Nilai_Dimasukkan,Tanggal_Pembayaran,""), "") ->  | D163: =IFERROR(IF(Pinjaman_Belum_Dibayar*Nilai_Dimasukkan,Saldo_Awal,""), "") ->  | E163: =IFERROR(IF(Pinjaman_Belum_Dibayar*Nilai_Dimasukkan,Pembayaran_Bulanan,""), "") ->  | F163: =IFERROR(IF(Pinjaman_Belum_Dibayar*Nilai_Dimasukkan,Pinjaman_Pokok,""), "") ->  | G163: =IFERROR(IF(Pinjaman_Belum_Dibayar*Nilai_Dimasukkan,Bunga,""), "") ->  | H163: =IFERROR(IF(Pinjaman_Belum_Dibayar*Nilai_Dimasukkan,Saldo_Akhir,""), "") -> 
B164: =IFERROR(IF(Pinjaman_Belum_Dibayar*Nilai_Dimasukkan,Jumlah_Pembayaran1,""), "") ->  | C164: =IFERROR(IF(Pinjaman_Belum_Dibayar*Nilai_Dimasukkan,Tanggal_Pembayaran,""), "") ->  | D164: =IFERROR(IF(Pinjaman_Belum_Dibayar*Nilai_Dimasukkan,Saldo_Awal,""), "") ->  | E164: =IFERROR(IF(Pinjaman_Belum_Dibayar*Nilai_Dimasukkan,Pembayaran_Bulanan,""), "") ->  | F164: =IFERROR(IF(Pinjaman_Belum_Dibayar*Nilai_Dimasukkan,Pinjaman_Pokok,""), "") ->  | G164: =IFERROR(IF(Pinjaman_Belum_Dibayar*Nilai_Dimasukkan,Bunga,""), "") ->  | H164: =IFERROR(IF(Pinjaman_Belum_Dibayar*Nilai_Dimasukkan,Saldo_Akhir,""), "") -> 
B165: =IFERROR(IF(Pinjaman_Belum_Dibayar*Nilai_Dimasukkan,Jumlah_Pembayaran1,""), "") ->  | C165: =IFERROR(IF(Pinjaman_Belum_Dibayar*Nilai_Dimasukkan,Tanggal_Pembayaran,""), "") ->  | D165: =IFERROR(IF(Pinjaman_Belum_Dibayar*Nilai_Dimasukkan,Saldo_Awal,""), "") ->  | E165: =IFERROR(IF(Pinjaman_Belum_Dibayar*Nilai_Dimasukkan,Pembayaran_Bulanan,""), "") ->  | F165: =IFERROR(IF(Pinjaman_Belum_Dibayar*Nilai_Dimasukkan,Pinjaman_Pokok,""), "") ->  | G165: =IFERROR(IF(Pinjaman_Belum_Dibayar*Nilai_Dimasukkan,Bunga,""), "") ->  | H165: =IFERROR(IF(Pinjaman_Belum_Dibayar*Nilai_Dimasukkan,Saldo_Akhir,""), "") -> 
B166: =IFERROR(IF(Pinjaman_Belum_Dibayar*Nilai_Dimasukkan,Jumlah_Pembayaran1,""), "") ->  | C166: =IFERROR(IF(Pinjaman_Belum_Dibayar*Nilai_Dimasukkan,Tanggal_Pembayaran,""), "") ->  | D166: =IFERROR(IF(Pinjaman_Belum_Dibayar*Nilai_Dimasukkan,Saldo_Awal,""), "") ->  | E166: =IFERROR(IF(Pinjaman_Belum_Dibayar*Nilai_Dimasukkan,Pembayaran_Bulanan,""), "") ->  | F166: =IFERROR(IF(Pinjaman_Belum_Dibayar*Nilai_Dimasukkan,Pinjaman_Pokok,""), "") ->  | G166: =IFERROR(IF(Pinjaman_Belum_Dibayar*Nilai_Dimasukkan,Bunga,""), "") ->  | H166: =IFERROR(IF(Pinjaman_Belum_Dibayar*Nilai_Dimasukkan,Saldo_Akhir,""), "") -> 
B167: =IFERROR(IF(Pinjaman_Belum_Dibayar*Nilai_Dimasukkan,Jumlah_Pembayaran1,""), "") ->  | C167: =IFERROR(IF(Pinjaman_Belum_Dibayar*Nilai_Dimasukkan,Tanggal_Pembayaran,""), "") ->  | D167: =IFERROR(IF(Pinjaman_Belum_Dibayar*Nilai_Dimasukkan,Saldo_Awal,""), "") ->  | E167: =IFERROR(IF(Pinjaman_Belum_Dibayar*Nilai_Dimasukkan,Pembayaran_Bulanan,""), "") ->  | F167: =IFERROR(IF(Pinjaman_Belum_Dibayar*Nilai_Dimasukkan,Pinjaman_Pokok,""), "") ->  | G167: =IFERROR(IF(Pinjaman_Belum_Dibayar*Nilai_Dimasukkan,Bunga,""), "") ->  | H167: =IFERROR(IF(Pinjaman_Belum_Dibayar*Nilai_Dimasukkan,Saldo_Akhir,""), "") -> 
B168: =IFERROR(IF(Pinjaman_Belum_Dibayar*Nilai_Dimasukkan,Jumlah_Pembayaran1,""), "") ->  | C168: =IFERROR(IF(Pinjaman_Belum_Dibayar*Nilai_Dimasukkan,Tanggal_Pembayaran,""), "") ->  | D168: =IFERROR(IF(Pinjaman_Belum_Dibayar*Nilai_Dimasukkan,Saldo_Awal,""), "") ->  | E168: =IFERROR(IF(Pinjaman_Belum_Dibayar*Nilai_Dimasukkan,Pembayaran_Bulanan,""), "") ->  | F168: =IFERROR(IF(Pinjaman_Belum_Dibayar*Nilai_Dimasukkan,Pinjaman_Pokok,""), "") ->  | G168: =IFERROR(IF(Pinjaman_Belum_Dibayar*Nilai_Dimasukkan,Bunga,""), "") ->  | H168: =IFERROR(IF(Pinjaman_Belum_Dibayar*Nilai_Dimasukkan,Saldo_Akhir,""), "") -> 
B169: =IFERROR(IF(Pinjaman_Belum_Dibayar*Nilai_Dimasukkan,Jumlah_Pembayaran1,""), "") ->  | C169: =IFERROR(IF(Pinjaman_Belum_Dibayar*Nilai_Dimasukkan,Tanggal_Pembayaran,""), "") ->  | D169: =IFERROR(IF(Pinjaman_Belum_Dibayar*Nilai_Dimasukkan,Saldo_Awal,""), "") ->  | E169: =IFERROR(IF(Pinjaman_Belum_Dibayar*Nilai_Dimasukkan,Pembayaran_Bulanan,""), "") ->  | F169: =IFERROR(IF(Pinjaman_Belum_Dibayar*Nilai_Dimasukkan,Pinjaman_Pokok,""), "") ->  | G169: =IFERROR(IF(Pinjaman_Belum_Dibayar*Nilai_Dimasukkan,Bunga,""), "") ->  | H169: =IFERROR(IF(Pinjaman_Belum_Dibayar*Nilai_Dimasukkan,Saldo_Akhir,""), "") -> 
B170: =IFERROR(IF(Pinjaman_Belum_Dibayar*Nilai_Dimasukkan,Jumlah_Pembayaran1,""), "") ->  | C170: =IFERROR(IF(Pinjaman_Belum_Dibayar*Nilai_Dimasukkan,Tanggal_Pembayaran,""), "") ->  | D170: =IFERROR(IF(Pinjaman_Belum_Dibayar*Nilai_Dimasukkan,Saldo_Awal,""), "") ->  | E170: =IFERROR(IF(Pinjaman_Belum_Dibayar*Nilai_Dimasukkan,Pembayaran_Bulanan,""), "") ->  | F170: =IFERROR(IF(Pinjaman_Belum_Dibayar*Nilai_Dimasukkan,Pinjaman_Pokok,""), "") ->  | G170: =IFERROR(IF(Pinjaman_Belum_Dibayar*Nilai_Dimasukkan,Bunga,""), "") ->  | H170: =IFERROR(IF(Pinjaman_Belum_Dibayar*Nilai_Dimasukkan,Saldo_Akhir,""), "") -> 
B171: =IFERROR(IF(Pinjaman_Belum_Dibayar*Nilai_Dimasukkan,Jumlah_Pembayaran1,""), "") ->  | C171: =IFERROR(IF(Pinjaman_Belum_Dibayar*Nilai_Dimasukkan,Tanggal_Pembayaran,""), "") ->  | D171: =IFERROR(IF(Pinjaman_Belum_Dibayar*Nilai_Dimasukkan,Saldo_Awal,""), "") ->  | E171: =IFERROR(IF(Pinjaman_Belum_Dibayar*Nilai_Dimasukkan,Pembayaran_Bulanan,""), "") ->  | F171: =IFERROR(IF(Pinjaman_Belum_Dibayar*Nilai_Dimasukkan,Pinjaman_Pokok,""), "") ->  | G171: =IFERROR(IF(Pinjaman_Belum_Dibayar*Nilai_Dimasukkan,Bunga,""), "") ->  | H171: =IFERROR(IF(Pinjaman_Belum_Dibayar*Nilai_Dimasukkan,Saldo_Akhir,""), "") -> 
B172: =IFERROR(IF(Pinjaman_Belum_Dibayar*Nilai_Dimasukkan,Jumlah_Pembayaran1,""), "") ->  | C172: =IFERROR(IF(Pinjaman_Belum_Dibayar*Nilai_Dimasukkan,Tanggal_Pembayaran,""), "") ->  | D172: =IFERROR(IF(Pinjaman_Belum_Dibayar*Nilai_Dimasukkan,Saldo_Awal,""), "") ->  | E172: =IFERROR(IF(Pinjaman_Belum_Dibayar*Nilai_Dimasukkan,Pembayaran_Bulanan,""), "") ->  | F172: =IFERROR(IF(Pinjaman_Belum_Dibayar*Nilai_Dimasukkan,Pinjaman_Pokok,""), "") ->  | G172: =IFERROR(IF(Pinjaman_Belum_Dibayar*Nilai_Dimasukkan,Bunga,""), "") ->  | H172: =IFERROR(IF(Pinjaman_Belum_Dibayar*Nilai_Dimasukkan,Saldo_Akhir,""), "") -> 
B173: =IFERROR(IF(Pinjaman_Belum_Dibayar*Nilai_Dimasukkan,Jumlah_Pembayaran1,""), "") ->  | C173: =IFERROR(IF(Pinjaman_Belum_Dibayar*Nilai_Dimasukkan,Tanggal_Pembayaran,""), "") ->  | D173: =IFERROR(IF(Pinjaman_Belum_Dibayar*Nilai_Dimasukkan,Saldo_Awal,""), "") ->  | E173: =IFERROR(IF(Pinjaman_Belum_Dibayar*Nilai_Dimasukkan,Pembayaran_Bulanan,""), "") ->  | F173: =IFERROR(IF(Pinjaman_Belum_Dibayar*Nilai_Dimasukkan,Pinjaman_Pokok,""), "") ->  | G173: =IFERROR(IF(Pinjaman_Belum_Dibayar*Nilai_Dimasukkan,Bunga,""), "") ->  | H173: =IFERROR(IF(Pinjaman_Belum_Dibayar*Nilai_Dimasukkan,Saldo_Akhir,""), "") -> 
B174: =IFERROR(IF(Pinjaman_Belum_Dibayar*Nilai_Dimasukkan,Jumlah_Pembayaran1,""), "") ->  | C174: =IFERROR(IF(Pinjaman_Belum_Dibayar*Nilai_Dimasukkan,Tanggal_Pembayaran,""), "") ->  | D174: =IFERROR(IF(Pinjaman_Belum_Dibayar*Nilai_Dimasukkan,Saldo_Awal,""), "") ->  | E174: =IFERROR(IF(Pinjaman_Belum_Dibayar*Nilai_Dimasukkan,Pembayaran_Bulanan,""), "") ->  | F174: =IFERROR(IF(Pinjaman_Belum_Dibayar*Nilai_Dimasukkan,Pinjaman_Pokok,""), "") ->  | G174: =IFERROR(IF(Pinjaman_Belum_Dibayar*Nilai_Dimasukkan,Bunga,""), "") ->  | H174: =IFERROR(IF(Pinjaman_Belum_Dibayar*Nilai_Dimasukkan,Saldo_Akhir,""), "") -> 
B175: =IFERROR(IF(Pinjaman_Belum_Dibayar*Nilai_Dimasukkan,Jumlah_Pembayaran1,""), "") ->  | C175: =IFERROR(IF(Pinjaman_Belum_Dibayar*Nilai_Dimasukkan,Tanggal_Pembayaran,""), "") ->  | D175: =IFERROR(IF(Pinjaman_Belum_Dibayar*Nilai_Dimasukkan,Saldo_Awal,""), "") ->  | E175: =IFERROR(IF(Pinjaman_Belum_Dibayar*Nilai_Dimasukkan,Pembayaran_Bulanan,""), "") ->  | F175: =IFERROR(IF(Pinjaman_Belum_Dibayar*Nilai_Dimasukkan,Pinjaman_Pokok,""), "") ->  | G175: =IFERROR(IF(Pinjaman_Belum_Dibayar*Nilai_Dimasukkan,Bunga,""), "") ->  | H175: =IFERROR(IF(Pinjaman_Belum_Dibayar*Nilai_Dimasukkan,Saldo_Akhir,""), "") -> 
B176: =IFERROR(IF(Pinjaman_Belum_Dibayar*Nilai_Dimasukkan,Jumlah_Pembayaran1,""), "") ->  | C176: =IFERROR(IF(Pinjaman_Belum_Dibayar*Nilai_Dimasukkan,Tanggal_Pembayaran,""), "") ->  | D176: =IFERROR(IF(Pinjaman_Belum_Dibayar*Nilai_Dimasukkan,Saldo_Awal,""), "") ->  | E176: =IFERROR(IF(Pinjaman_Belum_Dibayar*Nilai_Dimasukkan,Pembayaran_Bulanan,""), "") ->  | F176: =IFERROR(IF(Pinjaman_Belum_Dibayar*Nilai_Dimasukkan,Pinjaman_Pokok,""), "") ->  | G176: =IFERROR(IF(Pinjaman_Belum_Dibayar*Nilai_Dimasukkan,Bunga,""), "") ->  | H176: =IFERROR(IF(Pinjaman_Belum_Dibayar*Nilai_Dimasukkan,Saldo_Akhir,""), "") -> 
B177: =IFERROR(IF(Pinjaman_Belum_Dibayar*Nilai_Dimasukkan,Jumlah_Pembayaran1,""), "") ->  | C177: =IFERROR(IF(Pinjaman_Belum_Dibayar*Nilai_Dimasukkan,Tanggal_Pembayaran,""), "") ->  | D177: =IFERROR(IF(Pinjaman_Belum_Dibayar*Nilai_Dimasukkan,Saldo_Awal,""), "") ->  | E177: =IFERROR(IF(Pinjaman_Belum_Dibayar*Nilai_Dimasukkan,Pembayaran_Bulanan,""), "") ->  | F177: =IFERROR(IF(Pinjaman_Belum_Dibayar*Nilai_Dimasukkan,Pinjaman_Pokok,""), "") ->  | G177: =IFERROR(IF(Pinjaman_Belum_Dibayar*Nilai_Dimasukkan,Bunga,""), "") ->  | H177: =IFERROR(IF(Pinjaman_Belum_Dibayar*Nilai_Dimasukkan,Saldo_Akhir,""), "") -> 
B178: =IFERROR(IF(Pinjaman_Belum_Dibayar*Nilai_Dimasukkan,Jumlah_Pembayaran1,""), "") ->  | C178: =IFERROR(IF(Pinjaman_Belum_Dibayar*Nilai_Dimasukkan,Tanggal_Pembayaran,""), "") ->  | D178: =IFERROR(IF(Pinjaman_Belum_Dibayar*Nilai_Dimasukkan,Saldo_Awal,""), "") ->  | E178: =IFERROR(IF(Pinjaman_Belum_Dibayar*Nilai_Dimasukkan,Pembayaran_Bulanan,""), "") ->  | F178: =IFERROR(IF(Pinjaman_Belum_Dibayar*Nilai_Dimasukkan,Pinjaman_Pokok,""), "") ->  | G178: =IFERROR(IF(Pinjaman_Belum_Dibayar*Nilai_Dimasukkan,Bunga,""), "") ->  | H178: =IFERROR(IF(Pinjaman_Belum_Dibayar*Nilai_Dimasukkan,Saldo_Akhir,""), "") -> 
B179: =IFERROR(IF(Pinjaman_Belum_Dibayar*Nilai_Dimasukkan,Jumlah_Pembayaran1,""), "") ->  | C179: =IFERROR(IF(Pinjaman_Belum_Dibayar*Nilai_Dimasukkan,Tanggal_Pembayaran,""), "") ->  | D179: =IFERROR(IF(Pinjaman_Belum_Dibayar*Nilai_Dimasukkan,Saldo_Awal,""), "") ->  | E179: =IFERROR(IF(Pinjaman_Belum_Dibayar*Nilai_Dimasukkan,Pembayaran_Bulanan,""), "") ->  | F179: =IFERROR(IF(Pinjaman_Belum_Dibayar*Nilai_Dimasukkan,Pinjaman_Pokok,""), "") ->  | G179: =IFERROR(IF(Pinjaman_Belum_Dibayar*Nilai_Dimasukkan,Bunga,""), "") ->  | H179: =IFERROR(IF(Pinjaman_Belum_Dibayar*Nilai_Dimasukkan,Saldo_Akhir,""), "") -> 
B180: =IFERROR(IF(Pinjaman_Belum_Dibayar*Nilai_Dimasukkan,Jumlah_Pembayaran1,""), "") ->  | C180: =IFERROR(IF(Pinjaman_Belum_Dibayar*Nilai_Dimasukkan,Tanggal_Pembayaran,""), "") ->  | D180: =IFERROR(IF(Pinjaman_Belum_Dibayar*Nilai_Dimasukkan,Saldo_Awal,""), "") ->  | E180: =IFERROR(IF(Pinjaman_Belum_Dibayar*Nilai_Dimasukkan,Pembayaran_Bulanan,""), "") ->  | F180: =IFERROR(IF(Pinjaman_Belum_Dibayar*Nilai_Dimasukkan,Pinjaman_Pokok,""), "") ->  | G180: =IFERROR(IF(Pinjaman_Belum_Dibayar*Nilai_Dimasukkan,Bunga,""), "") ->  | H180: =IFERROR(IF(Pinjaman_Belum_Dibayar*Nilai_Dimasukkan,Saldo_Akhir,""), "") -> 
B181: =IFERROR(IF(Pinjaman_Belum_Dibayar*Nilai_Dimasukkan,Jumlah_Pembayaran1,""), "") ->  | C181: =IFERROR(IF(Pinjaman_Belum_Dibayar*Nilai_Dimasukkan,Tanggal_Pembayaran,""), "") ->  | D181: =IFERROR(IF(Pinjaman_Belum_Dibayar*Nilai_Dimasukkan,Saldo_Awal,""), "") ->  | E181: =IFERROR(IF(Pinjaman_Belum_Dibayar*Nilai_Dimasukkan,Pembayaran_Bulanan,""), "") ->  | F181: =IFERROR(IF(Pinjaman_Belum_Dibayar*Nilai_Dimasukkan,Pinjaman_Pokok,""), "") ->  | G181: =IFERROR(IF(Pinjaman_Belum_Dibayar*Nilai_Dimasukkan,Bunga,""), "") ->  | H181: =IFERROR(IF(Pinjaman_Belum_Dibayar*Nilai_Dimasukkan,Saldo_Akhir,""), "") -> 
B182: =IFERROR(IF(Pinjaman_Belum_Dibayar*Nilai_Dimasukkan,Jumlah_Pembayaran1,""), "") ->  | C182: =IFERROR(IF(Pinjaman_Belum_Dibayar*Nilai_Dimasukkan,Tanggal_Pembayaran,""), "") ->  | D182: =IFERROR(IF(Pinjaman_Belum_Dibayar*Nilai_Dimasukkan,Saldo_Awal,""), "") ->  | E182: =IFERROR(IF(Pinjaman_Belum_Dibayar*Nilai_Dimasukkan,Pembayaran_Bulanan,""), "") ->  | F182: =IFERROR(IF(Pinjaman_Belum_Dibayar*Nilai_Dimasukkan,Pinjaman_Pokok,""), "") ->  | G182: =IFERROR(IF(Pinjaman_Belum_Dibayar*Nilai_Dimasukkan,Bunga,""), "") ->  | H182: =IFERROR(IF(Pinjaman_Belum_Dibayar*Nilai_Dimasukkan,Saldo_Akhir,""), "") -> 
B183: =IFERROR(IF(Pinjaman_Belum_Dibayar*Nilai_Dimasukkan,Jumlah_Pembayaran1,""), "") ->  | C183: =IFERROR(IF(Pinjaman_Belum_Dibayar*Nilai_Dimasukkan,Tanggal_Pembayaran,""), "") ->  | D183: =IFERROR(IF(Pinjaman_Belum_Dibayar*Nilai_Dimasukkan,Saldo_Awal,""), "") ->  | E183: =IFERROR(IF(Pinjaman_Belum_Dibayar*Nilai_Dimasukkan,Pembayaran_Bulanan,""), "") ->  | F183: =IFERROR(IF(Pinjaman_Belum_Dibayar*Nilai_Dimasukkan,Pinjaman_Pokok,""), "") ->  | G183: =IFERROR(IF(Pinjaman_Belum_Dibayar*Nilai_Dimasukkan,Bunga,""), "") ->  | H183: =IFERROR(IF(Pinjaman_Belum_Dibayar*Nilai_Dimasukkan,Saldo_Akhir,""), "") -> 
B184: =IFERROR(IF(Pinjaman_Belum_Dibayar*Nilai_Dimasukkan,Jumlah_Pembayaran1,""), "") ->  | C184: =IFERROR(IF(Pinjaman_Belum_Dibayar*Nilai_Dimasukkan,Tanggal_Pembayaran,""), "") ->  | D184: =IFERROR(IF(Pinjaman_Belum_Dibayar*Nilai_Dimasukkan,Saldo_Awal,""), "") ->  | E184: =IFERROR(IF(Pinjaman_Belum_Dibayar*Nilai_Dimasukkan,Pembayaran_Bulanan,""), "") ->  | F184: =IFERROR(IF(Pinjaman_Belum_Dibayar*Nilai_Dimasukkan,Pinjaman_Pokok,""), "") ->  | G184: =IFERROR(IF(Pinjaman_Belum_Dibayar*Nilai_Dimasukkan,Bunga,""), "") ->  | H184: =IFERROR(IF(Pinjaman_Belum_Dibayar*Nilai_Dimasukkan,Saldo_Akhir,""), "") -> 
B185: =IFERROR(IF(Pinjaman_Belum_Dibayar*Nilai_Dimasukkan,Jumlah_Pembayaran1,""), "") ->  | C185: =IFERROR(IF(Pinjaman_Belum_Dibayar*Nilai_Dimasukkan,Tanggal_Pembayaran,""), "") ->  | D185: =IFERROR(IF(Pinjaman_Belum_Dibayar*Nilai_Dimasukkan,Saldo_Awal,""), "") ->  | E185: =IFERROR(IF(Pinjaman_Belum_Dibayar*Nilai_Dimasukkan,Pembayaran_Bulanan,""), "") ->  | F185: =IFERROR(IF(Pinjaman_Belum_Dibayar*Nilai_Dimasukkan,Pinjaman_Pokok,""), "") ->  | G185: =IFERROR(IF(Pinjaman_Belum_Dibayar*Nilai_Dimasukkan,Bunga,""), "") ->  | H185: =IFERROR(IF(Pinjaman_Belum_Dibayar*Nilai_Dimasukkan,Saldo_Akhir,""), "") -> 
B186: =IFERROR(IF(Pinjaman_Belum_Dibayar*Nilai_Dimasukkan,Jumlah_Pembayaran1,""), "") ->  | C186: =IFERROR(IF(Pinjaman_Belum_Dibayar*Nilai_Dimasukkan,Tanggal_Pembayaran,""), "") ->  | D186: =IFERROR(IF(Pinjaman_Belum_Dibayar*Nilai_Dimasukkan,Saldo_Awal,""), "") ->  | E186: =IFERROR(IF(Pinjaman_Belum_Dibayar*Nilai_Dimasukkan,Pembayaran_Bulanan,""), "") ->  | F186: =IFERROR(IF(Pinjaman_Belum_Dibayar*Nilai_Dimasukkan,Pinjaman_Pokok,""), "") ->  | G186: =IFERROR(IF(Pinjaman_Belum_Dibayar*Nilai_Dimasukkan,Bunga,""), "") ->  | H186: =IFERROR(IF(Pinjaman_Belum_Dibayar*Nilai_Dimasukkan,Saldo_Akhir,""), "") -> 
B187: =IFERROR(IF(Pinjaman_Belum_Dibayar*Nilai_Dimasukkan,Jumlah_Pembayaran1,""), "") ->  | C187: =IFERROR(IF(Pinjaman_Belum_Dibayar*Nilai_Dimasukkan,Tanggal_Pembayaran,""), "") ->  | D187: =IFERROR(IF(Pinjaman_Belum_Dibayar*Nilai_Dimasukkan,Saldo_Awal,""), "") ->  | E187: =IFERROR(IF(Pinjaman_Belum_Dibayar*Nilai_Dimasukkan,Pembayaran_Bulanan,""), "") ->  | F187: =IFERROR(IF(Pinjaman_Belum_Dibayar*Nilai_Dimasukkan,Pinjaman_Pokok,""), "") ->  | G187: =IFERROR(IF(Pinjaman_Belum_Dibayar*Nilai_Dimasukkan,Bunga,""), "") ->  | H187: =IFERROR(IF(Pinjaman_Belum_Dibayar*Nilai_Dimasukkan,Saldo_Akhir,""), "") -> 
B188: =IFERROR(IF(Pinjaman_Belum_Dibayar*Nilai_Dimasukkan,Jumlah_Pembayaran1,""), "") ->  | C188: =IFERROR(IF(Pinjaman_Belum_Dibayar*Nilai_Dimasukkan,Tanggal_Pembayaran,""), "") ->  | D188: =IFERROR(IF(Pinjaman_Belum_Dibayar*Nilai_Dimasukkan,Saldo_Awal,""), "") ->  | E188: =IFERROR(IF(Pinjaman_Belum_Dibayar*Nilai_Dimasukkan,Pembayaran_Bulanan,""), "") ->  | F188: =IFERROR(IF(Pinjaman_Belum_Dibayar*Nilai_Dimasukkan,Pinjaman_Pokok,""), "") ->  | G188: =IFERROR(IF(Pinjaman_Belum_Dibayar*Nilai_Dimasukkan,Bunga,""), "") ->  | H188: =IFERROR(IF(Pinjaman_Belum_Dibayar*Nilai_Dimasukkan,Saldo_Akhir,""), "") -> 
B189: =IFERROR(IF(Pinjaman_Belum_Dibayar*Nilai_Dimasukkan,Jumlah_Pembayaran1,""), "") ->  | C189: =IFERROR(IF(Pinjaman_Belum_Dibayar*Nilai_Dimasukkan,Tanggal_Pembayaran,""), "") ->  | D189: =IFERROR(IF(Pinjaman_Belum_Dibayar*Nilai_Dimasukkan,Saldo_Awal,""), "") ->  | E189: =IFERROR(IF(Pinjaman_Belum_Dibayar*Nilai_Dimasukkan,Pembayaran_Bulanan,""), "") ->  | F189: =IFERROR(IF(Pinjaman_Belum_Dibayar*Nilai_Dimasukkan,Pinjaman_Pokok,""), "") ->  | G189: =IFERROR(IF(Pinjaman_Belum_Dibayar*Nilai_Dimasukkan,Bunga,""), "") ->  | H189: =IFERROR(IF(Pinjaman_Belum_Dibayar*Nilai_Dimasukkan,Saldo_Akhir,""), "") -> 
B190: =IFERROR(IF(Pinjaman_Belum_Dibayar*Nilai_Dimasukkan,Jumlah_Pembayaran1,""), "") ->  | C190: =IFERROR(IF(Pinjaman_Belum_Dibayar*Nilai_Dimasukkan,Tanggal_Pembayaran,""), "") ->  | D190: =IFERROR(IF(Pinjaman_Belum_Dibayar*Nilai_Dimasukkan,Saldo_Awal,""), "") ->  | E190: =IFERROR(IF(Pinjaman_Belum_Dibayar*Nilai_Dimasukkan,Pembayaran_Bulanan,""), "") ->  | F190: =IFERROR(IF(Pinjaman_Belum_Dibayar*Nilai_Dimasukkan,Pinjaman_Pokok,""), "") ->  | G190: =IFERROR(IF(Pinjaman_Belum_Dibayar*Nilai_Dimasukkan,Bunga,""), "") ->  | H190: =IFERROR(IF(Pinjaman_Belum_Dibayar*Nilai_Dimasukkan,Saldo_Akhir,""), "") -> 
B191: =IFERROR(IF(Pinjaman_Belum_Dibayar*Nilai_Dimasukkan,Jumlah_Pembayaran1,""), "") ->  | C191: =IFERROR(IF(Pinjaman_Belum_Dibayar*Nilai_Dimasukkan,Tanggal_Pembayaran,""), "") ->  | D191: =IFERROR(IF(Pinjaman_Belum_Dibayar*Nilai_Dimasukkan,Saldo_Awal,""), "") ->  | E191: =IFERROR(IF(Pinjaman_Belum_Dibayar*Nilai_Dimasukkan,Pembayaran_Bulanan,""), "") ->  | F191: =IFERROR(IF(Pinjaman_Belum_Dibayar*Nilai_Dimasukkan,Pinjaman_Pokok,""), "") ->  | G191: =IFERROR(IF(Pinjaman_Belum_Dibayar*Nilai_Dimasukkan,Bunga,""), "") ->  | H191: =IFERROR(IF(Pinjaman_Belum_Dibayar*Nilai_Dimasukkan,Saldo_Akhir,""), "") -> 
B192: =IFERROR(IF(Pinjaman_Belum_Dibayar*Nilai_Dimasukkan,Jumlah_Pembayaran1,""), "") ->  | C192: =IFERROR(IF(Pinjaman_Belum_Dibayar*Nilai_Dimasukkan,Tanggal_Pembayaran,""), "") ->  | D192: =IFERROR(IF(Pinjaman_Belum_Dibayar*Nilai_Dimasukkan,Saldo_Awal,""), "") ->  | E192: =IFERROR(IF(Pinjaman_Belum_Dibayar*Nilai_Dimasukkan,Pembayaran_Bulanan,""), "") ->  | F192: =IFERROR(IF(Pinjaman_Belum_Dibayar*Nilai_Dimasukkan,Pinjaman_Pokok,""), "") ->  | G192: =IFERROR(IF(Pinjaman_Belum_Dibayar*Nilai_Dimasukkan,Bunga,""), "") ->  | H192: =IFERROR(IF(Pinjaman_Belum_Dibayar*Nilai_Dimasukkan,Saldo_Akhir,""), "") -> 
B193: =IFERROR(IF(Pinjaman_Belum_Dibayar*Nilai_Dimasukkan,Jumlah_Pembayaran1,""), "") ->  | C193: =IFERROR(IF(Pinjaman_Belum_Dibayar*Nilai_Dimasukkan,Tanggal_Pembayaran,""), "") ->  | D193: =IFERROR(IF(Pinjaman_Belum_Dibayar*Nilai_Dimasukkan,Saldo_Awal,""), "") ->  | E193: =IFERROR(IF(Pinjaman_Belum_Dibayar*Nilai_Dimasukkan,Pembayaran_Bulanan,""), "") ->  | F193: =IFERROR(IF(Pinjaman_Belum_Dibayar*Nilai_Dimasukkan,Pinjaman_Pokok,""), "") ->  | G193: =IFERROR(IF(Pinjaman_Belum_Dibayar*Nilai_Dimasukkan,Bunga,""), "") ->  | H193: =IFERROR(IF(Pinjaman_Belum_Dibayar*Nilai_Dimasukkan,Saldo_Akhir,""), "") -> 
B194: =IFERROR(IF(Pinjaman_Belum_Dibayar*Nilai_Dimasukkan,Jumlah_Pembayaran1,""), "") ->  | C194: =IFERROR(IF(Pinjaman_Belum_Dibayar*Nilai_Dimasukkan,Tanggal_Pembayaran,""), "") ->  | D194: =IFERROR(IF(Pinjaman_Belum_Dibayar*Nilai_Dimasukkan,Saldo_Awal,""), "") ->  | E194: =IFERROR(IF(Pinjaman_Belum_Dibayar*Nilai_Dimasukkan,Pembayaran_Bulanan,""), "") ->  | F194: =IFERROR(IF(Pinjaman_Belum_Dibayar*Nilai_Dimasukkan,Pinjaman_Pokok,""), "") ->  | G194: =IFERROR(IF(Pinjaman_Belum_Dibayar*Nilai_Dimasukkan,Bunga,""), "") ->  | H194: =IFERROR(IF(Pinjaman_Belum_Dibayar*Nilai_Dimasukkan,Saldo_Akhir,""), "") -> 
B195: =IFERROR(IF(Pinjaman_Belum_Dibayar*Nilai_Dimasukkan,Jumlah_Pembayaran1,""), "") ->  | C195: =IFERROR(IF(Pinjaman_Belum_Dibayar*Nilai_Dimasukkan,Tanggal_Pembayaran,""), "") ->  | D195: =IFERROR(IF(Pinjaman_Belum_Dibayar*Nilai_Dimasukkan,Saldo_Awal,""), "") ->  | E195: =IFERROR(IF(Pinjaman_Belum_Dibayar*Nilai_Dimasukkan,Pembayaran_Bulanan,""), "") ->  | F195: =IFERROR(IF(Pinjaman_Belum_Dibayar*Nilai_Dimasukkan,Pinjaman_Pokok,""), "") ->  | G195: =IFERROR(IF(Pinjaman_Belum_Dibayar*Nilai_Dimasukkan,Bunga,""), "") ->  | H195: =IFERROR(IF(Pinjaman_Belum_Dibayar*Nilai_Dimasukkan,Saldo_Akhir,""), "") -> 
B196: =IFERROR(IF(Pinjaman_Belum_Dibayar*Nilai_Dimasukkan,Jumlah_Pembayaran1,""), "") ->  | C196: =IFERROR(IF(Pinjaman_Belum_Dibayar*Nilai_Dimasukkan,Tanggal_Pembayaran,""), "") ->  | D196: =IFERROR(IF(Pinjaman_Belum_Dibayar*Nilai_Dimasukkan,Saldo_Awal,""), "") ->  | E196: =IFERROR(IF(Pinjaman_Belum_Dibayar*Nilai_Dimasukkan,Pembayaran_Bulanan,""), "") ->  | F196: =IFERROR(IF(Pinjaman_Belum_Dibayar*Nilai_Dimasukkan,Pinjaman_Pokok,""), "") ->  | G196: =IFERROR(IF(Pinjaman_Belum_Dibayar*Nilai_Dimasukkan,Bunga,""), "") ->  | H196: =IFERROR(IF(Pinjaman_Belum_Dibayar*Nilai_Dimasukkan,Saldo_Akhir,""), "") -> 
B197: =IFERROR(IF(Pinjaman_Belum_Dibayar*Nilai_Dimasukkan,Jumlah_Pembayaran1,""), "") ->  | C197: =IFERROR(IF(Pinjaman_Belum_Dibayar*Nilai_Dimasukkan,Tanggal_Pembayaran,""), "") ->  | D197: =IFERROR(IF(Pinjaman_Belum_Dibayar*Nilai_Dimasukkan,Saldo_Awal,""), "") ->  | E197: =IFERROR(IF(Pinjaman_Belum_Dibayar*Nilai_Dimasukkan,Pembayaran_Bulanan,""), "") ->  | F197: =IFERROR(IF(Pinjaman_Belum_Dibayar*Nilai_Dimasukkan,Pinjaman_Pokok,""), "") ->  | G197: =IFERROR(IF(Pinjaman_Belum_Dibayar*Nilai_Dimasukkan,Bunga,""), "") ->  | H197: =IFERROR(IF(Pinjaman_Belum_Dibayar*Nilai_Dimasukkan,Saldo_Akhir,""), "") -> 
B198: =IFERROR(IF(Pinjaman_Belum_Dibayar*Nilai_Dimasukkan,Jumlah_Pembayaran1,""), "") ->  | C198: =IFERROR(IF(Pinjaman_Belum_Dibayar*Nilai_Dimasukkan,Tanggal_Pembayaran,""), "") ->  | D198: =IFERROR(IF(Pinjaman_Belum_Dibayar*Nilai_Dimasukkan,Saldo_Awal,""), "") ->  | E198: =IFERROR(IF(Pinjaman_Belum_Dibayar*Nilai_Dimasukkan,Pembayaran_Bulanan,""), "") ->  | F198: =IFERROR(IF(Pinjaman_Belum_Dibayar*Nilai_Dimasukkan,Pinjaman_Pokok,""), "") ->  | G198: =IFERROR(IF(Pinjaman_Belum_Dibayar*Nilai_Dimasukkan,Bunga,""), "") ->  | H198: =IFERROR(IF(Pinjaman_Belum_Dibayar*Nilai_Dimasukkan,Saldo_Akhir,""), "") -> 
B199: =IFERROR(IF(Pinjaman_Belum_Dibayar*Nilai_Dimasukkan,Jumlah_Pembayaran1,""), "") ->  | C199: =IFERROR(IF(Pinjaman_Belum_Dibayar*Nilai_Dimasukkan,Tanggal_Pembayaran,""), "") ->  | D199: =IFERROR(IF(Pinjaman_Belum_Dibayar*Nilai_Dimasukkan,Saldo_Awal,""), "") ->  | E199: =IFERROR(IF(Pinjaman_Belum_Dibayar*Nilai_Dimasukkan,Pembayaran_Bulanan,""), "") ->  | F199: =IFERROR(IF(Pinjaman_Belum_Dibayar*Nilai_Dimasukkan,Pinjaman_Pokok,""), "") ->  | G199: =IFERROR(IF(Pinjaman_Belum_Dibayar*Nilai_Dimasukkan,Bunga,""), "") ->  | H199: =IFERROR(IF(Pinjaman_Belum_Dibayar*Nilai_Dimasukkan,Saldo_Akhir,""), "") -> 
B200: =IFERROR(IF(Pinjaman_Belum_Dibayar*Nilai_Dimasukkan,Jumlah_Pembayaran1,""), "") ->  | C200: =IFERROR(IF(Pinjaman_Belum_Dibayar*Nilai_Dimasukkan,Tanggal_Pembayaran,""), "") ->  | D200: =IFERROR(IF(Pinjaman_Belum_Dibayar*Nilai_Dimasukkan,Saldo_Awal,""), "") ->  | E200: =IFERROR(IF(Pinjaman_Belum_Dibayar*Nilai_Dimasukkan,Pembayaran_Bulanan,""), "") ->  | F200: =IFERROR(IF(Pinjaman_Belum_Dibayar*Nilai_Dimasukkan,Pinjaman_Pokok,""), "") ->  | G200: =IFERROR(IF(Pinjaman_Belum_Dibayar*Nilai_Dimasukkan,Bunga,""), "") ->  | H200: =IFERROR(IF(Pinjaman_Belum_Dibayar*Nilai_Dimasukkan,Saldo_Akhir,""), "") -> 
B201: =IFERROR(IF(Pinjaman_Belum_Dibayar*Nilai_Dimasukkan,Jumlah_Pembayaran1,""), "") ->  | C201: =IFERROR(IF(Pinjaman_Belum_Dibayar*Nilai_Dimasukkan,Tanggal_Pembayaran,""), "") ->  | D201: =IFERROR(IF(Pinjaman_Belum_Dibayar*Nilai_Dimasukkan,Saldo_Awal,""), "") ->  | E201: =IFERROR(IF(Pinjaman_Belum_Dibayar*Nilai_Dimasukkan,Pembayaran_Bulanan,""), "") ->  | F201: =IFERROR(IF(Pinjaman_Belum_Dibayar*Nilai_Dimasukkan,Pinjaman_Pokok,""), "") ->  | G201: =IFERROR(IF(Pinjaman_Belum_Dibayar*Nilai_Dimasukkan,Bunga,""), "") ->  | H201: =IFERROR(IF(Pinjaman_Belum_Dibayar*Nilai_Dimasukkan,Saldo_Akhir,""), "") -> 
... 171 more rows
